{"text_format":"1","workbook":"xlsx","n_sheets":22,"sheets":["Table1A List of required stocks","Table1B Planning of sampling ","Table1C Sampling intensity ","Table1D Recreational Fisheries","Table1E Anadromous catadromous","Table1F Incidental by catch","Table1G List of research survey","Table1H Research survey data","Table2A Fishing activity variab","Table3A Pop segment fisheries","Table3B Pop segments aquacultur","Table3C Pop segments processin","Table4A Sampling plan descripti","Table4B Sampling frame descrip","Table4C Data on the fisheries","Table4D Landing locations","Table5A Quality assurance frame","Table5B Quality assurance frame","Table6A_Data_availability","Table7A_Planned Regional_coord","Table7B_Follow up of Recommenda","Table7C_Bi- and multilateral "],"not_rendered":{"charts":0,"images":0,"macros":0,"external_links":16,"defined_names":155,"comments":0,"pivot_tables":0},"unopened":[],"bounds":{"document_bytes":16777216,"sheet_cells":100000,"rows_first":2000,"rows_last":500,"rows_between":2000,"halvings":0,"cell_chars":16384,"cell_head_chars":4096},"cells_cut":0,"cells_raw":0,"read":"whole","date_system":"1900"}

{"sheet":"Table1A List of required stocks","index":0,"n_rows":269,"n_cols":13,"rows_kept":269,"cut":false,"hidden":false,"merged":[]}
["Table1A: List of required stocks"]
[null,null,null,null,null,null,null,null,null,null,null,"WP  years","2017-2019"]
[null,null,null,null,null,null,null,null,null,null,null,"AR year",2017]
["MS","Reference years","Species","Region","RFMO/RFO/IO","Area / Stock","Selected for sampling  (Y/N)","Average landings in the reference years (tons)","\nEU TAC (if any)\n(%)","Share (%) in EU landings","Threshold  (Y/N)","Comments","Changes in species landings"]
["SWE","2013-2015","All","All","All","All","NA","NA","NA","NA","NA","In general, figures on landings are based on EUROSTAT, TACs are based on FIDES opening quota table and the areas are based on Table 1A in EU MAP. These data sources do not always corresponds to each other or to the stock definition. Deviations from this common approach are described in the comments below."]
["SWE","2013-2015","Anguilla anguilla","East Arctic, Norwegian sea and Barents sea","ICES","I, II","N","<200","None","None","NA"]
["SWE","2013-2015","Brosme brosme","East Arctic, Norwegian sea and Barents sea","ICES","I, II","N","<200","None","None","Y"]
["SWE","2013-2015","Clupea harengus","East Arctic, Norwegian sea and Barents sea","ICES","I, II","N","<200",0.13,"None","Y"]
["SWE","2013-2015","Gadus morhua","East Arctic, Norwegian sea and Barents sea","ICES","I, II","N","<200","None","None","Y"]
["SWE","2013-2015","Mallotus villosus","East Arctic, Norwegian sea and Barents sea","ICES","I, II","N","<200","None","None","Y"]
["SWE","2013-2015","Melanogrammus aeglefinus","East Arctic, Norwegian sea and Barents sea","ICES","I, II","N","<200","None","None","Y"]
["SWE","2013-2015","Micromesistius poutassou","East Arctic, Norwegian sea and Barents sea","ICES","I, II","N","<200",0.04,"None","Y"]
["SWE","2013-2015","Pandalus borealis","East Arctic, Norwegian sea and Barents sea","ICES","I, II","N","<200",0.03,"None","Y"]
["SWE","2013-2015","Pollachius virens","East Arctic, Norwegian sea and Barents sea","ICES","I, II","N","<200","None","None","Y"]
["SWE","2013-2015","Reinhardtius hippoglossoides","East Arctic, Norwegian sea and Barents sea","ICES","I, II","N","<200","None","None","Y"]
["SWE","2013-2015","Salmo salar","East Arctic, Norwegian sea and Barents sea","ICES","I, II","N","<200","None","None","Y"]
["SWE","2013-2015","Scomber scombrus","East Arctic, Norwegian sea and Barents sea","ICES","II","N",1630,"None",0.08,"Y","The mackerel stock is widely distributed and covers subareas I,II,III, IV, V, VI, VII and XIV and divisions VIIIa-e and IXa. Sweden is fishing on the northern component of the stock (area IIIa and IV). The Swedish share on the total stock is well below the threshold of 10 %. An agreement with UK to secure the overall sampling is setup."]
["SWE","2013-2015","Sebastes marinus","East Arctic, Norwegian sea and Barents sea","ICES","I, II","N","<200","None","None","Y"]
["SWE","2013-2015","Sebastes mentella","East Arctic, Norwegian sea and Barents sea","ICES","I, II","N","<200","None","None","Y"]
["SWE","2013-2015","Trachurus trachurus","East Arctic, Norwegian sea and Barents sea","ICES","IIa","N","<200",0.01,"None","Y"]
["SWE","2013-2015","Ammodytidae","Skagerrak and Kattegat","ICES","IIIa","N","<200","None","None","Y"]
["SWE","2013-2015","Anguilla anguilla","Skagerrak and Kattegat","ICES","IIIa","Y","<200","None",0.05,"NA","Fishing is largely prohibited and sampling is carried out through a survey.",0]
["SWE","2013-2015","Clupea harengus","Skagerrak and Kattegat","ICES","IIIa","Y",17080,0.45,0.72,"N",null,2283]
["SWE","2013-2015","Coryphaenoides rupestris","Skagerrak and Kattegat","ICES","IIIa","N","<200","None","None","Y"]
["SWE","2013-2015","Eutrigla gurnardus","Skagerrak and Kattegat","ICES","IIIa","N","<200","None",0.18,"Y"]
["SWE","2013-2015","Aspitrigla cuculus","Skagerrak and Kattegat","ICES","IIIa","N","<200","None","None","Y"]
["SWE","2013-2015","Gadus morhua","Skagerrak and Kattegat","ICES","IIIaN","Y",560,0.14000000000000001,0.14000000000000001,"N","Landings based on ICES WGBFAS allocation.   ",3]
["SWE","2013-2015","Gadus morhua","Skagerrak and Kattegat","ICES","IIIaS","Y","<200",0.37,0.33,"N","Landings based on ICES WGBFAS allocation.  As the TAC´s (2013-2015) for the stock are low (100-300 tonnes), will appliance of the 200 tonnes threshold  imply that the stock will not be sampled at all. As  Sweden has 38% of the TAC we will continue to sample the stock.",51]
["SWE","2013-2015","Glyptocephalus cynoglossus","Skagerrak and Kattegat","ICES","IIIa","Y",240,"None",0.19,"N",null,-22]
["SWE","2013-2015","Limanda limanda","Skagerrak and Kattegat","ICES","IIIa","N","<200","None",0.02,"Y"]
["SWE","2013-2015","Melanogrammus aeglefinus","Skagerrak and Kattegat","ICES","IIIa","N",210,0.1,0.12,"Y"]
["SWE","2013-2015","Merlangius merlangus","Skagerrak and Kattegat","ICES","IIIa","N","<200",0.1,0.2,"Y"]
["SWE","2013-2015","Merluccius merluccius","Skagerrak and Kattegat","ICES","IIIa","N","<200",0.08,0.11,"Y"]
["SWE","2013-2015","Micromesistius poutassou","Skagerrak and Kattegat","ICES","IIIa","N","<200",0.04,0.31,"Y"]
["SWE",2015,"Nephrops norvegicus","Skagerrak and Kattegat","ICES","Functional unit 3-4","Y",1180,"None",0.31,"N","Data on international landings was only available for 2015 as these figures origins from ICES Intercatch (landings by Functional Unit was not available in EUROSTAT.",250]
["SWE","2013-2015","Pandalus borealis","Skagerrak and Kattegat","ICES","IIIa","Y",1195,0.35,0.35,"N",null,217]
["SWE","2013-2015","Pleuronectes platessa","Skagerrak and Kattegat","ICES","IIIa","N",295,0.05,0.03,"Y","For plaice we have followed the regions applied in table 1A in EU-MAP. In reality there are two plaice stocks in this region. SWE has limited TAC and landings in both and they are combined in one line to be consistence with table 1A in EU MAP."]
["SWE","2013-2015","Pollachius virens","Skagerrak and Kattegat","ICES","IIIa","N",345,"None",0.17,"Y","Saithe in IIIa appears above threshold  for the sole reason that the area in column F do not match the stock/TAC.  The TACs covers area IIIa and IV. The Swedish share of the overall TACs (EU zone and Norwegian zone) is less than 2 %."]
["SWE","2013-2015","Salmo salar","Skagerrak and Kattegat","ICES","IIIa","N","<200","None",1,"NA"]
["SWE","2013-2015","Psetta maxima","Skagerrak and Kattegat","ICES","IIIa","N","<200","None",0.11,"Y"]
["SWE","2013-2015","Scomber scombrus","Skagerrak and Kattegat","ICES","IIIa","N",340,"None",0.66,"Y","The mackerel stock is widely distributed and covers subareas I,II,III, IV, V, VI, VII and XIV and divisions VIIIa-e and IXa. Sweden is fishing on the northern component of the stock (area IIIa and IV). The Swedish share on the total stock is well below the threshold of 10 %. An agreement with UK to secure the overall sampling is setup."]
["SWE","2013-2015","Scophthalmus rhombus","Skagerrak and Kattegat","ICES","IIIa","N","<200","None",0.15,"Y"]
["SWE","2013-2015","Solea solea","Skagerrak and Kattegat","ICES","IIIa","N","<200",0.03,0.13,"Y"]
["SWE","2013-2015","Sprattus sprattus","Skagerrak and Kattegat","ICES","IIIa","Y",1285,0.27,0.09,"N",null,-1082]
["SWE","2013-2015","Trisopterus esmarkii","Skagerrak and Kattegat","ICES","IIIa","N","<200",0,"None","Y"]
["SWE","2013-2015","Anguilla anguilla","Baltic Sea","ICES","22-32","Y",210,"None",0.38,"N",null,-69]
["SWE","2013-2015","Clupea harengus","Baltic Sea","ICES","22-24","Y",1915,0.18,0.09,"N",null,726]
["SWE","2013-2015","Clupea harengus","Baltic Sea","ICES","25-29, 32","Y",38435,0.33,0.33,"N",null,12741]
["SWE","2013-2015","Clupea harengus","Baltic Sea","ICES",30,"Y",12590,0.18,0.11,"N",null,-1916]
["SWE","2013-2015","Clupea harengus","Baltic Sea","ICES",31,"N","<200",0.18,0.03,"Y"]
["SWE","2013-2015","Clupea harengus","Baltic Sea","ICES","Gulf of Riga","N","<200","None","None","Y"]
["SWE","2013-2015","Coregonus lavaretus","Baltic Sea","ICES","IIId","N","<200","None","None","Y"]
["SWE","2013-2015","Coregonus albula","Baltic Sea","ICES","22-32","Y",1735,"None",0.87,"N",null,-720]
["SWE","2013-2015","Gadus morhua","Baltic Sea","ICES","22-24","Y",1965,0.16,0.15,"N",null,-1180]
["SWE","2013-2015","Gadus morhua","Baltic Sea","ICES","25-32","Y",4685,0.23,0.16,"N",null,-279]
["SWE","2013-2015","Limanda limanda","Baltic Sea","ICES","22-32","N","<200","None","None","Y"]
["SWE","2013-2015","Perca fluviatilis","Baltic Sea","ICES","IIId","N","<200","None",0.02,"Y"]
["SWE","2013-2015","Platichthys flesus","Baltic Sea","ICES","22-32","Y",260,"None",0.02,"N",null,-144]
["SWE","2013-2015","Pleuronectes platessa","Baltic Sea","ICES","22-32","N","<200",0.05,0.03,"Y"]
["SWE","2013-2015","Psetta maxima","Baltic Sea","ICES","22-32","N","<200","None",0.08,"Y"]
["SWE","2013-2015","Salmo salar","Baltic Sea","ICES","22-31","Y","<200",0.28000000000000003,0.34,"NA","In 2017, SWE quota is 26 870 indivuals out of 95 928 EU ."]
["SWE","2013-2015","Salmo salar","Baltic Sea","ICES",32,"N","<200","None","None","NA"]
["SWE","2013-2015","Salmo trutta","Baltic Sea","ICES","22-32","N","<200","None",0.04,"NA"]
["SWE","2013-2015","Sander lucioperca","Baltic Sea","ICES","IIId","N","<200","None",0.01,"Y"]
["SWE","2013-2015","Scophthalmus rhombus","Baltic Sea","ICES","22-32","N","<200","None",0.03,"Y"]
["SWE","2013-2015","Solea solea","Baltic Sea","ICES",22,"N","<200","None","None","Y"]
["SWE","2013-2015","Sprattus sprattus","Baltic Sea","ICES","22-32","Y",36490,0.19,0.21,"N",null,11824]
["SWE","2013-2015","Ammodytidae","North Sea and Eastern Channel","ICES","IV","N",26355,"None",0.13,"Y"]
["SWE","2013-2015","Anarhichas spp.","North Sea and Eastern Channel","ICES","IV","N","<200","None","None","Y"]
["SWE","2013-2015","Anguilla anguilla","North Sea and Eastern Channel","ICES","IV, VIId","N","<200","None","None","NA"]
["SWE","2013-2015","Argentina spp.","North Sea and Eastern Channel","ICES","IV","N","<200",0.03,"None","Y"]
["SWE","2013-2015","Eutrigla gurnardus","North Sea and Eastern Channel","ICES","IV","N","<200","None","None","Y"]
["SWE","2013-2015","Brosme brosme","North Sea and Eastern Channel","ICES","IV","N","<200",0.03,"None","Y"]
["SWE","2013-2015","Clupea harengus","North Sea and Eastern Channel","ICES","IV, VIId","N",15015,"None",0.04,"Y"]
["SWE","2013-2015","Crangon crangon","North Sea and Eastern Channel","ICES","IV, VIId","N","<200","None","None","Y"]
["SWE","2013-2015","Dicentrarchus labrax","North Sea and Eastern Channel","ICES","IV, VIId","N","<200","None","None","Y"]
["SWE","2013-2015","Gadus morhua","North Sea and Eastern Channel","ICES","IV, VIId","N",385,"None",0.01,"Y"]
["SWE","2013-2015","Glyptocephalus cynoglossus","North Sea and Eastern Channel","ICES","IV","N","<200","None","None","Y"]
["SWE","2013-2015","Helicolenus dactylopterus","North Sea and Eastern Channel","ICES","IV","N","<200","None","None","Y"]
["SWE","2013-2015","Lepidorhombus boscii","North Sea and Eastern Channel","ICES","IV, VIId","N","<200","None","None","Y"]
["SWE","2013-2015","Lepidorhombus whiffiagonis","North Sea and Eastern Channel","ICES","IV, VIId","N","<200","None","None","Y"]
["SWE","2013-2015","Limanda limanda","North Sea and Eastern Channel","ICES","IV, VIId","N","<200","None","None","Y"]
["SWE","2013-2015","Lophius budegassa","North Sea and Eastern Channel","ICES","IV, VIId","N","<200","None","None","Y"]
["SWE","2013-2015","Lophius piscatorius","North Sea and Eastern Channel","ICES","IV","N","<200","None",0.01,"Y"]
["SWE","2013-2015","Macrourus berglax","North Sea and Eastern Channel","ICES","IV","N","<200","None","None","Y"]
["SWE","2013-2015","Melanogrammus aeglefinus","North Sea and Eastern Channel","ICES","IV","N","<200",0.01,"None","Y"]
["SWE","2013-2015","Merlangius merlangus","North Sea and Eastern Channel","ICES","IV, VIId","N","<200","None","None","Y"]
["SWE","2013-2015","Merluccius merluccius","North Sea and Eastern Channel","ICES","IV VII","N","<200","None","None","Y"]
["SWE","2013-2015","Micromesistius poutassou","North Sea and Eastern Channel","ICES","IV, VIId","N","<200",0.04,0.05,"Y"]
["SWE","2013-2015","Microstomus kitt","North Sea and Eastern Channel","ICES","IV, VIId","N","<200","None","None","Y"]
["SWE","2013-2015","Molva dypterygia","North Sea and Eastern Channel","ICES","IV","N","<200","None","None","Y"]
["SWE","2013-2015","Molva molva","North Sea and Eastern Channel","ICES","IV","N","<200","None","None","Y"]
["SWE","2013-2015","Mullus barbatus","North Sea and Eastern Channel","ICES","IV, VIId","N","<200","None","None","Y"]
["SWE","2013-2015","Mullus surmuletus","North Sea and Eastern Channel","ICES","IV, VIId","N","<200","None","None","Y"]
["SWE",2015,"Nephrops norvegicus","North Sea and Eastern Channel","ICES","functional unit 7","N","<200","None","None","Y","Data on international landings was only available for 2015 as these figures origins from ICES Intercatch (landings by Functional Unit was not available in EUROSTAT."]
["SWE",2015,"Nephrops norvegicus","North Sea and Eastern Channel","ICES","functional unit 10","N","<200","None","None","Y","Data on international landings was only available for 2015 as these figures origins from ICES Intercatch (landings by Functional Unit was not available in EUROSTAT."]
["SWE","2013-2015","Nephrops norvegicus","North Sea and Eastern Channel","ICES","functional units 32 (TAC IIa, IV)","N","<200","None","None","Y"]
["SWE",2015,"Nephrops norvegicus","North Sea and Eastern Channel","ICES","functional unit 6","N","<200","None","None","Y","Data on international landings was only available for 2015 as these figures origins from ICES Intercatch (landings by Functional Unit was not available in EUROSTAT."]
["SWE",2015,"Nephrops norvegicus","North Sea and Eastern Channel","ICES","functional unit 8","N","<200","None","None","Y","Data on international landings was only available for 2015 as these figures origins from ICES Intercatch (landings by Functional Unit was not available in EUROSTAT."]
["SWE",2015,"Nephrops norvegicus","North Sea and Eastern Channel","ICES","functional unit 9","N","<200","None","None","Y","Data on international landings was only available for 2015 as these figures origins from ICES Intercatch (landings by Functional Unit was not available in EUROSTAT."]
["SWE","2013-2015","Nephrops norvegicus","North Sea and Eastern Channel","ICES","functional units 33 (TAC IIa, VI)","N","<200","None","None","Y"]
["SWE",2015,"Nephrops norvegicus","North Sea and Eastern Channel","ICES","functional unit 34","N","<200","None","None","Y","Data on international landings was only available for 2015 as these figures origins from ICES Intercatch (landings by Functional Unit was not available in EUROSTAT."]
["SWE","2013-2015","Pandalus borealis","North Sea and Eastern Channel","ICES","IVa","N","<200",0.03,0.55000000000000004,"Y"]
["SWE","2013-2015","Pecten maximus","North Sea and Eastern Channel","ICES","VIId","N","<200","None","None","Y"]
["SWE","2013-2015","Phycis blennoides","North Sea and Eastern Channel","ICES","IV","N","<200","None","None","Y"]
["SWE","2013-2015","Phycis phycis","North Sea and Eastern Channel","ICES","IV","N","<200","None","None","Y"]
["SWE","2013-2015","Platichthys flesus","North Sea and Eastern Channel","ICES","IV","N","<200","None","None","Y"]
["SWE","2013-2015","Pleuronectes platessa","North Sea and Eastern Channel","ICES","IV","N","<200","None","None","Y"]
["SWE","2013-2015","Pleuronectes platessa","North Sea and Eastern Channel","ICES","VIId","N","<200","None","None","Y"]
["SWE","2013-2015","Pollachius virens","North Sea and Eastern Channel","ICES","IV","N",925,"None",0.03,"Y"]
["SWE","2013-2015","Psetta maxima","North Sea and Eastern Channel","ICES","IV, VIId","N","<200","None","None","Y"]
["SWE","2013-2015","Reinhardtius hippoglossoides","North Sea and Eastern Channel","ICES","IV","N","<200","None","None","Y"]
["SWE","2013-2015","Salmo salar","North Sea and Eastern Channel","ICES","IV, VIId","N","<200","None","None","NA"]
["SWE","2013-2015","Scomber scombrus","North Sea and Eastern Channel","ICES","IV, VIId","N",1820,"None",0.01,"Y","The mackerel stock is widely distributed and covers subareas I,II,III, IV, V, VI, VII and XIV and divisions VIIIa-e and IXa. Sweden is fishing on the northern component of the stock (area IIIa and IV). The Swedish share on the total stock is well below the threshold of 10 %. An agreement with UK to secure the overall sampling is setup."]
["SWE","2013-2015","Scophthalmus rhombus","North Sea and Eastern Channel","ICES","IV, VIId","N","<200","None","None","Y"]
["SWE","2013-2015","Sebastes mentella","North Sea and Eastern Channel","ICES","IV","N","<200","None","None","Y"]
["SWE","2013-2015","Solea solea","North Sea and Eastern Channel","ICES","IV","N","<200","None","None","Y"]
["SWE","2013-2015","Solea solea","North Sea and Eastern Channel","ICES","VIId","N","<200","None","None","Y"]
["SWE","2013-2015","Sprattus sprattus","North Sea and Eastern Channel","ICES","IV","N",3975,0.01,0.02,"Y"]
["SWE","2013-2015","Sprattus sprattus","North Sea and Eastern Channel","ICES","VIId","N","<200","None","None","Y"]
["SWE","2013-2015","Trachurus trachurus","North Sea and Eastern Channel","ICES","IV, VIId","N","<200",0.01,"None","Y"]
["SWE","2013-2015","Trigla lucerna","North Sea and Eastern Channel","ICES","IV","N","<200","None","None","Y"]
["SWE","2013-2015","Trisopterus esmarkii","North Sea and Eastern Channel","ICES","IV","N",245,"None",0.01,"Y"]
["SWE","2013-2015","Zeus faber","North Sea and Eastern Channel","ICES","IV, VIId","N","<200","None","None","Y"]
["SWE","2013-2015","Alepocephalus bairdii","North East Atlantic and Western Channel","ICES","VI, XII","N","<200","None","None","Y"]
["SWE","2013-2015","Ammodytidae","North East Atlantic and Western Channel","ICES","VIa","N","<200","None","None","Y"]
["SWE","2013-2015","Capros aper","North East Atlantic and Western Channel","ICES","V, VI,VII","N","<200","None","None","Y"]
["SWE","2013-2015","Pecten maximus","North East Atlantic and Western Channel","ICES","IV, VI, VII","N","<200","None","None","Y"]
["SWE","2013-2015","Aequipecten opercularis","North East Atlantic and Western Channel","ICES","VII","N","<200","None","None","Y"]
["SWE","2013-2015","Maja squinado","North East Atlantic and Western Channel","ICES","V, VI,VII","N","<200","None","None","Y"]
["SWE","2013-2015","Anguilla anguilla","North East Atlantic and Western Channel","ICES","all areas","N","<200","None","None","Y"]
["SWE","2013-2015","Aphanopus spp.","North East Atlantic and Western Channel","ICES","all areas","N","<200","None","None","Y"]
["SWE","2013-2015","Argentina spp.","North East Atlantic and Western Channel","ICES","all areas","N","<200","None","None","Y"]
["SWE","2013-2015","Argyrosomus regius","North East Atlantic and Western Channel","ICES","all areas","N","<200","None","None","Y"]
["SWE","2013-2015","Aspitrigla cuculus","North East Atlantic and Western Channel","ICES","all areas","N","<200","None","None","Y"]
["SWE","2013-2015","Beryx spp.","North East Atlantic and Western Channel","ICES","all areas, excluding X and IXa","N","<200","None","None","Y"]
["SWE","2013-2015","Beryx spp.","North East Atlantic and Western Channel","ICES","IXa and X","N","<200","None","None","Y"]
["SWE","2013-2015","Cancer pagurus","North East Atlantic and Western Channel","ICES","all areas","N","<200","None","None","Y"]
["SWE","2013-2015","Clupea harengus","North East Atlantic and Western Channel","ICES","VIa","N","<200","None","None","Y"]
["SWE","2013-2015","Clupea harengus","North East Atlantic and Western Channel","ICES","VIa S, VIIbc","N","<200","None","None","Y"]
["SWE","2013-2015","Clupea harengus","North East Atlantic and Western Channel","ICES","VIIa","N","<200","None","None","Y"]
["SWE","2013-2015","Clupea harengus","North East Atlantic and Western Channel","ICES","VIIj","N","<200","None","None","Y"]
["SWE","2013-2015","Conger conger","North East Atlantic and Western Channel","ICES","all areas, excluding X","N","<200","None","None","Y"]
["SWE","2013-2015","Conger conger","North East Atlantic and Western Channel","ICES","X","N","<200","None","None","Y"]
["SWE","2013-2015","Coryphaenoides rupestris","North East Atlantic and Western Channel","ICES","all areas","N","<200","None","None","Y"]
["SWE","2013-2015","Dalatias licha","North East Atlantic and Western Channel","ICES","All areas","N","<200","None","None","Y"]
["SWE","2013-2015","Dasyatis pastinaca","North East Atlantic and Western Channel","ICES","VII, VIII","N","<200","None","None","Y"]
["SWE","2013-2015","Deania calcea","North East Atlantic and Western Channel","ICES","V, VI, VII, IX, X, XII","N","<200","None","None","Y"]
["SWE","2013-2015","Dicentrarchus labrax","North East Atlantic and Western Channel","ICES","all areas, excluding IX","N","<200","None","None","Y"]
["SWE","2013-2015","Dicentrarchus labrax","North East Atlantic and Western Channel","ICES","IX","N","<200","None","None","Y"]
["SWE","2013-2015","Dicologlossa cuneata","North East Atlantic and Western Channel","ICES","VIIIc, IX","N","<200","None","None","Y"]
["SWE","2013-2015","Engraulis encrasicolus","North East Atlantic and Western Channel","ICES","IXa (only Cádiz)","N","<200","None","None","Y"]
["SWE","2013-2015","Engraulis encrasicolus","North East Atlantic and Western Channel","ICES","VIII","N","<200","None","None","Y"]
["SWE","2013-2015","Etmopterus spinax","North East Atlantic and Western Channel","ICES","VI, VII, VIII","N","<200","None","None","Y"]
["SWE","2013-2015","Eutrigla gurnardus","North East Atlantic and Western Channel","ICES","VIIe","N","<200","None","None","Y"]
["SWE","2013-2015","Gadus morhua","North East Atlantic and Western Channel","ICES","Va","N","<200","None","None","Y"]
["SWE","2013-2015","Gadus morhua","North East Atlantic and Western Channel","ICES","Vb","N","<200","None","None","Y"]
["SWE","2013-2015","Gadus morhua","North East Atlantic and Western Channel","ICES","VIa","N","<200","None","None","Y"]
["SWE","2013-2015","Gadus morhua","North East Atlantic and Western Channel","ICES","VIb","N","<200","None","None","Y"]
["SWE","2013-2015","Gadus morhua","North East Atlantic and Western Channel","ICES","VIIa","N","<200","None","None","Y"]
["SWE","2013-2015","Gadus morhua","North East Atlantic and Western Channel","ICES","VIIe-k","N","<200","None","None","Y"]
["SWE","2013-2015","Glyptocephalus cynoglossus","North East Atlantic and Western Channel","ICES","VI, VII","N","<200","None","None","Y"]
["SWE","2013-2015","Helicolenus dactylopterus","North East Atlantic and Western Channel","ICES","all areas","N","<200","None","None","Y"]
["SWE","2013-2015","Homarus gammarus","North East Atlantic and Western Channel","ICES","all areas","N","<200","None","None","Y"]
["SWE","2013-2015","Hoplostethus atlanticus","North East Atlantic and Western Channel","ICES","all areas","N","<200","None","None","Y"]
["SWE","2013-2015","Lepidopus caudatus","North East Atlantic and Western Channel","ICES","IXa","N","<200","None","None","Y"]
["SWE","2013-2015","Lepidorhombus boscii","North East Atlantic and Western Channel","ICES","VIIIc, IXa","N","<200","None","None","Y"]
["SWE","2013-2015","Lepidorhombus whiffiagonis","North East Atlantic and Western Channel","ICES","VI","N","<200","None","None","Y"]
["SWE","2013-2015","Lepidorhombus whiffiagonis","North East Atlantic and Western Channel","ICES","VII, VIIIabd","N","<200","None","None","Y"]
["SWE","2013-2015","Lepidorhombus whiffiagonis","North East Atlantic and Western Channel","ICES","VIIIc, IXa","N","<200","None","None","Y"]
["SWE","2013-2015","Limanda limanda","North East Atlantic and Western Channel","ICES","VIIe","N","<200","None","None","Y"]
["SWE","2013-2015","Limanda limanda","North East Atlantic and Western Channel","ICES","VIIa,f-h","N","<200","None","None","Y"]
["SWE","2013-2015","Loligo vulgaris","North East Atlantic and Western Channel","ICES","all areas, excluding VIIIc, IXa","N","<200","None","None","Y"]
["SWE","2013-2015","Loligo vulgaris","North East Atlantic and Western Channel","ICES","VIIIc, IXa","N","<200","None","None","Y"]
["SWE","2013-2015","Lophius budegassa","North East Atlantic and Western Channel","ICES","IV, VI","N","<200","None","None","Y"]
["SWE","2013-2015","Lophius budegassa","North East Atlantic and Western Channel","ICES","VIIb-k, VIIIabd","N","<200","None","None","Y"]
["SWE","2013-2015","Lophius budegassa","North East Atlantic and Western Channel","ICES","VIIIc, IXa","N","<200","None","None","Y"]
["SWE","2013-2015","Lophius piscatorius","North East Atlantic and Western Channel","ICES","IV, VI","N","<200","None",0.01,"Y"]
["SWE","2013-2015","Lophius piscatorius","North East Atlantic and Western Channel","ICES","VIIb-k, VIIIabd","N","<200","None","None","Y"]
["SWE","2013-2015","Lophius piscatorius","North East Atlantic and Western Channel","ICES","VIIIc, IXa","N","<200","None","None","Y"]
["SWE","2013-2015","Mallotus villosus","North East Atlantic and Western Channel","ICES","XIV","N","<200","None","None","Y"]
["SWE","2013-2015","Melanogrammus aeglefinus","North East Atlantic and Western Channel","ICES","Va","N","<200","None","None","Y"]
["SWE","2013-2015","Melanogrammus aeglefinus","North East Atlantic and Western Channel","ICES","Vb","N","<200","None","None","Y"]
["SWE","2013-2015","Melanogrammus aeglefinus","North East Atlantic and Western Channel","ICES","VIa","N","<200","None","None","Y"]
["SWE","2013-2015","Melanogrammus aeglefinus","North East Atlantic and Western Channel","ICES","Vib","N","<200","None","None","Y"]
["SWE","2013-2015","Melanogrammus aeglefinus","North East Atlantic and Western Channel","ICES","VIIa","N","<200","None","None","Y"]
["SWE","2013-2015","Melanogrammus aeglefinus","North East Atlantic and Western Channel","ICES","VIIb-k","N","<200","None","None","Y"]
["SWE","2013-2015","Merlangius merlangus","North East Atlantic and Western Channel","ICES","VIII","N","<200","None","None","Y"]
["SWE","2013-2015","Merlangius merlangus","North East Atlantic and Western Channel","ICES","IX, X","N","<200","None","None","Y"]
["SWE","2013-2015","Merlangius merlangus","North East Atlantic and Western Channel","ICES","Vb","N","<200","None","None","Y"]
["SWE","2013-2015","Merlangius merlangus","North East Atlantic and Western Channel","ICES","VIa","N","<200","None","None","Y"]
["SWE","2013-2015","Merlangius merlangus","North East Atlantic and Western Channel","ICES","VIb","N","<200","None","None","Y"]
["SWE","2013-2015","Merlangius merlangus","North East Atlantic and Western Channel","ICES","VIIa","N","<200","None","None","Y"]
["SWE","2013-2015","Merlangius merlangus","North East Atlantic and Western Channel","ICES","VIIe-k","N","<200","None","None","Y"]
["SWE","2013-2015","Merluccius merluccius","North East Atlantic and Western Channel","ICES","VI, VII, VIIIab","N","<200","None","None","Y"]
["SWE","2013-2015","Merluccius merluccius","North East Atlantic and Western Channel","ICES","VIIIc, IXa","N","<200","None","None","Y"]
["SWE","2013-2015","Microchirus variegatus","North East Atlantic and Western Channel","ICES","all areas","N","<200","None","None","Y"]
["SWE","2013-2015","Micromesistius poutassou","North East Atlantic and Western Channel","ICES","I-IX, XII, XIV","N",205,"None","None","Y"]
["SWE","2013-2015","Microstomus kitt","North East Atlantic and Western Channel","ICES","all areas","N","<200","None","None","Y"]
["SWE","2013-2015","Molva dypterygia","North East Atlantic and Western Channel","ICES","all areas, excluding X","N","<200","None","None","Y"]
["SWE","2013-2015","Molva macrophthalma","North East Atlantic and Western Channel","ICES","X","N","<200","None","None","Y"]
["SWE","2013-2015","Molva molva","North East Atlantic and Western Channel","ICES","all areas","N","<200","None","None","Y"]
["SWE","2013-2015","Mullus surmuletus","North East Atlantic and Western Channel","ICES","all areas","N","<200","None","None","Y"]
["SWE","2013-2015","Mustelus asterias","North East Atlantic and Western Channel","ICES","VI, VII, VIII, IX","N","<200","None","None","Y"]
["SWE","2013-2015","Mustelus mustelus","North East Atlantic and Western Channel","ICES","VI, VII, VIII, IX","N","<200","None","None","Y"]
["SWE","2013-2015","Mustelus punctulatus","North East Atlantic and Western Channel","ICES","VI, VII, VIII, IX","N","<200","None","None","Y"]
["SWE",2015,"Nephrops norvegicus","North East Atlantic and Western Channel","ICES","VI Fuctional unit 11","N","<200","None","None","Y"]
["SWE",2015,"Nephrops norvegicus","North East Atlantic and Western Channel","ICES","VI Fuctional unit 12","N","<200","None","None","Y"]
["SWE",2015,"Nephrops norvegicus","North East Atlantic and Western Channel","ICES","VI Fuctional unit 13","N","<200","None","None","Y"]
["SWE",2015,"Nephrops norvegicus","North East Atlantic and Western Channel","ICES","VII Functional unit 14","N","<200","None","None","Y"]
["SWE",2015,"Nephrops norvegicus","North East Atlantic and Western Channel","ICES","VII Functional unit 15","N","<200","None","None","Y"]
["SWE","2013-2015","Nephrops norvegicus","North East Atlantic and Western Channel","ICES","VII Functional unit 16 (TAC FU16)","N","<200","None","None","Y"]
["SWE",2015,"Nephrops norvegicus","North East Atlantic and Western Channel","ICES","VII Functional unit 17","N","<200","None","None","Y"]
["SWE","2013-2015","Nephrops norvegicus","North East Atlantic and Western Channel","ICES","VII Functional unit 18 (TAC VII)","N","<200","None","None","Y"]
["SWE","2013-2015","Nephrops norvegicus","North East Atlantic and Western Channel","ICES","VII Functional unit 19 (TAC VII)","N","<200","None","None","Y"]
["SWE","2013-2015","Nephrops norvegicus","North East Atlantic and Western Channel","ICES","VII Functional unit 20-21 (TAC VII)","N","<200","None","None","Y"]
["SWE",2015,"Nephrops norvegicus","North East Atlantic and Western Channel","ICES","VII Functional unit 22","N","<200","None","None","Y"]
["SWE",2015,"Nephrops norvegicus","North East Atlantic and Western Channel","ICES","VIII, IX Functional unit 23, 24","N","<200","None","None","Y"]
["SWE",2015,"Nephrops norvegicus","North East Atlantic and Western Channel","ICES","VIII, IX Functional unit 25, 31","N","<200","None","None","Y"]
["SWE",2015,"Nephrops norvegicus","North East Atlantic and Western Channel","ICES","VIII, IX Functional unit 26-27, 28-29, 30","N","<200","None","None","Y"]
["SWE","2013-2015","Octopus vulgaris","North East Atlantic and Western Channel","ICES","all areas, excluding VIIIc, IXa","N","<200","None","None","Y"]
["SWE","2013-2015","Octopus vulgaris","North East Atlantic and Western Channel","ICES","VIIIc, IXa","N","<200","None","None","Y"]
["SWE","2013-2015","Pagellus bogaraveo","North East Atlantic and Western Channel","ICES","IXa, X","N","<200","None","None","Y"]
["SWE","2013-2015","Pandalus spp.","North East Atlantic and Western Channel","ICES","all areas","N","<200","None","None","Y"]
["SWE","2013-2015","Parapenaeus longirostris","North East Atlantic and Western Channel","ICES","IXa","N","<200","None","None","Y"]
["SWE","2013-2015","Phycis blennoides","North East Atlantic and Western Channel","ICES","all areas","N","<200","None","None","Y"]
["SWE","2013-2015","Phycis phycis","North East Atlantic and Western Channel","ICES","all areas","N","<200","None","None","Y"]
["SWE","2013-2015","Pleuronectes platessa","North East Atlantic and Western Channel","ICES","VIIa","N","<200","None","None","Y"]
["SWE","2013-2015","Pleuronectes platessa","North East Atlantic and Western Channel","ICES","VIIe","N","<200","None","None","Y"]
["SWE","2013-2015","Pleuronectes platessa","North East Atlantic and Western Channel","ICES","VIIfg","N","<200","None","None","Y"]
["SWE","2013-2015","Pleuronectes platessa","North East Atlantic and Western Channel","ICES","VIIbc","N","<200","None","None","Y"]
["SWE","2013-2015","Pleuronectes platessa","North East Atlantic and Western Channel","ICES","VIIh-k","N","<200","None","None","Y"]
["SWE","2013-2015","Pleuronectes platessa","North East Atlantic and Western Channel","ICES","VIII, IX, X","N","<200","None","None","Y"]
["SWE","2013-2015","Pollachius pollachius","North East Atlantic and Western Channel","ICES","all areas except IX, X","N","<200","None","None","Y"]
["SWE","2013-2015","Pollachius pollachius","North East Atlantic and Western Channel","ICES","IX, X","N","<200","None","None","Y"]
["SWE","2013-2015","Pollachius virens","North East Atlantic and Western Channel","ICES","Va","N","<200","None","None","Y"]
["SWE","2013-2015","Pollachius virens","North East Atlantic and Western Channel","ICES","Vb","N","<200","None","None","Y"]
["SWE","2013-2015","Pollachius virens","North East Atlantic and Western Channel","ICES","IV, IIIa, VI","N","<200","None","None","Y"]
["SWE","2013-2015","Pollachius virens","North East Atlantic and Western Channel","ICES","VII, VIII","N","<200","None","None","Y"]
["SWE","2013-2015","Polyprion americanus","North East Atlantic and Western Channel","ICES","X","N","<200","None","None","Y"]
["SWE","2013-2015","Psetta maxima","North East Atlantic and Western Channel","ICES","all areas","N","<200","None","None","Y"]
["SWE","2013-2015","Reinhardtius hippoglossoides","North East Atlantic and Western Channel","ICES","V, XIV","N","<200","None","None","Y"]
["SWE","2013-2015","Reinhardtius hippoglossoides","North East Atlantic and Western Channel","ICES","VI","N","<200","None","None","Y"]
["SWE","2013-2015","Hippoglossus hippoglossus","North East Atlantic and Western Channel","ICES","V, XIV","N","<200","None","None","Y"]
["SWE","2013-2015","Salmo salar","North East Atlantic and Western Channel","ICES","all areas","N","<200","None","None","NA"]
["SWE","2013-2015","Sardina pilchardus","North East Atlantic and Western Channel","ICES","VIIIabd","N","<200","None","None","Y"]
["SWE","2013-2015","Sardina pilchardus","North East Atlantic and Western Channel","ICES","VIIIc, IXa","N","<200","None","None","Y"]
["SWE","2013-2015","Scomber colias","North East Atlantic and Western Channel","ICES","VIII, IX, X","N","<200","None","None","Y"]
["SWE","2013-2015","Scomber scombrus","North East Atlantic and Western Channel","ICES","V, VI, VII, VIII, IX","N","<200","None","None","Y","The mackerel stock is widely distributed and covers subareas I,II,III, IV, V, VI, VII and XIV and divisions VIIIa-e and IXa. Sweden is fishing on the northern component of the stock (area IIIa and IV). The Swedish share on the total stock is well below the threshold of 10 %. An agreement with UK to secure the overall sampling is setup."]
["SWE","2013-2015","Scophthalmus rhombus","North East Atlantic and Western Channel","ICES","all areas","N","<200","None","None","Y"]
["SWE","2013-2015","Sebastes marinus","North East Atlantic and Western Channel","ICES","ICES Sub areas V, VI, XII, XIV & NAFO SA 2 + (Div. 1F + 3K).","N","<200","None","None","Y"]
["SWE","2013-2015","Sebastes mentella","North East Atlantic and Western Channel","ICES","ICES Sub areas V, VI, XII, XIV & NAFO SA 2 + (Div. 1F + 3K)","N","<200","None","None","Y"]
["SWE","2013-2015","Sepia officinalis","North East Atlantic and Western Channel","ICES","all areas","N","<200","None","None","Y"]
["SWE","2013-2015","Solea solea","North East Atlantic and Western Channel","ICES","VIIa","N","<200","None","None","Y"]
["SWE","2013-2015","Solea solea","North East Atlantic and Western Channel","ICES","VIIfg","N","<200","None","None","Y"]
["SWE","2013-2015","Solea solea","North East Atlantic and Western Channel","ICES","VIIbc","N","<200","None","None","Y"]
["SWE","2013-2015","Solea solea","North East Atlantic and Western Channel","ICES","VIIhjk","N","<200","None","None","Y"]
["SWE","2013-2015","Solea solea","North East Atlantic and Western Channel","ICES","Ixa","N","<200","None","None","Y"]
["SWE","2013-2015","Solea solea","North East Atlantic and Western Channel","ICES","VIIIc","N","<200","None","None","Y"]
["SWE","2013-2015","Solea solea","North East Atlantic and Western Channel","ICES","VIIe","N","<200","None","None","Y"]
["SWE","2013-2015","Solea solea","North East Atlantic and Western Channel","ICES","VIIIab","N","<200","None","None","Y"]
["SWE","2013-2015","Sparidae","North East Atlantic and Western Channel","ICES","all areas","N","<200","None","None","Y"]
["SWE","2013-2015","Trachurus mediterraneus","North East Atlantic and Western Channel","ICES","VIII, IX","N","<200","None","None","Y"]
["SWE","2013-2015","Trachurus picturatus","North East Atlantic and Western Channel","ICES","VIII, IX, X","N","<200","None","None","Y"]
["SWE","2013-2015","Trachurus trachurus","North East Atlantic and Western Channel","ICES","IIa, IVa, Vb, VIa, VIIa-c, e-k, VIIIabde","N","<200","None","None","Y"]
["SWE","2013-2015","Trachurus trachurus","North East Atlantic and Western Channel","ICES","X","N","<200","None","None","Y"]
["SWE","2013-2015","Trachurus trachurus","North East Atlantic and Western Channel","ICES","VIIIc, IXa","N","<200","None","None","Y"]
["SWE","2013-2015","Trisopterus spp.","North East Atlantic and Western Channel","ICES","all areas","N","<200","None","None","Y"]
["SWE","2013-2015","Zeus faber","North East Atlantic and Western Channel","ICES","all areas","N","<200","None","None","Y"]

{"sheet":"Table1B Planning of sampling ","index":1,"n_rows":30,"n_cols":25,"rows_kept":30,"cut":false,"hidden":false,"merged":[[3,0,4,0],[2,17,2,23],[1,17,1,23],[3,6,3,8],[3,1,4,1],[3,2,4,2],[3,3,4,3],[3,4,4,4],[3,5,4,5],[3,21,3,23],[3,9,3,11],[3,12,3,14],[3,15,3,17],[3,18,3,20],[22,9,22,11],[23,9,23,11],[24,9,24,11],[5,21,5,23],[9,21,9,23],[10,21,10,23],[13,21,13,23],[16,21,16,23]]}
["Table 1B: Planning of sampling for biological variables"]
[null,null,null,null,null,null,null,null,null,null,null,null,null,null,null,null,null,"WP years",null,null,null,null,null,null,"2017-2019"]
[null,null,null,null,null,null,null,null,null,null,null,null,null,null,null,null,null,"AR  year ",null,null,null,null,null,null,"2017"]
["MS","Species","Region","RFMO/RFO/IO","Area / Stock","Frequency","Length",null,null,"Age",null,null,"Weight",null,null,"Sex ratio",null,null,"Sexual maturity",null,null,"Fecundity",null,null,"Comments"]
[null,null,null,null,null,null,2017,2018,2019,2017,2018,2019,2017,2018,2019,2017,2018,2019,2017,2018,2019,2017,2018,2019]
["SWE","Anguilla anguilla ","Baltic Sea","EIFAAC/ICES/GFCM ","IIIb-d","O","X","X","X","X","X","X","X","X","X","X","X","X",null,null,null,"Not applicable",null,null,"Frequency: Commercial monthly during season, survey yearly. Maturity: Yellow and silver eels handled separately, hence sampling stratified on maturity"]
["SWE","Anguilla anguilla","Baltic Sea","EIFAAC/ICES","fresh water","Y","X","X","X","X","X","X","X","X","X","X","X","X","X","X","X"]
["SWE","Clupea harengus ","Baltic Sea","ICES","22-24 ","Q","X","X","X","X","X","X","X","X","X","X","X","X","X","X","X"]
["SWE","Clupea harengus ","Baltic Sea","ICES","IIId 25-29, 32","Q","X","X","X","X","X","X","X","X","X","X","X","X","X","X","X"]
["SWE","Clupea harengus ","Baltic Sea","ICES","III MU 3 (sd30-31)","M","X","X","X","X","X","X","X","X","X","X","X","X","X","X","X","Not applicable",null,null,"Frequency: Commercial sampling monthly during fishing season."]
["SWE","Coregonus albula","Baltic Sea","ICES","22-32","Y",null,"X","X",null,"X","X",null,"X","X",null,"X","X",null,"X","X","Not applicable",null,null,"Frequency: Sampling will be made during the commersiell fishing season which is limited to the vendace's spawning period in September-October."]
["SWE","Gadus morhua ","Baltic Sea","ICES","22-24","Q","X","X","X","X","X","X","X","X","X","X","X","X","X","X","X"]
["SWE","Gadus morhua ","Baltic Sea","ICES","25-32","Q","X","X","X","X","X","X","X","X","X","X","X","X","X","X","X"]
["SWE","Platichthys flesus ","Baltic Sea","ICES","22-32","Q","X","X","X","X","X","X","X","X","X","X","X","X","X","X","X","Not applicable",null,null,"Frequency: Commercial quartely during season, survey twice a year."]
["SWE","Salmo salar","Baltic Sea","ICES","22-31/32",null,null,null,null,null,null,null,null,null,null,null,null,null,null,null,null,null,null,null,"Only number (not biological data) of individuals are used in stock assessment (WGBAST). This data is collected from fishermen journals, See Table 4A."]
["SWE","Sprattus sprattus ","Baltic Sea","ICES","22-32","Q","X","X","X","X","X","X","X","X","X","X","X","X","X","X","X"]
["SWE","Anguilla anguilla ","North Sea and Eastern Arctic","EIFAAC/ICES/GFCM ","IIIa","Y","X","X","X","X","X","X","X","X","X","X","X","X",null,null,null,"Not applicable",null,null,"Frequency: Survey yearly. Maturity: Yellow eels and silver eels  are handled separately, hence sampling stratified on maturity."]
["SWE","Clupea harengus ","North Sea and Eastern Arctic","ICES","IIIa","Q","X","X","X","X","X","X","X","X","X","X","X","X","X","X","X"]
["SWE","Gadus morhua ","North Sea and Eastern Arctic","ICES","IIIaN","Q","X","X","X","X","X","X","X","X","X","X","X","X","X","X","X"]
["SWE","Gadus morhua ","North Sea and Eastern Arctic","ICES","IIIaS","Q","X","X","X","X","X","X","X","X","X","X","X","X","X","X","X"]
["SWE","Glyptocephalus cynoglossus ","North Sea and Eastern Arctic","ICES","IIIa","Q","X","X","X","X","X","X","X","X","X","X","X","X","X","X","X"]
["SWE","Melanogrammus aeglefinus ","North Sea and Eastern Arctic","ICES","IV, IIIa","Y","X","X","X","X","X","X","X","X","X","X","X","X","X","X","X",null,null,null,"Sampled for biological parameters in surveys only."]
["SWE","Nephrops norvegicus ","North Sea and Eastern Arctic","ICES","FU3 (IIIaN)","Q","X","X","X","not applicable",null,null,"X","X","X","X","X","X","X","X","X"]
["SWE","Nephrops norvegicus ","North Sea and Eastern Arctic","ICES","FU4 (IIIaS)","Q","X","X","X","not applicable",null,null,"X","X","X","X","X","X","X","X","X"]
["SWE","Pandalus borealis ","North Sea and Eastern Arctic","ICES","IIIa,IVa east/IVa/IVb","Q","X","X","X","not applicable",null,null,"X","X","X","X","X","X","X","X","X"]
["SWE","Pleuronectes platessa ","North Sea and Eastern Arctic","ICES","IIIa","Y","X","X","X","X","X","X","X","X","X","X","X","X","X","X","X",null,null,null,"Sampled for biological parameters in surveys only."]
["SWE","Sprattus sprattus ","North Sea and Eastern Arctic","ICES","IIIa","Q","X","X","X","X","X","X","X","X","X","X","X","X","X","X","X"]
["SWE","Trisopterus esmarki","North Sea and Eastern Arctic","ICES","IIIa","Y","X","X","X","X","X","X","X","X","X","X","X","X","X","X","X",null,null,null,"Sampled for biological parameters in surveys only."]
["SWE","Pollachius virens","North Sea and Eastern Arctic","ICES","IIIa","Y","X","X","X","X","X","X","X","X","X","X","X","X","X","X","X",null,null,null,"Sampled for biological parameters in surveys only."]
["SWE","Merlangius merlangus","North Sea and Eastern Arctic","ICES","IIIa","Y","X","X","X","X","X","X","X","X","X","X","X","X","X","X","X",null,null,null,"Sampled for biological parameters in surveys only."]

{"sheet":"Table1C Sampling intensity ","index":2,"n_rows":184,"n_cols":17,"rows_kept":184,"cut":false,"hidden":false,"merged":[]}
["Table 1C: Sampling intensity for biological variables"]
[null,null,null,null,null,null,null,null,null,null,null,null,null,null,null,"WP  years","2017-2019"]
[null,null,null,null,null,null,null,null,null,null,null,null,null,null,null,"AR year",2017]
["MS","MS partcipating in sampling","Sampling year","Species","Region","RFMO/RFO/IO","Area / Stock","Variables","Data sources","Planned minimum no of individuals to be measured at the national level","Planned minimum no of individuals to be measured at the regional level","Comments","Achieved number of individuals measured at the national level","% of achievement (100*M/J)","Achieved number of samples ","Sampling protocol","AR  Comments"]
["SWE","SWE",2017,"All","All","All","All","Length,weight","Sea sampling, surveys","NA",null,"A 2-year(2014, 2015) average rounded  is used for all figures presented as planned minimum number. Only commercial species above the threshold (table 1A) and target species in surveys are listed in this table. Not all species collected during sampling at sea  (Comment applicable to the entire table)"]
["SWE","SWE",2017,"Anguilla anguilla","Baltic Sea","EIFAAC/ICES","Freshwater","Age","Commercial samples",375,null,"125 eels per lake in three lakes",358,{"$f":"M6/J6*100","v":95.466666666666669},3,"125 eels per lake in three lakes"]
["SWE","SWE",2017,"Anguilla anguilla","Baltic Sea","EIFAAC/ICES","Freshwater","Weight","Commercial samples",375,null,"125 eels per lake in three lakes",358,95.466666666666669,3,"125 eels per lake in three lakes"]
["SWE","SWE",2017,"Anguilla anguilla","Baltic Sea","EIFAAC/ICES","Freshwater","Length","Commercial samples",375,null,"125 eels per lake in three lakes",358,95.466666666666669,3,"125 eels per lake in three lakes"]
["SWE","SWE",2017,"Anguilla anguilla","Baltic Sea","EIFAAC/ICES","Freshwater","Sex","Commercial samples",375,null,"125 eels per lake in three lakes",358,95.466666666666669,3,"125 eels per lake in three lakes"]
["SWE","SWE",2017,"Anguilla anguilla","Baltic Sea","EIFAAC/ICES","Freshwater","Maturity","Commercial samples",375,null,"125 eels per lake in three lakes",358,95.466666666666669,3,"125 eels per lake in three lakes"]
["SWE","SWE",2017,"Anguilla anguilla","Baltic Sea","EIFAAC/ICES/GFCM ","IIIb-d","Age","Commercial",600,null,null,599,99.833333333333329,27,"Annual goal to sample 200 silver eel selected by length stratification (5-7 ind/cm and year) in SD 23, 25 and 27 respectively."]
["SWE","SWE",2017,"Anguilla anguilla","Baltic Sea","EIFAAC/ICES/GFCM ","IIIb-d","Weight","Commercial",600,null,null,599,99.833333333333329,27,"Annual goal to sample 200 silver eel selected by length stratification (5-7 ind/cm and year) in SD 23, 25 and 27 respectively."]
["SWE","SWE",2017,"Anguilla anguilla","Baltic Sea","EIFAAC/ICES/GFCM ","IIIb-d","Length","Commercial",1175,null,null,1083,92.170212765957444,27,"All individuals collected are measured for length."]
["SWE","SWE",2017,"Anguilla anguilla","Baltic Sea","EIFAAC/ICES/GFCM ","IIIb-d","Sex","Commercial",600,null,null,599,99.833333333333329,27,"Annual goal to sample 200 silver eel selected by length stratification (5-7 ind/cm and year) in SD 23, 25 and 27 respectively."]
["SWE","SWE",2017,"Anguilla anguilla","Baltic Sea","EIFAAC/ICES/GFCM ","IIIb-d","Maturity","Commercial","Not applicable",null,"Sexual maturity: Yellow eels and silver eels  are handled separately, hence sampling stratified on maturity.","Not applicable",null,"Not applicable","Not applicable"]
["SWE","SWE",2017,"Anguilla anguilla","Baltic Sea","EIFAAC/ICES/GFCM ","IIIb-d","Age","Survey",200,null,null,214,107,4,"Set survey goal to sample 200 yellow eel selected by length stratification (5-7 ind/cm)."]
["SWE","SWE",2017,"Anguilla anguilla","Baltic Sea","EIFAAC/ICES/GFCM ","IIIb-d","Weight","Survey",200,null,null,214,107,4,"Set survey goal to sample 200 yellow eel selected by length stratification (5-7 ind/cm)."]
["SWE","SWE",2017,"Anguilla anguilla","Baltic Sea","EIFAAC/ICES/GFCM ","IIIb-d","Length","Survey",650,null,null,344,52.923076923076927,4,"All individuals collected are measured for length.","Planned maximum effort in this fyke net survey was carried out. The low % of achievement was due to that the catches of eel were lower than expected._Besides these 344 yellow eel, 6 silver eel were also sampled according to change in sampling scheme. When WP is updated, the addition of biological sampling of both stages of the species will be included. "]
["SWE","SWE",2017,"Anguilla anguilla","Baltic Sea","EIFAAC/ICES/GFCM ","IIIb-d","Sex","Survey",200,null,null,214,107,4,"Set survey goal to sample 200 yellow eel selected by length stratification (5-7 ind/cm)."]
["SWE","SWE",2017,"Anguilla anguilla","Baltic Sea","EIFAAC/ICES/GFCM ","IIIb-d","Maturity","Survey","Not applicable",null,"Sexual maturity: Yellow eels and silver eels  are handled separately, hence sampling stratified on maturity.","Not applicable",null,"Not applicable","Not applicable"]
["SWE","SWE",2017,"Clupea harengus ","Baltic Sea","ICES","SD22-24, IIIa","Age","Market",1480,null,null,1597,{"$f":"M21/J21*100","v":107.9054054054054},16,"max 150 ind/box : 4 box/SD/quarter, fishing mainly in Quarter 1 and 4"]
["SWE","SWE",2017,"Clupea harengus ","Baltic Sea","ICES","SD22-24, IIIa","Weight","Market",1480,null,null,1606,{"$f":"M22/J22*100","v":108.5135135135135},16,"max 150 ind/box : 4 box/SD/quarter, fishing mainly in Quarter 1 and 4"]
["SWE","SWE",2017,"Clupea harengus ","Baltic Sea","ICES","SD22-24, IIIa","Length","Market",1480,null,null,1606,108.5135135135135,16,"max 150 ind/box : 4 box/SD/quarter, fishing mainly in Quarter 1 and 4"]
["SWE","SWE",2017,"Clupea harengus ","Baltic Sea","ICES","SD22-24, IIIa","Sex","Market",1480,null,null,1606,108.5135135135135,16,"max 150 ind/box : 4 box/SD/quarter, fishing mainly in Quarter 1 and 4"]
["SWE","SWE",2017,"Clupea harengus ","Baltic Sea","ICES","SD22-24, IIIa","Maturity","Market",1480,null,null,1606,108.5135135135135,16,"max 150 ind/box : 4 box/SD/quarter, fishing mainly in Quarter 1 and 4"]
["SWE","SWE",2017,"Clupea harengus ","Baltic Sea","ICES","SD25-29, 32","Age","Market",6125,null,null,5088,83.069387755102042,77,"max 100 ind/box : 4 box/SD/quarter","Not all areas(SD) fully covered in sampling due to restricted access to landings in some places. Unsorted samples with mix of herring and sprat, results in only sprat for some samples."]
["SWE","SWE",2017,"Clupea harengus ","Baltic Sea","ICES","SD25-29, 32","Weight","Market",6170,null,null,5122,83.014586709886544,77,"max 100 ind/box : 4 box/SD/quarter","Not all areas fully covered in sampling due to restricted access to landings in some places. Unsorted samples with mix of herring and sprat, results in only sprat for some samples."]
["SWE","SWE",2017,"Clupea harengus ","Baltic Sea","ICES","SD25-29, 32","Length","Market",6170,null,null,5122,83.014586709886544,77,"max 100 ind/box : 4 box/SD/quarter","Not all areas fully covered in sampling due to restricted access to landings in some places. Unsorted samples with mix of herring and sprat, results in only sprat for some samples."]
["SWE","SWE",2017,"Clupea harengus ","Baltic Sea","ICES","SD25-29, 32","Sex","Market",5910,null,null,5122,86.666666666666671,77,"max 100 ind/box : 4 box/SD/quarter","Not all areas fully covered in sampling due to restricted access to landings in some places. Unsorted samples with mix of herring and sprat, results in only sprat for some samples."]
["SWE","SWE",2017,"Clupea harengus ","Baltic Sea","ICES","SD25-29, 32","Maturity","Market",6170,null,null,5122,83.014586709886544,77,"max 100 ind/box : 4 box/SD/quarter","Not all areas fully covered in sampling due to restricted access to landings in some places. Unsorted samples with mix of herring and sprat, results in only sprat for some samples."]
["SWE","SWE",2017,"Clupea harengus ","Baltic Sea","ICES","SD25-29, 32","Age","Survey",2430,null,null,2041,83.991769547325106,46,"5 ind/half cm/haul","Slightly undersampled, see general explanation textbox 1C."]
["SWE","SWE",2017,"Clupea harengus ","Baltic Sea","ICES","SD25-29, 32","Weight","Survey",2430,null,null,2044,84.115226337448561,46,"5 ind/half cm/haul","Slightly undersampled, see general explanation textbox 1C."]
["SWE","SWE",2017,"Clupea harengus ","Baltic Sea","ICES","SD25-29, 32","Length","Survey",10570,null,null,9292,87.909176915799435,46,"subsample or total catch/haul","Slightly undersampled, see general explanation textbox 1C."]
["SWE","SWE",2017,"Clupea harengus ","Baltic Sea","ICES","SD25-29, 32","Sex","Survey",2120,null,null,2044,96.415094339622641,46,"5 ind/halfcm/haul"]
["SWE","SWE",2017,"Clupea harengus ","Baltic Sea","ICES","SD25-29, 32","Maturity","Survey",2435,null,null,2044,83.94250513347022,46,"5 ind/halfcm/haul","Slightly undersampled, see general explanation textbox 1C."]
["SWE","SWE",2017,"Clupea harengus ","Baltic Sea","ICES","SD30-31","Age","Commercial",890,null,null,834,93.707865168539328,10,"20 ind/halfcm/quarter, 2 and 3rd quarter"]
["SWE","SWE",2017,"Clupea harengus ","Baltic Sea","ICES","SD30-31","Weight","Commercial",890,null,null,834,93.707865168539328,10,"20 ind/halfcm/quarter, 2 and 3rd quarter"]
["SWE","SWE",2017,"Clupea harengus ","Baltic Sea","ICES","SD30-31","Length","Commercial",890,null,null,834,93.707865168539328,10,"20 ind/halfcm/quarter, 2 and 3rd quarter"]
["SWE","SWE",2017,"Clupea harengus ","Baltic Sea","ICES","SD30-31","Sex","Commercial",850,null,null,834,98.117647058823536,10,"20 ind/halfcm/quarter, 2 and 3rd quarter"]
["SWE","SWE",2017,"Clupea harengus ","Baltic Sea","ICES","SD30-31","Maturity","Commercial",890,null,null,834,93.707865168539328,10,"20 ind/halfcm/quarter, 2 and 3rd quarter"]
["SWE","SWE",2017,"Clupea harengus ","Baltic Sea","ICES","SD30","Age","Survey",0,1110,"\"Planned No ...at regional level\" presented here includes the part of the biological sampling that Sweden will be age reading according to the bilateral agreement",1306,{"$f":"M41/K41*100","v":117.65765765765765},24,"10 ind/halfcm/statistical rectangle"]
["SWE","SWE",2017,"Clupea harengus ","Baltic Sea","ICES","SD30","Weight","Survey",0,1110,"\"Planned No ...at regional level\" presented here includes the part of the biological sampling that Sweden will be age reading according to the bilateral agreement",1318,{"$f":"M42/K42*100","v":118.73873873873875},24,"10 ind/halfcm/statistical rectangle"]
["SWE","SWE",2017,"Clupea harengus ","Baltic Sea","ICES","SD30","Length","Survey",0,6200,"\"Planned No ...at regional level\" presented here includes the part of the biological sampling that Sweden will be age reading according to the bilateral agreement",7725,124.59677419354837,24,"subsample or total catch/haul"]
["SWE","SWE",2017,"Clupea harengus ","Baltic Sea","ICES","SD30","Sex","Survey",0,1110,"\"Planned No ...at regional level\" presented here includes the part of the biological sampling that Sweden will be age reading according to the bilateral agreement",1286,115.85585585585585,24,"10 ind/halfcm/statistical rectangle"]
["SWE","SWE",2017,"Clupea harengus ","Baltic Sea","ICES","SD30","Maturity","Survey",0,1110,"\"Planned No ...at regional level\" presented here includes the part of the biological sampling that Sweden will be age reading according to the bilateral agreement",1318,118.73873873873875,24,"10 ind/halfcm/statistical rectangle"]
["SWE","SWE",2017,"Gadus morhua","Baltic Sea","ICES","SD22-24","Age","Market ",2050,null,null,1904,{"$f":"(100*M46/J46)","v":92.878048780487802},50,"20 ind/size cat/sampling event","Sampling design was changed between 2016 and 2017. The planned number of sampled fish reflects the old samlingdesign, while the achieved number reflect the outcome of the new sampling design (as described in textbox 4A)."]
["SWE","SWE",2017,"Gadus morhua","Baltic Sea","ICES","SD22-24","Weight","Market ",2050,null,null,2776,{"$f":"(100*M47/J47)","v":135.41463414634146},50,"20 ind/size cat/sampling event","Sampling design was changed between 2016 and 2017. The planned number of sampled fish reflects the old samlingdesign, while the achieved number reflect the outcome of the new sampling design (as described in textbox 4A)."]
["SWE","SWE",2017,"Gadus morhua","Baltic Sea","ICES","SD22-24","Length","Market ",2050,null,null,3304,161.17073170731706,50,"all individuals in sampled box/sampling event ","Sampling design was changed between 2016 and 2017. The planned number of sampled fish reflects the old samlingdesign, while the achieved number reflect the outcome of the new sampling design (as described in textbox 4A)."]
["SWE","SWE",2017,"Gadus morhua","Baltic Sea","ICES","SD22-24","Age","Sea sampling",620,null,null,1904,307.09677419354841,39,"5 ind /cm and trip on the discard part","The planned number of fish is based on the achievements from reference years 2014-2015. During 2015 Swedish seasampling in the Baltic was heavily undersampled as a consequence of the implementation of landing obligation.  In 2017, more seasampling trips was conducted resulting in more fish sampled for biological parameters. "]
["SWE","SWE",2017,"Gadus morhua","Baltic Sea","ICES","SD22-24","Weight","Sea sampling",620,null,null,2514,{"$f":"(100*M50/J50)","v":405.48387096774195},39,"5 ind /cm and trip on the discard part","The planned number of fish is based on the achievements from reference years 2014-2015. During 2015 Swedish seasampling in the Baltic was heavily undersampled as a consequence of the implementation of landing obligation.  In 2017, more seasampling trips was conducted resulting in more fish sampled for biological parameters. "]
["SWE","SWE",2017,"Gadus morhua","Baltic Sea","ICES","SD22-24","Length","Sea sampling",620,null,null,3304,{"$f":"(100*M51/J51)","v":532.90322580645159},39,"total amount in subsample","The planned number of fish is based on the achievements from reference years 2014-2015. During 2015 Swedish seasampling in the Baltic was heavily undersampled as a consequence of the implementation of landing obligation.  In 2017, more seasampling trips was conducted resulting in more fish sampled for biological parameters. "]
["SWE","SWE",2017,"Gadus morhua","Baltic Sea","ICES","SD22-24","Age","Survey",300,null,"info on sampling 1 ind / haul",275,{"$f":"M52/J52*100","v":91.666666666666657},7,"8 ind/cm/SD 23"]
["SWE","SWE",2017,"Gadus morhua","Baltic Sea","ICES","SD22-24","Weight","Survey",300,null,null,274,91.333333333333329,7,"8 st/cm/SD 23"]
["SWE","SWE",2017,"Gadus morhua","Baltic Sea","ICES","SD22-24","Length","Survey",715,null,null,484,67.692307692307693,7,"total catch","Undersampled, see general explanation textbox 1C."]
["SWE","SWE",2017,"Gadus morhua","Baltic Sea","ICES","SD22-24","Sex","Survey",300,null,null,273,91,7,"8 ind/cm/SD 23"]
["SWE","SWE",2017,"Gadus morhua","Baltic Sea","ICES","SD22-24","Maturity","Survey",300,null,null,274,91.333333333333329,7,"8 ind/cm/SD 23"]
["SWE","SWE",2017,"Gadus morhua","Baltic Sea","ICES","SD25-32","Age","Market ",1945,null,null,4436,{"$f":"(100*M57/J57)","v":228.07197943444731},98,"10-20 ind/size cat/sampling event (depending on size cat.)","OSampling design was changed between 2016 and 2017. The planned number of sampled fish reflects the old samlingdesign, while the achieved number reflect the outcome of the new sampling design (as described in textbox 4A) \nOtholites in SD 25-32 are collected but not aged. "]
["SWE","SWE",2017,"Gadus morhua","Baltic Sea","ICES","SD25-32","Weight","Market ",2250,null,null,7548,{"$f":"(100*M58/J58)","v":335.46666666666664},98,"10-20 ind/size cat/sampling event (depending on size cat.)","OSampling design was changed between 2016 and 2017. The planned number of sampled fish reflects the old samlingdesign, while the achieved number reflect the outcome of the new sampling design (as described in textbox 4A) \nOtholites in SD 25-32 are collected but not aged. "]
["SWE","SWE",2017,"Gadus morhua","Baltic Sea","ICES","SD25-32","Length","Market ",2250,null,null,18741,832.93333333333328,98,"all individuals in sampled box/sampling event ","OSampling design was changed between 2016 and 2017. The planned number of sampled fish reflects the old samlingdesign, while the achieved number reflect the outcome of the new sampling design (as described in textbox 4A) \nOtholites in SD 25-32 are collected but not aged. "]
["SWE","SWE",2017,"Gadus morhua","Baltic Sea","ICES","SD25-32","Age","Sea sampling",890,null,null,1469,165.0561797752809,32,"5 ind /cm and trip on the discard part","\nOtholits in SD 25-32 are collected but not aged. "]
["SWE","SWE",2017,"Gadus morhua","Baltic Sea","ICES","SD25-32","Weight","Sea sampling",1010,null,null,2138,211.68316831683168,32,"5 ind /cm and trip on the discard part","Oversampling due to changes in sampling design, see textbox 1C."]
["SWE","SWE",2017,"Gadus morhua","Baltic Sea","ICES","SD25-32","Length","Sea sampling",1010,null,null,17587,1741.2871287128712,32,"total amount in subsample","Planned number is incorrect. Total amount in subsample is measured for length."]
["SWE","SWE",2017,"Gadus morhua","Baltic Sea","ICES","SD25-32","Age","Survey",1860,null,null,1320,70.967741935483872,126,"1ind/cm/haul (on BITS adjustments are made depending on nr of hauls per SD)","Undersampled, see general explanation textbox 1C."]
["SWE","SWE",2017,"Gadus morhua","Baltic Sea","ICES","SD25-32","Weight","Survey",1860,null,null,1322,71.075268817204289,126,"1ind/cm/haul (on BITS adjustments are made depending on nr of hauls per SD)","Undersampled, see general explanation textbox 1C."]
["SWE","SWE",2017,"Gadus morhua","Baltic Sea","ICES","SD25-32","Length","Survey",13680,null,null,8531,62.361111111111114,126,"subsample or total catch/haul","Undersampled, see general explanation textbox 1C."]
["SWE","SWE",2017,"Gadus morhua","Baltic Sea","ICES","SD25-32","Sex","Survey",1790,null,null,1227,68.547486033519561,126,"1ind/cm/haul (on BITS adjustments are made depending on nr of hauls per SD)","Undersampled, see general explanation textbox 1C."]
["SWE","SWE",2017,"Gadus morhua","Baltic Sea","ICES","SD25-32","Maturity","Survey",1790,null,null,1227,68.547486033519561,126,"1ind/cm/haul (on BITS adjustments are made depending on nr of hauls per SD)","Undersampled, see general explanation textbox 1C."]
["SWE","SWE",2017,"Platichthys flesus ","Baltic Sea","ICES","SD22-32","Age","Sea sampling ",330,null,null,194,58.787878787878789,32,"5 ind /cm and trip on the discard part","Undersampled due to lo low effort in the fishery. "]
["SWE","SWE",2017,"Platichthys flesus ","Baltic Sea","ICES","SD22-32","Weight","Sea sampling ",495,null,null,201,40.606060606060609,32,"5 ind /cm and trip on the discard part","Undersampled due to lo low effort in the fishery. "]
["SWE","SWE",2017,"Platichthys flesus ","Baltic Sea","ICES","SD22-32","Length","Sea sampling ",495,null,null,481,97.171717171717177,32,"5 ind /cm and trip on the discard part + 50 ind / haul for landed part "]
["SWE","SWE",2017,"Platichthys flesus ","Baltic Sea","ICES","SD22-32","Sex","Sea sampling ",150,null,null,145,96.666666666666671,32,"5 ind /cm and trip on the discard part"]
["SWE","SWE",2017,"Platichthys flesus ","Baltic Sea","ICES","SD22-32","Maturity","Sea sampling ",200,null,null,0,0,32,0,"No maturity is sampled and recorded. Not used for assessment."]
["SWE","SWE",2017,"Platichthys flesus ","Baltic Sea","ICES","SD22-32","Age","survey",1860,null,null,1632,87.741935483870975,80,"20 ind/cm/SD","Undersampled, see general explanation textbox 1C."]
["SWE","SWE",2017,"Platichthys flesus ","Baltic Sea","ICES","SD22-32","Weight","survey",1860,null,null,1643,88.333333333333329,80,"20 ind/cm/SD","Undersampled, see general explanation textbox 1C."]
["SWE","SWE",2017,"Platichthys flesus ","Baltic Sea","ICES","SD22-32","Length","survey",6650,null,null,7986,120.09022556390978,80,"20 ind/cm/SD"]
["SWE","SWE",2017,"Platichthys flesus ","Baltic Sea","ICES","SD22-32","Sex","survey",1860,null,null,1643,88.333333333333329,80,"20 ind/cm/SD","Undersampled, see general explanation textbox 1C."]
["SWE","SWE",2017,"Platichthys flesus ","Baltic Sea","ICES","SD22-32","Maturity","survey",1860,null,null,1643,88.333333333333329,80,"20 ind/cm/SD","Undersampled, see general explanation textbox 1C."]
["SWE","SWE",2017,"Sprattus sprattus","Baltic Sea","ICES","SD22-32","Age","Market",4840,null,null,4918,101.61157024793388,63,"max 150 ind/box : 4 box/SD/quarter"]
["SWE","SWE",2017,"Sprattus sprattus","Baltic Sea","ICES","SD22-32","Weight","Market",4870,null,null,4934,101.31416837782341,63,"max 150 ind/box : 4 box/SD/quarter"]
["SWE","SWE",2017,"Sprattus sprattus","Baltic Sea","ICES","SD22-32","Length","Market",4870,null,null,4934,101.31416837782341,63,"max 150 ind/box : 4 box/SD/quarter"]
["SWE","SWE",2017,"Sprattus sprattus","Baltic Sea","ICES","SD22-32","Sex","Market",4820,null,null,4934,102.36514522821577,63,"max 150 ind/box : 4 box/SD/quarter"]
["SWE","SWE",2017,"Sprattus sprattus","Baltic Sea","ICES","SD22-32","Maturity","Market",4870,null,null,4934,101.31416837782341,63,"max 150 ind/box : 4 box/SD/quarter"]
["SWE","SWE",2017,"Sprattus sprattus","Baltic Sea","ICES","SD22-32","Age","Survey",1320,null,null,1292,97.878787878787875,46,"5 ind/halfcm/haul"]
["SWE","SWE",2017,"Sprattus sprattus","Baltic Sea","ICES","SD22-32","Weight","Survey",1320,null,null,1294,98.030303030303031,46,"5 ind/halfcm/haul"]
["SWE","SWE",2017,"Sprattus sprattus","Baltic Sea","ICES","SD22-32","Length","Survey",9360,null,null,9401,100.43803418803418,46,"subsample or total catch/haul"]
["SWE","SWE",2017,"Sprattus sprattus","Baltic Sea","ICES","SD22-32","Sex","Survey",1120,null,null,1289,115.08928571428572,46,"5 ind/halfcm/haul"]
["SWE","SWE",2017,"Sprattus sprattus","Baltic Sea","ICES","SD22-32","Maturity","Survey",0,null,null,0,"NA",46,0,"\nNot sampled for maturity."]
["SWE","SWE",2017,"Anguilla anguilla ","North sea and Eastern Arctic","EIFAAC/ICES/GFCM ","IIIa","Age","Survey",600,null,null,645,{"$f":"M88/J88","v":1.075},8,"Set survey goal to sample 600 yellow eel in three different areas (200 per area) selected by length stratification (5-7 ind/cm). One area in SD 21 and two in SD 20."]
["SWE","SWE",2017,"Anguilla anguilla ","North sea and Eastern Arctic","EIFAAC/ICES/GFCM ","IIIa","Weight","Survey",600,null,null,647,1.0783333333333334,8,"Set survey goal to sample 600 yellow eel in three different areas (200 per area) selected by length stratification (5-7 ind/cm). One area in SD 21 and two in SD 20."]
["SWE","SWE",2017,"Anguilla anguilla ","North sea and Eastern Arctic","EIFAAC/ICES/GFCM ","IIIa","Length","Survey",2270,null,null,1904,0.83876651982378858,8,"All individuals collected are measured for length.","In two out of the three areas sampled the catches of eel were lower than expected, thus the low % of achievement eventhough planned maximum effort was carried out. "]
["SWE","SWE",2017,"Anguilla anguilla ","North sea and Eastern Arctic","EIFAAC/ICES/GFCM ","IIIa","Sex","Survey",600,null,null,647,1.0783333333333334,8,"Set survey goal to sample 600 yellow eel in three different areas (200 per area) selected by length stratification (5-7 ind/cm). One area in SD 21 and two in SD 20."]
["SWE","SWE",2017,"Anguilla anguilla ","North sea and Eastern Arctic","EIFAAC/ICES/GFCM ","IIIa","Maturity","Survey","Not applicable",null,"Sexual maturity: Yellow eels and silver eels  are handled separately, hence sampling stratified on maturity.","NA","NA","NA","NA"]
["SWE","SWE",2017,"Clupea harengus ","North Sea and Eastern Arctic","ICES","SD22-24, IIIa","Age","Market",4515,null,null,4627,102.48062015503876,73,"max 150 ind/box : 4 box/SD/quarter"]
["SWE","SWE",2017,"Clupea harengus ","North Sea and Eastern Arctic","ICES","SD22-24, IIIa","Weight","Market",4520,null,null,5239,115.90707964601769,73,"max 150 ind/box : 4 box/SD/quarter"]
["SWE","SWE",2017,"Clupea harengus ","North Sea and Eastern Arctic","ICES","SD22-24, IIIa","Length","Market",4520,null,null,5239,115.90707964601769,73,"max 150 ind/box : 4 box/SD/quarter"]
["SWE","SWE",2017,"Clupea harengus ","North Sea and Eastern Arctic","ICES","SD22-24, IIIa","Sex","Market",4345,null,null,4066,93.578826237054074,73,"max 150 ind/box : 4 box/SD/quarter"]
["SWE","SWE",2017,"Clupea harengus ","North Sea and Eastern Arctic","ICES","SD22-24, IIIa","Maturity","Market",4400,null,null,4137,94.022727272727266,73,"max 150 ind/box : 4 box/SD/quarter"]
["SWE","SWE",2017,"Clupea harengus ","North Sea and Eastern Arctic","ICES","SD22-24, IIIa","Age","Survey",3090,null,null,3036,98.252427184466015,100,"2 ind/halfcm/haul"]
["SWE","SWE",2017,"Clupea harengus ","North Sea and Eastern Arctic","ICES","SD22-24, IIIa","Weight","Survey",3090,null,null,3043,98.478964401294505,100,"2 ind/halfcm/haul"]
["SWE","SWE",2017,"Clupea harengus ","North Sea and Eastern Arctic","ICES","SD22-24, IIIa","Length","Survey",14240,null,null,16938,118.94662921348316,100,"subsample or total catch/haul"]
["SWE","SWE",2017,"Clupea harengus ","North Sea and Eastern Arctic","ICES","SD22-24, IIIa","Sex","Survey",2595,null,null,2721,104.85549132947978,100,"2 ind/halfcm/haul"]
["SWE","SWE",2017,"Clupea harengus ","North Sea and Eastern Arctic","ICES","SD22-24, IIIa","Maturity","Survey",3090,null,null,3042,98.446601941747574,100,"2 ind/halfcm/haul"]
["SWE","SWE",2017,"Gadus morhua","North Sea and Eastern Arctic","ICES","IIIaN","Age","Market ",1985,null,null,1979,99.697732997481097,73,"max 100 ind/EU scale size/quarter"]
["SWE","SWE",2017,"Gadus morhua","North Sea and Eastern Arctic","ICES","IIIaN","Weight","Market ",1985,null,null,1982,99.848866498740549,73,"max 100 ind/EU scale size/quarter"]
["SWE","SWE",2017,"Gadus morhua","North Sea and Eastern Arctic","ICES","IIIaN","Length","Market ",1985,null,null,1982,99.848866498740549,73,"generated from specimen"]
["SWE","SWE",2017,"Gadus morhua","North Sea and Eastern Arctic","ICES","IIIaN","Age","Sea sampling",730,null,null,694,95.06849315068493,102,"3ind/cm/trip"]
["SWE","SWE",2017,"Gadus morhua","North Sea and Eastern Arctic","ICES","IIIaN","Weight","Sea sampling",730,null,null,694,95.06849315068493,102,"3ind/cm/trip"]
["SWE","SWE",2017,"Gadus morhua","North Sea and Eastern Arctic","ICES","IIIaN","Length","Sea sampling",730,null,null,2811,385.0684931506849,102,"total amount in subsample","Planned number is incorrect. Total amount in subsample is measured for length."]
["SWE","SWE",2017,"Gadus morhua","North Sea and Eastern Arctic","ICES","IIIaN","Age","Survey",870,null,null,901,103.56321839080461,61,"1 ind/cm/haul"]
["SWE","SWE",2017,"Gadus morhua","North Sea and Eastern Arctic","ICES","IIIaN","Weight","Survey",870,null,null,901,103.56321839080461,61,"1 ind/cm/haul"]
["SWE","SWE",2017,"Gadus morhua","North Sea and Eastern Arctic","ICES","IIIaN","Length","Survey",2520,null,null,2524,100.15873015873015,61,"subsample or total catch/haul"]
["SWE","SWE",2017,"Gadus morhua","North Sea and Eastern Arctic","ICES","IIIaN","Sex","Survey",840,null,null,840,100,61,"1 ind/cm/haul"]
["SWE","SWE",2017,"Gadus morhua","North Sea and Eastern Arctic","ICES","IIIaN","Maturity","Survey",840,null,null,840,100,61,"1 ind/cm/haul"]
["SWE","SWE",2017,"Gadus morhua","North Sea and Eastern Arctic","ICES","IIIaS","Age","Market ",1140,null,null,1288,112.98245614035088,63,"max 100 ind/EU scale size/quarter"]
["SWE","SWE",2017,"Gadus morhua","North Sea and Eastern Arctic","ICES","IIIaS","Weight","Market ",1140,null,null,1288,112.98245614035088,63,"max 100 ind/EU scale size/quarter"]
["SWE","SWE",2017,"Gadus morhua","North Sea and Eastern Arctic","ICES","IIIaS","Length","Market ",1140,null,null,1288,{"$f":"M116/J116*100","v":112.98245614035088},63,"generated from specimen"]
["SWE","SWE",2017,"Gadus morhua","North Sea and Eastern Arctic","ICES","IIIaS","Age","Sea sampling",550,null,null,479,87.090909090909079,25,"3ind/cm/trip","Slightly under sampled due to low catches of cod and decreased number of lengthclasses."]
["SWE","SWE",2017,"Gadus morhua","North Sea and Eastern Arctic","ICES","IIIaS","Weight","Sea sampling",550,null,null,479,87.090909090909079,25,"3ind/cm/trip","Slightly under sampled due to low catches of cod and decreased number of lengthclasses."]
["SWE","SWE",2017,"Gadus morhua","North Sea and Eastern Arctic","ICES","IIIaS","Length","Sea sampling",550,null,null,1012,184,25,"total amount in subsample","Planned number is incorrect. Total amount in subsample is measured for length."]
["SWE","SWE",2017,"Gadus morhua","North Sea and Eastern Arctic","ICES","IIIaS","Age","Survey",570,null,null,286,50.175438596491226,39,"1 ind/cm/haul","Undersampled, see general explanation textbox 1C."]
["SWE","SWE",2017,"Gadus morhua","North Sea and Eastern Arctic","ICES","IIIaS","Weight","Survey",570,null,null,286,50.175438596491226,39,"1 ind/cm/haul","Undersampled, see general explanation textbox 1C."]
["SWE","SWE",2017,"Gadus morhua","North Sea and Eastern Arctic","ICES","IIIaS","Length","Survey",955,null,null,649,67.958115183246065,39,"subsample or total catch/haul","Undersampled, see general explanation textbox 1C."]
["SWE","SWE",2017,"Gadus morhua","North Sea and Eastern Arctic","ICES","IIIaS","Sex","Survey",570,null,null,269,47.192982456140356,39,"1 ind/cm/haul","Undersampled, see general explanation textbox 1C."]
["SWE","SWE",2017,"Gadus morhua","North Sea and Eastern Arctic","ICES","IIIaS","Maturity","Survey",570,null,null,269,47.192982456140356,39,"1 ind/cm/haul","Undersampled, see general explanation textbox 1C."]
["SWE","SWE",2017,"Glyptocephalus cynoglossus ","North Sea and Eastern Arctic","ICES","IIIa","Age","Market + Seasampling",1090,null,null,564,51.743119266055047,52,"Market: first 100 from landing fraction or total catch \nSea: Length stratified, 3 per cm","Undersampled, Market samples are collected on observer trips, few fish in catches and misunderstanding in sampling effort. Costly to compensate by sampling from harbour."]
["SWE","SWE",2017,"Glyptocephalus cynoglossus ","North Sea and Eastern Arctic","ICES","IIIa","Weight","Market + Seasampling",1090,null,null,564,51.743119266055047,52,"Market: first 100 from landing fraction or total catch \nSea: Length stratified, 3 per cm","Undersampled, Market samples are collected on observer trips, few fish in catches and misunderstanding in sampling effort. Costly to compensate by sampling from harbour."]
["SWE","SWE",2017,"Glyptocephalus cynoglossus ","North Sea and Eastern Arctic","ICES","IIIa","Length","Market + Seasampling",1090,null,null,941,86.330275229357795,52,"Market: first 100 from landing fraction or total catch \nSea: Length stratified, 3 per cm","Slightly Undersampled, Market samples are collected on observer trips, few fish in catches and misunderstanding in sampling effort. Costly to compensate by sampling from harbour."]
["SWE","SWE",2017,"Glyptocephalus cynoglossus ","North Sea and Eastern Arctic","ICES","IIIa","Sex","Market + Seasampling",645,null,null,379,58.759689922480618,52,"Market: first 100 from landing fraction or total catch \nSea: Length stratified, 3 per cm","Undersampled, Market samples are collected on observer trips, few fish in catches and misunderstanding in sampling effort. Costly to compensate by sampling from harbour."]
["SWE","SWE",2017,"Glyptocephalus cynoglossus ","North Sea and Eastern Arctic","ICES","IIIa","Maturity","Market + Seasampling",645,null,null,379,58.759689922480618,52,"Market: first 100 from landing fraction or total catch \nSea: Length stratified, 3 per cm","Undersampled, Market samples are collected on observer trips, few fish in catches and misunderstanding in sampling effort. Costly to compensate by sampling from harbour."]
["SWE","SWE",2017,"Glyptocephalus cynoglossus ","North Sea and Eastern Arctic","ICES","IIIa","Age","Survey",305,null,null,87,28.524590163934427,100,"Sea: Length stratified, 3 ind per cm per trip","Undersampled, see general explanation textbox 1C."]
["SWE","SWE",2017,"Glyptocephalus cynoglossus ","North Sea and Eastern Arctic","ICES","IIIa","Weight","Survey",305,null,null,87,28.524590163934427,100,"total catch","Undersampled, see general explanation textbox 1C."]
["SWE","SWE",2017,"Glyptocephalus cynoglossus ","North Sea and Eastern Arctic","ICES","IIIa","Length","Survey",305,null,null,87,28.524590163934427,100,"total catch","Undersampled, see general explanation textbox 1C."]
["SWE","SWE",2017,"Glyptocephalus cynoglossus ","North Sea and Eastern Arctic","ICES","IIIa","Sex","Survey",290,null,null,87,30,100,"total catch","Undersampled, see general explanation textbox 1C."]
["SWE","SWE",2017,"Glyptocephalus cynoglossus ","North Sea and Eastern Arctic","ICES","IIIa","Maturity","Survey",290,null,null,87,30,100,"total catch","Undersampled, see general explanation textbox 1C."]
["SWE","SWE",2017,"Melanogrammus aeglefinus ","North Sea and Eastern Arctic","ICES","IV, IIIa","Age","Survey",485,null,null,405,83.505154639175259,100,"1 ind/cm/haul","Undersampled, see general explanation textbox 1C."]
["SWE","SWE",2017,"Melanogrammus aeglefinus ","North Sea and Eastern Arctic","ICES","IV, IIIa","Weight","Survey",485,null,null,405,83.505154639175259,100,"1 ind/cm/haul","Undersampled, see general explanation textbox 1C."]
["SWE","SWE",2017,"Melanogrammus aeglefinus ","North Sea and Eastern Arctic","ICES","IV, IIIa","Length","Survey",1965,null,null,1924,97.913486005089055,100,"subsample or total catch/haul"]
["SWE","SWE",2017,"Melanogrammus aeglefinus ","North Sea and Eastern Arctic","ICES","IV, IIIa","Sex","Survey",415,null,null,327,78.795180722891573,100,"1 ind/cm/haul","Undersampled, see general explanation textbox 1C."]
["SWE","SWE",2017,"Melanogrammus aeglefinus ","North Sea and Eastern Arctic","ICES","IV, IIIa","Maturity","Survey",415,null,null,327,78.795180722891573,100,"1 ind/cm/haul","Undersampled, see general explanation textbox 1C."]
["SWE","SWE",2017,"Nephrops norvegicus ","North Sea and Eastern Arctic","ICES","IIIa, FU3","Weight","Sea sampling","NA",null,"standard weight-length key is used in both Sweden Denmark and Norway. Weights are not taken during sea sampling.","NA",null,"NA","NA"]
["SWE","SWE",2017,"Nephrops norvegicus ","North Sea and Eastern Arctic","ICES","IIIa, FU3","Length","Sea sampling",8855,null,null,10311,{"$f":"100*M141/J141","v":116.44268774703558},31,"Pots; 3 trips/quarter sampled. Trawl with grid; 3 trips/quarter sampled. \nTrawls without grid;catch-dependent, if there is a landing of Nephrops, then there is a sample."]
["SWE","SWE",2017,"Nephrops norvegicus ","North Sea and Eastern Arctic","ICES","IIIa, FU3","Sex","Sea sampling",8855,null,null,10311,{"$f":"100*M142/J142","v":116.44268774703558},31,"Pots; 3 trips/quarter sampled. Trawl with grid; 3 trips/quarter sampled. \nTrawls without grid;catch-dependent, if there is a landing of Nephrops, then there is a sample."]
["SWE","SWE",2017,"Nephrops norvegicus ","North Sea and Eastern Arctic","ICES","IIIa, FU3","Maturity","Sea sampling",8855,null,null,10311,116.44268774703558,31,"Pots; 3 trips/quarter sampled. Trawl with grid; 3 trips/quarter sampled. \nTrawls without grid;catch-dependent, if there is a landing of Nephrops, then there is a sample."]
["SWE","SWE",2017,"Nephrops norvegicus ","North Sea and Eastern Arctic","ICES","IIIa, FU4","Weight","Sea sampling","NA",null,"standard weight-length key is used in both Sweden Denmark and Norway. Weights are not taken during sea sampling.","NA",null,"NA","NA"]
["SWE","SWE",2017,"Nephrops norvegicus ","North Sea and Eastern Arctic","ICES","IIIa, FU4","Length","Sea sampling",4925,null,null,7497,152.2233502538071,22," Trawl with grid; 3 trips/quarter sampled. \nTrawls without grid;catch-dependent, if there is a landing of Nephrops, then there is a sample."]
["SWE","SWE",2017,"Nephrops norvegicus ","North Sea and Eastern Arctic","ICES","IIIa, FU4","Sex","Sea sampling",4925,null,null,7497,152.2233502538071,22," Trawl with grid; 3 trips/quarter sampled. \nTrawls without grid;catch-dependent, if there is a landing of Nephrops, then there is a sample."]
["SWE","SWE",2017,"Nephrops norvegicus ","North Sea and Eastern Arctic","ICES","IIIa, FU4","Maturity","Sea sampling",4925,null,null,7497,152.2233502538071,22," Trawl with grid; 3 trips/quarter sampled. \nTrawls without grid;catch-dependent, if there is a landing of Nephrops, then there is a sample."]
["SWE","SWE",2017,"Pandalus borealis","North Sea and Eastern Arctic","ICES","IIIa, IVa east","Weight","Sea sampling",3840,null,null,6079,{"$f":"M148/J148*100","v":158.30729166666666},45,"1 samp/trip á 6 trips per quarter","Slightly oversampled but according to sampling protocol."]
["SWE","SWE",2017,"Pandalus borealis","North Sea and Eastern Arctic","ICES","IIIa, IVa east","Length","Sea sampling",13150,null,null,15791,120.08365019011407,45,"1 samp/trip á 6 trips per quarter"]
["SWE","SWE",2017,"Pandalus borealis","North Sea and Eastern Arctic","ICES","IIIa, IVa east","Sex","Sea sampling",13150,null,null,15791,120.08365019011407,45,"1 samp/trip á 6 trips per quarter"]
["SWE","SWE",2017,"Pandalus borealis","North Sea and Eastern Arctic","ICES","IIIa, IVa east","Maturity","Sea sampling",13150,null,null,15791,120.08365019011407,45,"1 samp/trip á 6 trips per quarter"]
["SWE","SWE",2017,"Pleuronectes platessa","North Sea and Eastern Arctic","ICES","IIIa","Age","Survey",1525,null,null,882,57.83606557377049,100,"1 ind/cm/haul","Undersampled, see general explanation textbox 1C."]
["SWE","SWE",2017,"Pleuronectes platessa","North Sea and Eastern Arctic","ICES","IIIa","Weight","Survey",1525,null,null,890,58.360655737704917,100,"1 ind/cm/haul","Undersampled, see general explanation textbox 1C."]
["SWE","SWE",2017,"Pleuronectes platessa","North Sea and Eastern Arctic","ICES","IIIa","Length","Survey",5230,null,null,3111,59.48374760994264,100,"subsample or total catch/haul","Undersampled, see general explanation textbox 1C."]
["SWE","SWE",2017,"Pleuronectes platessa","North Sea and Eastern Arctic","ICES","IIIa","Sex","Survey",1525,null,null,878,57.57377049180328,100,"1 ind/cm/haul","Undersampled, see general explanation textbox 1C."]
["SWE","SWE",2017,"Pleuronectes platessa","North Sea and Eastern Arctic","ICES","IIIa","Maturity","Survey",1525,null,null,878,57.57377049180328,100,"1 ind/cm/haul","Undersampled, see general explanation textbox 1C."]
["SWE","SWE",2017,"Pleuronectes platessa","North Sea and Eastern Arctic","ICES","IIIa","Age","Sea sampling",1120,null,null,1577,140.80357142857142,153,"3ind/cm/trip"]
["SWE","SWE",2017,"Pleuronectes platessa","North Sea and Eastern Arctic","ICES","IIIa","Weight","Sea sampling",1120,null,null,1590,141.96428571428572,153,"3ind/cm/trip"]
["SWE","SWE",2017,"Pleuronectes platessa","North Sea and Eastern Arctic","ICES","IIIa","Length","Sea sampling",1120,null,null,5704,509.28571428571428,153,"total amount in subsample","Planned number is incorrect. Total amount in subsample is measured for length."]
["SWE","SWE",2017,"Sprattus sprattus","North Sea and Eastern Arctic","ICES","IIIa","Age","Survey",1680,null,null,1262,75.11904761904762,100,"5 ind/halfcm/haul","Undersampled, see general explanation textbox 1C."]
["SWE","SWE",2017,"Sprattus sprattus","North Sea and Eastern Arctic","ICES","IIIa","Weight","Survey",1680,null,null,1265,75.297619047619051,100,"5 ind/halfcm/haul","Undersampled, see general explanation textbox 1C."]
["SWE","SWE",2017,"Sprattus sprattus","North Sea and Eastern Arctic","ICES","IIIa","Length","Survey",5370,null,null,3686,68.640595903165732,100,"subsample or total catch/haul","Undersampled, see general explanation textbox 1C."]
["SWE","SWE",2017,"Sprattus sprattus","North Sea and Eastern Arctic","ICES","IIIa","Sex","Survey",1600,null,null,1258,78.625,100,"5 ind/halfcm/haul","Undersampled, see general explanation textbox 1C."]
["SWE","SWE",2017,"Sprattus sprattus","North Sea and Eastern Arctic","ICES","IIIa","Maturity","Survey",1680,null,null,1265,75.297619047619051,100,"5 ind/halfcm/haul","Undersampled, see general explanation textbox 1C."]
["SWE","SWE",2017,"Sprattus sprattus","North Sea and Eastern Arctic","ICES","IIIa","Age","Market",1140,null,null,410,35.964912280701753,4,"max 150 ind/box : 4 box/SD/quarter","Undersampled due to to low fishing effort /landings."]
["SWE","SWE",2017,"Sprattus sprattus","North Sea and Eastern Arctic","ICES","IIIa","Weight","Market",1140,null,null,410,35.964912280701753,4,"max 150 ind/box : 4 box/SD/quarter","Undersampled due to to low fishing effort /landings."]
["SWE","SWE",2017,"Sprattus sprattus","North Sea and Eastern Arctic","ICES","IIIa","Length","Market",1140,null,null,410,35.964912280701753,4,"max 150 ind/box : 4 box/SD/quarter","Undersampled due to to low fishing effort /landings."]
["SWE","SWE",2017,"Sprattus sprattus","North Sea and Eastern Arctic","ICES","IIIa","Sex","Market",1140,null,null,410,35.964912280701753,4,"max 150 ind/box : 4 box/SD/quarter","Undersampled due to to low fishing effort /landings."]
["SWE","SWE",2017,"Sprattus sprattus","North Sea and Eastern Arctic","ICES","IIIa","Maturity","Market",1140,null,null,410,35.964912280701753,4,"max 150 ind/box : 4 box/SD/quarter","Undersampled due to to low fishing effort /landings."]
["SWE","SWE",2017,"Trisopterus esmarki","North Sea and Eastern Arctic","ICES","IIIa","Age","Survey",245,null,null,430,175.51020408163265,100,"1 ind/cm/haul","Oversampled, see general explanation in textbox 1C."]
["SWE","SWE",2017,"Trisopterus esmarki","North Sea and Eastern Arctic","ICES","IIIa","Weight","Survey",245,null,null,432,176.32653061224491,100,"1 ind/cm/haul","Oversampled, see general explanation in textbox 1C."]
["SWE","SWE",2017,"Trisopterus esmarki","North Sea and Eastern Arctic","ICES","IIIa","Length","Survey",2370,null,null,4502,189.957805907173,100,"subsample or total catch/haul","Oversampled, see general explanation in textbox 1C."]
["SWE","SWE",2017,"Trisopterus esmarki","North Sea and Eastern Arctic","ICES","IIIa","Sex","Survey",170,null,null,324,190.58823529411762,100,"1 ind/cm/haul","Oversampled, see general explanation in textbox 1C."]
["SWE","SWE",2017,"Trisopterus esmarki","North Sea and Eastern Arctic","ICES","IIIa","Maturity","Survey",170,null,null,325,191.1764705882353,100,"1 ind/cm/haul","Oversampled, see general explanation in textbox 1C."]
["SWE","SWE",2017,"Pollachius virens","North Sea and Eastern Arctic","ICES","IIIa","Age","Survey",190,null,null,261,137.36842105263159,100,"1 ind/cm/haul"]
["SWE","SWE",2017,"Pollachius virens","North Sea and Eastern Arctic","ICES","IIIa","Weight","Survey",190,null,null,261,137.36842105263159,100,"1 ind/cm/haul"]
["SWE","SWE",2017,"Pollachius virens","North Sea and Eastern Arctic","ICES","IIIa","Length","Survey",360,null,null,744,206.66666666666669,100,"subsample or total catch/haul","Oversampled, see general explanation in textbox 1C."]
["SWE","SWE",2017,"Pollachius virens","North Sea and Eastern Arctic","ICES","IIIa","Sex","Survey",190,null,null,241,126.84210526315789,100,"1 ind/cm/haul"]
["SWE","SWE",2017,"Pollachius virens","North Sea and Eastern Arctic","ICES","IIIa","Maturity","Survey",190,null,null,241,126.84210526315789,100,"1 ind/cm/haul"]
["SWE","SWE",2017,"Merlangius merlangus","North Sea and Eastern Arctic","ICES","IIIa","Age","Survey",840,null,null,1507,179.4047619047619,100,"1 ind/cm/haul","Oversampled, see general explanation in textbox 1C."]
["SWE","SWE",2017,"Merlangius merlangus","North Sea and Eastern Arctic","ICES","IIIa","Weight","Survey",850,null,null,1510,177.64705882352939,100,"1 ind/cm/haul","Oversampled, see general explanation in textbox 1C."]
["SWE","SWE",2017,"Merlangius merlangus","North Sea and Eastern Arctic","ICES","IIIa","Length","Survey",850,null,null,11237,1322,100,"subsample or total catch/haul","Planned number is incorrect.  A subsample or tatal catch/ haul is measured for length.  "]
["SWE","SWE",2017,"Merlangius merlangus","North Sea and Eastern Arctic","ICES","IIIa","Sex","Survey",690,null,null,1295,187.68115942028984,100,"1 ind/cm/haul","Oversampled, see general explanation in textbox 1C."]
["SWE","SWE",2017,"Merlangius merlangus","North Sea and Eastern Arctic","ICES","IIIa","Maturity","Survey",690,null,null,1297,187.97101449275362,100,"1 ind/cm/haul","Oversampled, see general explanation in textbox 1C."]

{"sheet":"Table1D Recreational Fisheries","index":3,"n_rows":15,"n_cols":25,"rows_kept":15,"cut":false,"hidden":false,"merged":[]}
["Table 1D: Recreational fisheries"]
[null,null,null,null,null,null,null,null,null,null,null,null,null,null,null,null,null,null,null,null,null,null,null,"WP  years","2017-2019"]
[null,null,null,null,null,null,null,null,null,null,null,null,null,null,null,null,null,null,null,null,null,null,null,"AR year",2017]
["MS","Sampling year","Area/EMU","RFMO/RFO/IO","Species","Applicable (Species present in the MS?)","Reasons for not sampling","Threshold (Y/N)","Annual estimate of catch? (Y/N)","Annual percentage of released catch? (Y/N)","Collection of catch composition data? (Y/N)","Type of Survey","Comments","Unique Survey ID or Name of sampling scheme\n(Linked to Table 5A)","Is the survey part of a pilot study or part of an established programme? \n","Frequency","Is the sampling design documented?\n(Linked to Table 5A)","Are non-response and refusal recorded?\n(Linked to Table 5A)","Are the editing and imputation methods documented? (Linked to Table 5A)","Estimation of  the yearly weight and numbers of catch (Y/N)","Estimation of  the yearly percentage release (Y/N)","Collection of catch composition data (Y/N)","Evaluated by external experts/bodies (Y/N)","Conform with accepted standards Y/N","AR Comments "]
["SWE",2017,"Baltic Sea","ICES","Salmo salar","Y",null,"N","Y","Y","Y","Cencus river catches and a\nyearly postal questionnaire sent to approximately 10,000 randomly selected permanent residents in Sweden, age 16-80 year. The questionnaire will be compared with previous years questionnaires and on site studies regarding trolling an recreational fisheries with trap nets","Recreational fisheries is defined as all fishing activities carried out by those without a commercial fishing license. ","Recreational river catches survey & recreational fisheries- postal questionnaire","Routine","annual","Y","N for River catches, Y for postal questionair","Y","Y (for River catch survey numbers and weight, for postal questionaire  weight)","N for postal questionaire, Y for river catches survey","Y","Y","Y","WGBAST"]
["SWE",2017,"Baltic Sea","ICES","Salmo trutta","Y",null,"Y","Y","N","N","A national yearly postal questionnaire sent to 11,000 randomly selected permanent residents in Sweden, age 16-80 year. The questionnaire will be compared with previous years questionnaires and on site studies regarding trolling an recreational fisheries with trap nets.","Recreational fisheries is defined as all fishing activities carried out by those without a commercial fishing license. ","recreational fisheries- postal questionnaire","Routine","annual","Y","Y","Y","Y (weight)","N","N","Y","Y","WGTRUTTA"]
["SWE",2017,"Baltic Sea","ICES, Helcom","Anguilla anguilla","Y","Recreational catches is not allowed due to Swedish legislation (FIFS 2004:36) ","Y","N","N","N","NA",null,"NA","NA","NA","NA","NA","NA","NA","NA","NA","NA","NA"]
["SWE",2017,"Baltic Sea","ICES","Gadus morhua","Y",null,"N","Y","N","Y","A yerly postal questionnaire sent to 11,0000 randomly selected permanent residents in Sweden, age 16-80 year. The questionnaire will be combined with a pilotstudy as an on site study for 2017 -2018 in ICES area 24 and 23 to get more detailed information on catches and catch composition data","See details about  Pilot Study1 in text box","SLU-MRFS","Pilot study","Quarterly","Y, on internal server","Y","Y, on internal server","Y","Y","Y","Y (WGRFS/WGBFAS)","Y","Intercepting methods concerning a rare occurance as RecFish need substantial sampling or supporting information."]
["SWE",2017,"North Sea and Eastern Arctic","NASCO, ICES, Ospar, Helcom","Salmo salar","Y",null,"Y","Y","N","N","A postal questionnaire sent to 11,000 randomly selected permanent residents in Sweden, age 16-80 year","Recreational fisheries is defined as all fishing activities carried out by those without a commercial fishing license. ","recreational fisheries- postal questionnaire","Routine","annual","Y","Y","Y","Y (weight)","N","N","Y","Y","WGNAS"]
["SWE",2017,"North Sea and Eastern Arctic","EIFAAC/ICES","Anguilla anguilla","Y","Recreational catches is not allowed due to Swedish legislation (FIFS 2004:36) ","Y","N","N","N","NA",null,"NA","NA","NA","NA","NA","NA","NA","NA","NA","NA","NA"]
["SWE",2017,"Freshwater Sweden (one single EMU only)","EIFAAC/ICES","Anguilla anguilla","Y","NA","N","Y","Y","Y","To be decided","See details about Pilot Study 1 in text box","NA","NA","NA","NA","NA","NA","NA","NA","NA","NA","NA","No pilot study was implemented as recreational catches is not allowed due to Swedish legislation (FIFS 2004:36)."]
["SWE",2017,"North Sea and Eastern Arctic","ICES","Gadus morhua","Y",null,"N","Y","N","N","A postal questionnaire sent to 11,000 randomly selected permanent residents in Sweden, age 16-80 year ","Recreational fisheries is defined as all fishing activities carried out by those without a commercial fishing license. ","recreational fisheries- postal questionnaire","Routine ","annual ","Y","Y","Y","N (only weight)","N","N","N","Y","For Skagerrak and Kattegat "]
["SWE",2017,"North Sea and Eastern Arctic","ICES, Ospar, Helcom","Pollachius pollachius","Y",null,"Y","Y","N","N","A postal questionnaire sent to 11,000 randomly selected permanent residents in Sweden, age 16-80 year ","Recreational fisheries is defined as all fishing activities carried out by those without a commercial fishing license. ","recreational fisheries- postal questionnaire","Routine","annual ","Y","Y","Y","N (only weight)","N","N","N","Y","For Skagerrak and Kattegat "]
["SWE",2017,"North Sea and Eastern Arctic","ICES, Ospar, Helcom","Dicentrarchus labrax","Y","Recreational catches is not consider to be a limiting factor for populations of labrax in Swedish waters, their occurence is mainly regulated by warm water outflows.","Y","N","N","N","NA",null,"NA","NA","NA","NA","NA","NA","NA","NA","NA","NA","NA","NA"]
["SWE",2017,"North Sea and Eastern Arctic","ICES, Ospar, Helcom","Elasmobranchii, Rajiformes","Y","Recreational catches is nearly none due to  Swedish legislation (FIFS 2004:36). ","Y","N","N","N","NA",null,"NA","NA","NA","NA","NA","NA","NA","NA","NA","NA","NA","NA"]

{"sheet":"Table1E Anadromous catadromous","index":4,"n_rows":63,"n_cols":21,"rows_kept":63,"cut":false,"hidden":false,"merged":[[3,5,4,5],[3,0,4,0],[3,1,4,1],[3,2,4,2],[3,3,4,3],[3,4,4,4],[3,6,4,6],[3,7,4,7],[3,14,4,14],[3,8,4,8],[3,15,4,15],[3,9,4,9],[3,10,4,10],[3,11,4,11],[3,12,4,12],[3,13,4,13],[3,16,4,16],[3,17,4,17],[3,18,4,18],[3,19,4,19],[3,20,4,20]]}
["Table 1E: Anadromous and catadromous species data collection in fresh water "]
[null,null,null,null,null,null,null,null,null,null,null,null,null,null,null,null,null,null,null,"WP  years","2017-2019"]
[null,null,null,null,null,null,null,null,null,null,null,null,null,null,null,null,null,null,null,"AR year",2017]
["MS","Sampling period","Area","RFMO/RFO/IO","Species","Applicable (Y/N)","Reasons for not sampling","Water Body","Life stage","Fishery / Independent data collection","Method","Unit","Planned nos","Frequency","Comments","Achieved numbers","% of achievement (100*P/M)","Reasons for non-conformity","Survey ID","Agreed at RCG level?","AR Comments"]
[]
["SWE",2017,"Baltic Sea","ICES","Salmo salar","Y",null," River Torneälv","parr","I","electrofishing","n. sites",19,"annually",null,22,{"$f":"P6*100/M6","v":115.78947368421052},"See textbox 1E","SWE-SAL-FRW-MEL-fishery-independant","Y"]
["SWE",2017,"Baltic Sea","ICES","Salmo salar","Y",null," River  Ume/Vindelälven","parr","I","electrofishing","n. sites",19,"annually",null,9,{"$f":"P7*100/M7","v":47.368421052631582},"See textbox 1E","SWE-SAL-FRW-MEL-fishery-independant","Y"]
["SWE",2017,"Baltic Sea","ICES","Salmo salar","Y",null," River  Ume/Vindelälven","smolt","I","trap","n. smolt traps",1,"annually",null,1,100,null,"SWE-SAL-FRW-FIX-fishery-independant","Y"]
["SWE",2017,"Baltic Sea","ICES","Salmo salar","Y",null," River  Ume/Vindelälven","adult","I","counter","n. counter",1,"annually",null,1,100,null,"SWE-SAL-FRW-NK-fishery-independant","Y"]
["SWE",2017,"Baltic Sea","ICES","Salmo salar","Y",null," River  Ume/Vindelälven","smolt","I","sampling","n. samples",150,"annually","Age of 150 smolt caught in smolt traps. Weight and leght taken for all  trapped smolt. ",99,66,"See textbox 1E","SWE-SAL-FRW-FIX-fishery-independant","Y","In river Ume/Vindelälven high water flow at times made the smolt trap difficult to manage and smolt had be bypassed the trap for a short period, in addition the migration rate varied considerably which made planning of sampling difficult; at migration peaks the number of smolt that were age sampled were reduced to reduce retention time and maintain ethical handling of the fish.    "]
["SWE",2017,"Baltic Sea","ICES","Salmo salar","Y",null," River  Testeboån","parr","I","electrofishing","n. sites",11,"annually",null,11,100,null,"SWE-SAL-FRW-MEL-fishery-independant","Y"]
["SWE",2017,"Baltic Sea","ICES","Salmo salar","Y",null," River  Testeboån","adult","I","counter","n. counter",1,"annually",null,1,100,null,"SWE-SAL-FRW-NK-fishery-independant","Y"]
["SWE",2017,"Baltic Sea","ICES","Salmo salar","Y",null," River  Testeboån","smolt","I","trap","n. smolt traps",1,"annually",null,1,100,null,"SWE-SAL-FRW-FIX-fishery-independant","Y"]
["SWE",2017,"Baltic Sea","ICES","Salmo salar","Y",null," River  Testboån","smolt","I","sampling","n. samples",150,"annually","Age of 150 smolt caught in smolt traps. Weight and leght taken for all  trapped smolt. ",150,100,null,"SWE-SAL-FRW-FIX-fishery-independant","Y"]
["SWE",2017,"Baltic Sea","ICES","Salmo salar","Y",null," River  Mörrumsån","parr","I","electrofishing","n. sites",19,"annually",null,9,47.368421052631582,"See textbox 1E","SWE-SAL-FRW-MEL-fishery-independant","Y"]
["SWE",2017,"Baltic Sea","ICES","Salmo salar","Y",null," River  Mörrumsån","smolt","I","trap","n. smolt traps",1,"annually",null,1,100,null,"SWE-SAL-FRW-FIX-fishery-independant","Y"]
["SWE",2017,"Baltic Sea","ICES","Salmo salar","Y",null," River  Mörrumsån","adult","I","counter","n. counter",1,"annually",null,0,0,"See textbox 1E","SWE-SAL-FRW-NK-fishery-independant","Y"]
["SWE",2017,"Baltic Sea","ICES","Salmo salar","Y",null," River  Mörrumsån","smolt","I","sampling","n. samples",150,"annually","Age of 150 smolt caught in smolt traps. Weight and leght taken for all  trapped smolt. ",126,84,"See textbox 1E","SWE-SAL-FRW-FIX-fishery-independant","Y","In river Mörrum low smolt numbers in combination with high water temperatures prevented reaching the desired 150 individuals for age readings.  At high water temperature fish were not sampled to maintain ethical handling of the fish (the recovery success of the fish after sampling is related to temperature) ."]
["SWE",2017,"Baltic Sea","ICES","Salmo salar","Y",null,"River Kalixälven","parr","I","electrofishing","n. sites",30,"annually",null,30,100,null,"SWE-SAL-FRW-MEL-fishery-independant","Y"]
["SWE",2017,"Baltic Sea","ICES","Salmo salar","Y",null,"River Kalixälven","adult","I","counter","n. counter",1,"annually",null,1,100,null,"SWE-SAL-FRW-NK-fishery-independant","Y"]
["SWE",2017,"Baltic Sea","ICES","Salmo salar","Y",null,"River Råneälven","parr","I","electrofishing","n. sites",14,"annually",null,5,35.714285714285715,"See textbox 1E","SWE-SAL-FRW-MEL-fishery-independant","Y"]
["SWE",2017,"Baltic Sea","ICES","Salmo salar","Y",null,"River Åbyälven","parr","I","electrofishing","n. sites",16,"annually",null,14,87.5,"See textbox 1E","SWE-SAL-FRW-MEL-fishery-independant","Y"]
["SWE",2017,"Baltic Sea","ICES","Salmo salar","Y",null,"River Åbyälven","adult","I","counter","n. counter",1,"annually",null,1,100,null,"SWE-SAL-FRW-NK-fishery-independant","Y"]
["SWE",2017,"Baltic Sea","ICES","Salmo salar","Y",null,"River Byskeälven","parr","I","electrofishing","n. sites",15,"annually",null,15,100,null,"SWE-SAL-FRW-MEL-fishery-independant","Y"]
["SWE",2017,"Baltic Sea","ICES","Salmo salar","Y",null,"River Byskeälven","adult","I","counter","n. counter",1,"annually",null,1,100,null,"SWE-SAL-FRW-NK-fishery-independant","Y"]
["SWE",2017,"Baltic Sea","ICES","Salmo salar","Y",null,"River Kågeälven","parr","I","electrofishing","n. sites",13,"annually",null,7,53.846153846153847,"See textbox 1E","SWE-SAL-FRW-MEL-fishery-independant","Y"]
["SWE",2017,"Baltic Sea","ICES","Salmo salar","Y",null," River Rickleån","parr","I","electrofishing","n. sites",7,"annually",null,7,100,null,"SWE-SAL-FRW-MEL-fishery-independant","Y"]
["SWE",2017,"Baltic Sea","ICES","Salmo salar","Y",null," River Rickleån","adult","I","counter","n. counter",1,"annually",null,1,100,null,"SWE-SAL-FRW-NK-fishery-independant","Y"]
["SWE",2017,"Baltic Sea","ICES","Salmo salar","Y",null," River  Rickleån","smolt","I","trap","n. smolt traps",1,"annually",null,1,100,null,"SWE-SAL-FRW-FIX-fishery-independant","Y"]
["SWE",2017,"Baltic Sea","ICES","Salmo salar","Y",null," River  Ricklån","smolt","I","sampling","n. samples",150,"annually","Age of 150 smolt caught in smolt traps. Weight and leght taken for all  trapped smolt. ",169,112.66666666666667,"See textbox 1E","SWE-SAL-FRW-FIX-fishery-independant","Y"]
["SWE",2017,"Baltic Sea","ICES","Salmo salar","Y",null,"River Sävarån","parr","I","electrofishing","n. sites",9,"annually",null,9,100,null,"SWE-SAL-FRW-MEL-fishery-independant","Y"]
["SWE",2017,"Baltic Sea","ICES","Salmo salar","Y",null,"River Öreälven","parr","I","electrofishing","n. sites",10,"annually",null,10,100,null,"SWE-SAL-FRW-MEL-fishery-independant","Y"]
["SWE",2017,"Baltic Sea","ICES","Salmo salar","Y",null,"River Lögdeälven","parr","I","electrofishing","n. sites",8,"annually",null,8,100,null,"SWE-SAL-FRW-MEL-fishery-independant","Y"]
["SWE",2017,"Baltic Sea","ICES","Salmo salar","Y",null,"River Ljungan","parr","I","electrofishing","n. sites",10,"annually",null,18,180,"See textbox 1E","SWE-SAL-FRW-MEL-fishery-independant","Y"]
["SWE",2017,"Baltic Sea","ICES","Salmo salar","Y",null,"River Emån","parr","I","electrofishing","n. sites",10,"annually",null,7,70,"See textbox 1E","SWE-SAL-FRW-MEL-fishery-independant","Y"]
["SWE",2017,"Baltic Sea","ICES","Salmo salar","Y",null,"River Piteälven","adult","I","counter","n. counter",1,"annually",null,1,100,null,"SWE-SAL-FRW-NK-fishery-independant","Y"]
["SWE",2017,"Baltic Sea","ICES","Salmo salar","Y",null,"River Luleälven","adult","F","fishery statistics","n. trips","NA","annually","As described in Table 4A and 4B.","NA","NA",null,"SWE-SAL-FRW-NK-commercial fishing","N","Only number of individuals are used in stock assessment (ICES WGBAST). This data is collected from fishermen journals/logbooks, See Table 2A."]
["SWE",2017,"Baltic Sea","ICES","Salmo salar","Y",null,"River Ljusnan","adult","F","fishery statistics","n. trips","NA","annually","As described in Table 4A and 4B.","NA","NA",null,"SWE-SAL-FRW-NK-commercial fishing","N","Only number of individuals are used in stock assessment (ICES WGBAST). This data is collected from fishermen journals/logbooks, See Table 2A."]
["SWE",2017,"Baltic Sea","ICES","Salmo salar","Y",null,"River Indalsälven","adult","F","fishery statistics","n. trips","NA","annually","As described in Table 4A and 4B.","NA","Na",null,"SWE-SAL-FRW-NK-commercial fishing","N","Only number of individuals are used in stock assessment (ICES WGBAST). This data is collected from fishermen journals/logbooks, See Table 2A."]
["SWE",2017,"Baltic Sea","ICES","Salmo salar","Y",null,"River Dalälven","adult","I","counter","n. counter",1,"annually",null,1,100,null,"SWE-SAL-FRW-NK-fishery-independant","Y","Spawner run is estimated from catches in broodstock fishery."]
["SWE",2017,"North sea and Eastern Arctic","EIFAAC/ICES/GFCM ","Anguilla anguilla","Y",null,"20 rivers in Skagerrak and Kattegatt River Basin District","yellow","I","electofishing","n. sites",20,"annually","To estimate recruitment from a number of sites in several rivers.",16,80,"Lack of resonable sites due to low recruitment","SWE-ELE-FRW-MEL-fishery-independent","Y","An Y is given as data collected are in agreement with the data requirements discussed and required for the assessment work in ICES WGEEL."]
["SWE",2017,"North sea and Eastern Arctic","EIFAAC/ICES/GFCM ","Anguilla anguilla","Y",null,"River Göta älv","yellow","I","traps","n. traps",1,"annually","To estimate recruitment to 7 rivers",1,100,null,"SWE-ELE-FRW-FWR-fishery-independent","Y","An Y is given as data collected are in agreement with the data requirements discussed and required for the assessment work in ICES WGEEL."]
["SWE",2017,"North sea and Eastern Arctic","EIFAAC/ICES/GFCM ","Anguilla anguilla","Y",null,"River Viskan","yellow","I","traps","n. traps",1,"annually","To estimate recruitment to 7 rivers",1,100,null,"SWE-ELE-FRW-FWR-fishery-independent","Y","An Y is given as data collected are in agreement with the data requirements discussed and required for the assessment work in ICES WGEEL."]
["SWE",2017,"North sea and Eastern Arctic","EIFAAC/ICES/GFCM ","Anguilla anguilla","Y",null,"River Lagan","yellow","I","traps","n. traps",1,"annually","To estimate recruitment to 7 rivers",1,100,null,"SWE-ELE-FRW-FWR-fishery-independent","Y","An Y is given as data collected are in agreement with the data requirements discussed and required for the assessment work in ICES WGEEL."]
["SWE",2017,"North sea and Eastern Arctic","EIFAAC/ICES/GFCM ","Anguilla anguilla","Y",null,"River Rönneå","yellow","I","traps","n. traps",1,"annually","To estimate recruitment to 7 rivers",1,100,null,"SWE-ELE-FRW-FWR-fishery-independent","Y","An Y is given as data collected are in agreement with the data requirements discussed and required for the assessment work in ICES WGEEL"]
["SWE",2017,"Baltic Sea","EIFAAC/ICES/GFCM ","Anguilla anguilla","Y",null,"River Helgeån","yellow","I","traps","n. traps",1,"annually","To estimate recruitment to 4 rivers",1,100,null,"SWE-ELE-FRW-FWR-fishery-independent","Y","An Y is given as data collected are in agreement with the data requirements discussed and required for the assessment work in ICES WGEEL."]
["SWE",2017,"Baltic Sea","EIFAAC/ICES/GFCM ","Anguilla anguilla","Y",null,"River Mörrumsån","yellow","I","traps","n. traps",1,"annually","To estimate recruitment to 4 rivers",1,100,null,"SWE-ELE-FRW-FWR-fishery-independent","Y","An Y is given as data collected are in agreement with the data requirements discussed and required for the assessment work in ICES WGEEL."]
["SWE",2017,"Baltic Sea","EIFAAC/ICES/GFCM ","Anguilla anguilla","Y",null,"River Motala Ström","yellow","I","traps","n. traps",1,"annually","To estimate recruitment to 4 rivers",1,100,null,"SWE-ELE-FRW-FWR-fishery-independent","Y","An Y is given as data collected are in agreement with the data requirements discussed and required for the assessment work in ICES WGEEL."]
["SWE",2017,"Baltic Sea","EIFAAC/ICES/GFCM ","Anguilla anguilla","Y",null,"River Emån","yellow","I","traps","n. traps",1,"annually","To estimate recruitment to 4 rivers",1,100,null,"SWE-ELE-FRW-FWR-fishery-independent","Y","An Y is given as data collected are in agreement with the data requirements discussed and required for the assessment work in ICES WGEEL."]
["SWE",2017,"Baltic Sea","EIFAAC/ICES/GFCM ","Anguilla anguilla","Y",null,"River Nyköpingsån","yellow","I","traps","n. traps",1,"annually","To estimate recruitment to 4 rivers",1,100,null,"SWE-ELE-FRW-FWR-fishery-independent","Y","An Y is given as data collected are in agreement with the data requirements discussed and required for the assessment work in ICES WGEEL."]
["SWE",2017,"Baltic Sea","EIFAAC/ICES/GFCM ","Anguilla anguilla","Y",null,"River Dalälven ","yellow","I","traps","n. traps",1,"annually","To estimate recruitment to 4 rivers",1,100,null,"SWE-ELE-FRW-FWR-fishery-independent","Y","An Y is given as data collected are in agreement with the data requirements discussed and required for the assessment work in ICES WGEEL."]
["SWE",2017,"Baltic Sea","EIFAAC/ICES/GFCM ","Anguilla anguilla","Y",null,"River Ljusnan","yellow","I","traps","n. traps",1,"annually","To estimate recruitment to 4 rivers",1,100,null,"SWE-ELE-FRW-FWR-fishery-independent","Y","An Y is given as data collected are in agreement with the data requirements discussed and required for the assessment work in ICES WGEEL."]
["SWE",2017,"Baltic Sea","EIFAAC/ICES/GFCM ","Anguilla anguilla","Y",null,"Lake Mälaren","yellow + silver","I","fyke netting ","n. sites",1,"annually","Monitoring of  introduced populations",1,100,null,"SWE-ELE-FRW-FYK-fishery-independant","Y","An Y is given as data collected are in agreement with the data requirements discussed and required for the assessment work in ICES WGEEL."]
["SWE",2017,"Baltic Sea","EIFAAC/ICES/GFCM ","Anguilla anguilla","Y",null,"Lake Fardume träsk","silver","I","fixed trap","n. sites",1,"annually","Monitoring of  introduced populations",1,100,null,"SWE-ELE-FRW-FWR-fishery-independent","Y","An Y is given as data collected are in agreement with the data requirements discussed and required for the assessment work in ICES WGEEL."]
["SWE",2017,"Baltic Sea","EIFAAC/ICES/GFCM ","Anguilla anguilla","Y",null,"River to the Baltic","all","F/I","planning","n. rivers",1,"annually","Planning of full life history study will be conducted in 2017 to be able to assess the methodologises needed for data collection on recruites, standing stock and migrating individuals.",1,100,null,"SWE-ELE-FRW-MEL-fishery-independent, \nSWE-ELE-FRW-FWR-fishery-independent, \nSWE-ELE-FRW-FYK-fishery-independent, \nSWE-ELE-MAR-FPN-commercial fishing, \nSWE-ELE-FRW-FPN-commercial fishing","Y","Planning work in progress."]
["SWE",2017,"North sea and Eastern Arctic","EIFAAC/ICES/GFCM ","Anguilla anguilla","Y",null,"River to Skagerrak ","all","F/I","planning","n. rivers",1,"annually","Planning of full life history  study will be conducted in 2017 to be able to assess the methodologises needed for data collection on recruites, standing stock and migrating individuals.",1,100,null,"SWE-ELE-FRW-MEL-fishery-independent, \nSWE-ELE-FRW-FWR-fishery-independent, \nSWE-ELE-FRW-FYK-fishery-independent, \nSWE-ELE-MAR-FPN-commercial fishing, \nSWE-ELE-FRW-FPN-commercial fishing","Y","Planning work in progress."]
["SWE",2017,"Baltic Sea","EIFAAC/ICES/GFCM ","Anguilla anguilla","Y",null,"Baltic","silver","F/I","Mark-recapure","n. marked eels",400,"annually","data collection of stocked amounts and sites. Sites may be changed due to unforessen reasons",400,100,null,"SWE-ELE-MAR-FPN-commercial fishing","Y"]
["SWE",2017,"Baltic Sea","EIFAAC/ICES/GFCM ","Anguilla anguilla","Y",null,"Lake Mälaren","silver","F/I","Mark-recapure","n. marked eels",200,"annually","Sites may be changed due to unforessen reasons",202,101,null,"SWE-ELE-MAR-FPN-commercial fishing","Y"]
["SWE",2017,"Baltic Sea","EIFAAC/ICES/GFCM ","Anguilla anguilla","Y",null,"3 lakes","silver","F","sampling","n. eels",375,"annually","sampling from the commercial fishery. Also listed in 1b and 1c",358,95.466666666666669,null,"SWE-ELE-FRW-FWR-commercial fishing","Y","Some fishermen delivered  fewer eels than planned due to unexpectedly low catches or simply due to miscounting."]
["SWE",2017,"North sea and Eastern Arctic","EIFAAC/ICES/GFCM ","Anguilla anguilla","Y",null,"Coastal sites","yellow","I","statistics","n. eels",2500000,"annually","Updating the database of stocked recruits i.e. data collection of stocked amounts and sites",553281,22.131239999999998,"Outbreak of disease","SWE-ELE","Y","This year the amount of stocked recruits were low due to an outbreak of disease. "]
["SWE",2017,"Baltic Sea","EIFAAC/ICES/GFCM ","Anguilla anguilla","Y",null,"Freshwater sites","yellow","I","statistics","n. eels",2500000,"annually","Updating the database of stocked recruits i.e. data collection of stocked amounts and sites",394074,15.76296,"Outbreak of disease","SWE-ELE","Y","This year the amount of stocked recruits were low due to an outbreak of disease. "]
["SWE",2017,"Baltic Sea","EIFAAC/ICES/GFCM ","Anguilla anguilla","Y",null,"Coastal sites","yellow","I","annual ","n. sites",1,"annually","A survey is run yearly in August in order to continue following the eel stock in this area. The commercial fishery was indirectly closed due to that the minimum landing size was increased, hence it is no longer possible to continue the commercial sampling. The survey set-up include catching a predefined number of yellow eels, all of which are length measured. Using length-stratification, a sub-sample from the total catch of yellow eel is then collected for biological (age) sampling. Silver eels caught are also measured for length, but not sampled for age. In the survey manual, the maximum effort (gear-days) to be aiming for is defined. No other species than eel are sampled.",1,{"$f":"P62*100/M62","v":100},null,"No ID exist","Y"]
["SWE",2017,"North sea and Eastern Arctic","EIFAAC/ICES/GFCM ","Anguilla anguilla","Y",null,"Coastal sites","yellow","I","annual ","n.sites",3,"annually","A survey is run yearly in August in order in order to continue following the eel stock in this area . The commercial fishery was indirectly closed due to that the minimum landing size was increased, hence it is no longer possible to continue the commercial sampling. The survey set-up include catching a predefined number of yellow eels, all of which are length measured. Using length-stratification, a sub-sample from the total catch of yellow eel is then collected for biological (age) sampling. Silver eels caught are also measured for length, but not sampled for age. In the survey manual, the maximum effort (gear-days) to be aiming for is defined. No other species than eel are sampled.",3,100,null,"No ID exist","Y"]

{"sheet":"Table1F Incidental by catch","index":5,"n_rows":19,"n_cols":23,"rows_kept":19,"cut":false,"hidden":false,"merged":[[4,15,5,15],[4,16,5,16],[4,22,5,22],[4,17,5,17],[4,18,5,18],[4,19,5,19],[4,20,5,20],[4,21,5,21],[3,15,3,19],[4,0,5,0],[4,1,5,1],[4,2,5,2],[4,3,5,3],[4,4,5,4],[4,5,5,5],[4,6,5,6],[4,7,5,7],[4,8,5,8],[4,9,5,9],[4,10,5,10],[4,11,5,11],[4,12,5,12],[4,13,5,13],[4,14,5,14]]}
["Table 1F: Incidental by-catch of birds, mammals, reptiles and fish "]
[null,null,null,null,null,null,null,null,null,null,null,null,null,null,null,null,null,null,null,null,null,"WP  years","2017-2019"]
[null,null,null,null,null,null,null,null,null,null,null,null,null,null,null,null,null,null,null,null,null,"AR year",2017]
[null,null,null,null,null,null,null,null,null,null,null,null,null,null,null,"Has there be occurrence of bycatch?"]
["MS","Sampling period/year(s)","Region","RFMO/RFO/IO","Sub-area / Fishing ground","Scheme","Stratum ID code / Name of the survey","Group of vulnerable species","Expected occurence of recordings ","Comments","Total number of PSU in the sampling year","Achieved number of PSU in the sampling year","Number of PSU sampled in which observers have been instructed to look for bycatch","Does your sampling protocol allow for the calculation of observation effort “at haul level” (Y/N)","Is there any mitigation device? (Y/N) ","Fish (Y/N/NA)","Mammals (Y/N/NA)","Birds (Y/N/NA)","Reptiles (Y/N/NA)","Other (Y/N/NA)","Are data stored in a national database?","Are data stored in international database(s)?","AR Comments"]
[]
["SWE","2017","North Sea and Eastern Arctic","ICES","IIIa","Skagerrak/Kattegat at-sea","SWE - SkaKat (at-sea) - Act - 20/21 - PanTrawlTun","all encountered species except some invertebrates","X ","birds and mammals very limited occurence, fish and crustaceans dependent on species. Data on all species in 1D will be recorded",24,6,6,"N","N","Y","Y","Y","NA","NA","Y","Y","In the WP were info on bycatch sampling grouped over several \"Stratum ID code\" as the protocols are the same within those stratas.  This grouped \"Stratum ID code\" in WP has been split over 6 rows as it otherwise was impossible to give information on PSUs. Name of the stratum IDs are identical to Table IF in WP and table 4A. Data provided to ICES WGBYC."]
["SWE","2017","North Sea and Eastern Arctic","ICES","IIIa","Skagerrak/Kattegat at-sea","SWE - SkaKat (at-sea) - Act - 20/21 - PanTrawlNoTun","all encountered species except some invertebrates","X ","birds and mammals very limited occurence, fish and crustaceans dependent on species. Data on all species in 1D will be recorded",49,12,12,"N","N","Y","Y","Y","NA","NA","Y","Y","Information in WP has been split over 6 rows as it otherwise was impossible to give information on PSUs. Data provided to ICES WGBYC."]
["SWE","2017","North Sea and Eastern Arctic","ICES","IIIa","Skagerrak/Kattegat at-sea","SWE - SkaKat (at-sea) - Act - 20 - NepTrawlGrid","all encountered species except some invertebrates","X ","birds and mammals very limited occurence, fish and crustaceans dependent on species. Data on all species in 1D will be recorded",78,10,10,"N","N","Y","Y","Y","NA","NA","Y","Y","Information in WP has been split over 6 rows as it otherwise was impossible to give information on PSUs. Data provided to ICES WGBYC."]
["SWE","2017","North Sea and Eastern Arctic","ICES","IIIa","Skagerrak/Kattegat at-sea"," SWE - SkaKat (at-sea) - Act - 21 - NepTrawlGrid","all encountered species except some invertebrates","X ","birds and mammals very limited occurence, fish and crustaceans dependent on species. Data on all species in 1D will be recorded",36,10,10,"N","N","Y","Y","Y","NA","NA","Y","Y","Information in WP has been split over 6 rows as it otherwise was impossible to give information on PSUs. Data provided to ICES WGBYC."]
["SWE","2017","North Sea and Eastern Arctic","ICES","IIIa","Skagerrak/Kattegat at-sea","SWE - SkaKat (at-sea) - Act - 20 - MixTrawl,","all encountered species except some invertebrates","X ","birds and mammals very limited occurence, fish and crustaceans dependent on species. Data on all species in 1D will be recorded",68,10,10,"N","N","Y","Y","Y","NA","NA","Y","Y","Information in WP has been split over 6 rows as it otherwise was impossible to give information on PSUs. Data provided to ICES WGBYC."]
["SWE","2017","North Sea and Eastern Arctic","ICES","IIIa","Skagerrak/Kattegat at-sea","SWE - SkaKat (at-sea) - Act - 21 - MixTrawl","all encountered species except some invertebrates","X ","birds and mammals very limited occurence, fish and crustaceans dependent on species. Data on all species in 1D will be recorded",48,11,11,"N","N","Y","Y","Y","NA","NA","Y","Y","Information in WP has been split over 6 rows as it otherwise was impossible to give information on PSUs. Data provided to ICES WGBYC."]
["SWE","2017","Baltic Sea","ICES","SD 24-26","Baltic at-sea","SWE - Balt (at-sea) - Act - 24/25 - DemTrawl","all encountered species except some invertebrates","X ","birds and mammals very limited occurence, fish and crustaceans dependent on species. Data on all species in 1D will be recorded",36,6,6,"N","N","Y","Y","Y","NA","NA","Y","Y","Data provided to ICES WGBYC."]
["SWE","2017","Baltic Sea","ICES","SD 23-29","Baltic at-sea or self-sampling","SWE - Balt (at-sea/self) - Pass - 23 - DemNets","all encountered species ","X ","Pilot study see pilot study 2 Data on all species in 1D will be recorded",51,10,7,"N","N","Y","Y","Y","NA","NA","Y","Y","Information in WP has been split over 6 rows as it otherwise was impossible to give information on PSUs. PSU is vessel, no of trips sampled for bycatches are 12.  Data provided to ICES WGBYC."]
["SWE","2017","Baltic Sea","ICES","SD 23-29","Baltic at-sea or self-sampling","SWE - Balt (at-sea/self) - Pass - 24 - DemNets","all encountered species ","X ","Pilot study see pilot study 2 Data on all species in 1D will be recorded",36,10,6,"N","N","Y","Y","Y","NA","NA","Y","Y","Information in WP has been split over 6 rows as it otherwise was impossible to give information on PSUs. PSU is vessel, no of trips sampled for bycatches are 11.  Data provided to ICES WGBYC."]
["SWE","2017","Baltic Sea","ICES","SD 23-29","Baltic at-sea or self-sampling","SWE - Balt (at-sea/self) - Pass - 25 - DemNets","all encountered species ","X ","Pilot study see pilot study 2 Data on all species in 1D will be recorded",79,9,5,"N","N","Y","Y","Y","NA","NA","Y","Y","Information in WP has been split over 6 rows as it otherwise was impossible to give information on PSUs. PSU is vessel, no of trips sampled for bycatches are 7.  Data provided to ICES WGBYC."]
["SWE","2017","Baltic Sea","ICES","SD 23-29","Baltic at-sea or self-sampling","SWE - Balt (at-sea/self) - Pass - 27/29 - DemNets","all encountered species ","X ","Pilot study see pilot study 2 Data on all species in 1D will be recorded",66,0,0,"N","N","NA","NA","NA","NA","NA","NA","NA","Information in WP has been split over 6 rows as it otherwise was impossible to give information on PSUs. "]
["SWE","2017","Baltic Sea","ICES","SD 23-29","Baltic at-sea or self-sampling","SWE - Balt (at-sea/self) - Pass - 24 - DemLonglines","all encountered species ","X ","Pilot study see pilot study 2 Data on all species in 1D will be recorded",6,0,0,"N","N","NA","NA","NA","NA","NA","NA","NA","Information in WP has been split over 6 rows as it otherwise was impossible to give information on PSUs. "]
["SWE","2017","Baltic Sea","ICES","SD 23-29","Baltic at-sea or self-sampling","SWE - Balt (at-sea/self) - Pass - 25 - DemLonglines","all encountered species ","X ","Pilot study see pilot study 2 Data on all species in 1D will be recorded",25,3,2,"N","N","Y","Y","Y","NA","NA","Y","Y","Information in WP has been split over 6 rows as it otherwise was impossible to give information on PSUs. PSU is vessel, no of trips sampled for bycatches are 3.  Data provided to ICES WGBYC."]

{"sheet":"Table1G List of research survey","index":6,"n_rows":15,"n_cols":27,"rows_kept":15,"cut":false,"hidden":false,"merged":[[1,17,1,19],[1,20,1,22],[2,17,2,19],[1,7,1,8],[1,9,1,10],[1,11,1,12],[1,13,1,14],[1,15,1,16]]}
["Table 1G: List of research surveys at sea"]
[null,null,null,null,null,null,null,null,null,null,null,null,null,null,null,null,null,null,null,null,null,null,null,null,null,"WP  years","2017-2019"]
[null,null,null,null,null,null,null,null,null,null,null,null,null,null,null,null,null,null,null,null,null,null,null,null,null,"AR year",2017]
["MS","Name of survey","Acronym ","Mandatory (Y/N)","Threshold (Y/N)","Agreed at RCG level","MS participation","Area(s)\ncovered","Period (Month)","Frequency","Days at sea planned","Type of sampling activities","Planned target ","Map","Relevant international planning group - RFMO/RFO/IO","International database","Comments","Type of MS participation","In case of financial participation, is payment done? (Y/N)","Days at sea achieved","Achieved target","Other data assimilations (Y/N)","Was the survey carried out within the official time period? (Y/N)","Was the survey carried out within the official survey area? (Y/N)","Indication if AR comments by MS are required concerning effort achieved","Indication if AR comments by MS are required concerning temporal and spatial coverage","AR Comments"]
["SWE","Baltic International Trawl Survey ","BITS Q1","Y","N","Y","C","IIIb-d","1st quarter","Annual",14,"Fish Hauls",50,"Map 1","ICES WGBIFS","DATRAS",null,"P","N",12,49,"N","Y","Y"]
["SWE","Baltic International Trawl Survey ","BITS Q1","Y","N","Y","C","IIIb-d","1st quarter","Annual",3,"Fish Hauls"," 2-4","Map 1","ICES WGBIFS","DATRAS","Hauls undertaken by the vessel Hålabben","P","N",3,3,"N","Y","Y"]
["SWE","Baltic International Trawl Survey","BITS Q4","Y","N","Y","C","IIIb-d","4th quarter","Annual",11,"Fish Hauls",30,"Map 2","ICES WGBIFS","DATRAS",null,"P","N",11,27,"N","Y","Y"]
["SWE","Baltic International Trawl Survey","BITS Q4","Y","N","Y","C","IIIb-d","3rd quarter","Annual",3,"Fish Hauls"," 2-4","Map 2","ICES WGBIFS","DATRAS","Hauls undertaken by the vessel Hålabben","P","N",3,3,"N","Y","Y"]
["SWE","Baltic International Acoustic Survey","BIAS","Y","N","Y","C","IIIb-d","Sep-Oct","Annual",13,"Echo Nm",1341,"Map 3","ICES WGBIFS","IBAS",null,"P","Y",14.5,1367,"N","Y","Y"]
["SWE","Baltic International Acoustic Survey","BIAS","Y","N","Y","C","IIIb-d","Sep-Oct","Annual",13,"Fish Hauls","\n48 ","Map 3","ICES WGBIFS","IBAS",null,"P","Y",14.5,46,"N","Y","Y"]
["SWE","International Bottom Trawl Survey","IBTS Q1","Y","N","Y","C","IIIa","1st quarter","Annual",14,"Fish Hauls",46,"Map 4","ICES IBTSWG","DATRAS",null,"P","N",14,47,"N","Y","Y"]
["SWE","International Bottom Trawl Survey","IBTS Q1","Y","N","Y","C","IIIa","1st quarter","Annual",14,"Plankton Hauls",60,"Map 5","ICES IBTSWG","no existing database","Data on clupeid larvae are sent to a database in Germany.","P","N",14,66,"N","Y","Y"]
["SWE","International Bottom Trawl Survey","IBTS Q3","Y","N","Y","C","IIIa","3rd quarter","Annual",11,"Fish Hauls",45,"Map 6","ICES IBTSWG","DATRAS",null,"P","N",11,45,"N","Y","Y"]
["SWE","Nephrops TV survey (FU 3&4) ","NTV3&4","Y","N","Y","C","IIIa","2nd quarter","Annual",15,"TV-tracks",95,"Map 7","ICES WGNEPS","no existing database",null,"P","N",13,74,"N","Y","Y",null,null,"Not all stations could be visit due to bad weather, too low visibility, rocky bottoms or too many creels."]
["SWE","International Ecosystem Survey in the Nordic Seas","ASH","Y","N","Y","C","IIa","May","Annual",null,"Fish Hauls","See Denmark",null,"ICES WGIPS","See Denmark",null,"C","Y",29,"see DEN","see DEN","see DEN","see DEN",null,null,"To be reported by Denmark."]

{"sheet":"Table1H Research survey data","index":7,"n_rows":66,"n_cols":13,"rows_kept":66,"cut":false,"hidden":false,"merged":[]}
["Table 1H: Research survey data collection and dissemination"]
[null,null,null,null,null,null,null,null,null,null,null,"WP  years","2017-2019"]
[null,null,null,null,null,null,null,null,null,null,null,"AR year",2017]
["MS","Name of survey","Acronym ","Type of data collected","Core/ Additional variable","Used as basis for advice (Y/N)","Comments","Was the sampling carried out? (Y/N/P)","Relevant International database","Was the data uploaded to the relevant database? (Y/N)","Other data assimilations? (Y/N)","Indication if AR comments are required by MS","AR comments"]
["SWE","Baltic International Trawl Survey ","BITS Q1","Biological data for Eastern Baltic Cod","C","Y",null,"Y","DATRAS","Y","N",{"$f":"IF(OR(H5=\"Y\",H5=\"\"),\"\",\"x\")","v":""}]
["SWE","Baltic International Trawl Survey ","BITS Q1","Biological data for Flounder ","C","Y",null,"Y","DATRAS","Y","N",""]
["SWE","Baltic International Trawl Survey ","BITS Q1","Biological data for Plaice ","C","Y","Only collected in SD 23","Y","DATRAS","N","N",""]
["SWE","Baltic International Trawl Survey ","BITS Q1","Biological data for Herring","A","N",null,"N","DATRAS","N","N","x","Additional variable, no full biological sampling is done, length measurement and total weight only."]
["SWE","Baltic International Trawl Survey ","BITS Q1","Biological data for Sprat","A","N",null,"N","DATRAS","N","N",{"$f":"IF(OR(H9=\"Y\",H9=\"\"),\"\",\"x\")","v":"x"},"Additional variable, no full biological sampling is done, length measurement and total weight only."]
["SWE","Baltic International Trawl Survey ","BITS Q1","CTD by Haul","C","Y",null,"Y","DATRAS","Y","N",{"$f":"IF(OR(H10=\"Y\",H10=\"\"),\"\",\"x\")","v":""}]
["SWE","Baltic International Trawl Survey ","BITS Q1","Litter items in the trawl","A","Y","Descriptor in MSFD","Y","DATRAS","Y","N",""]
["SWE","Baltic International Trawl Survey ","BITS Q1","Benthos in the trawl","A","N",null,"Y","DATRAS","Y","N",""]
["SWE","Baltic International Trawl Survey ","BITS Q1","Hydroacoustic data","A","N",null,"Y","DATRAS","Y","N",""]
["SWE","Baltic International Trawl Survey ","BITS Q4","Biological data for Eastern Baltic Cod","C","Y",null,"Y","DATRAS","Y","N",""]
["SWE","Baltic International Trawl Survey ","BITS Q4","Biological data for Flounder ","C","Y",null,"Y","DATRAS","Y","N",""]
["SWE","Baltic International Trawl Survey ","BITS Q1","Biological data for Plaice ","C","Y","Only collected in SD 23","Y","DATRAS","N","N",""]
["SWE","Baltic International Trawl Survey ","BITS Q4","Biological data for Herring","A","N",null,"N","DATRAS","N","N","x","Additional variable, no full biological sampling is done, length measurement and total weight only."]
["SWE","Baltic International Trawl Survey ","BITS Q4","Biological data for Sprat","A","N",null,"N","DATRAS","N","N","x","Additional variable, no full biological sampling is done, length measurement and total weight only. "]
["SWE","Baltic International Trawl Survey ","BITS Q4","CTD by Haul","C","Y",null,"Y","DATRAS","Y","N",""]
["SWE","Baltic International Trawl Survey ","BITS Q4","Litter items in the trawl","A","Y","Descriptor in MSFD","Y","DATRAS","Y","N",""]
["SWE","Baltic International Trawl Survey ","BITS Q4","Benthos in the trawl","A","N",null,"Y","DATRAS","Y","N",""]
["SWE","Baltic International Trawl Survey ","BITS Q4","Hydroacoustic data","A","N",null,"Y","DATRAS","Y","N",""]
["SWE","Baltic International Acoustic Survey","BIAS","Biological data for Herring","C","Y",null,"Y","IBAS","Y","N",""]
["SWE","Baltic International Acoustic Survey","BIAS","Biological data for Sprat","C","Y",null,"Y","IBAS","Y","N",""]
["SWE","Baltic International Acoustic Survey","BIAS","Hydroacoustic data","C","Y",null,"Y","IBAS","Y","N",""]
["SWE","Baltic International Acoustic Survey","BIAS","CTD by Haul","C","Y","Reported but not a driver for the design or assessment",null,null,null,null,"","Reported but not a driver for the design or assessment."]
["SWE","International Bottom Trawl Survey","IBTS Q1","Biological data for Cod","C","Y",null,"Y","DATRAS","Y","N",""]
["SWE","International Bottom Trawl Survey","IBTS Q1","Biological data for Haddock","C","Y",null,"Y","DATRAS","Y","N",""]
["SWE","International Bottom Trawl Survey","IBTS Q1","Biological data for Whiting","C","Y",null,"Y","DATRAS","Y","N",""]
["SWE","International Bottom Trawl Survey","IBTS Q1","Biological data for Norway Pout","C","Y",null,"Y","DATRAS","Y","N",""]
["SWE","International Bottom Trawl Survey","IBTS Q1","Biological data for Saithe","C","Y",null,"Y","DATRAS","Y","N",""]
["SWE","International Bottom Trawl Survey","IBTS Q1","Biological data for Plaice","C","Y",null,"Y","DATRAS","Y","N",""]
["SWE","International Bottom Trawl Survey","IBTS Q1","Biological data for Herring","C","Y",null,"Y","DATRAS","Y","N",""]
["SWE","International Bottom Trawl Survey","IBTS Q1","Biological data for Sprat","C","Y",null,"Y","DATRAS","Y","N",""]
["SWE","International Bottom Trawl Survey","IBTS Q1","Biological data for Sole","A","N",null,"Y","DATRAS","Y","N",""]
["SWE","International Bottom Trawl Survey","IBTS Q1","Biological data for Hake","A","N",null,"Y","DATRAS","Y","N",""]
["SWE","International Bottom Trawl Survey","IBTS Q1","Biological data for Witch flounder","A","Y",null,"Y","DATRAS","Y","N",""]
["SWE","International Bottom Trawl Survey","IBTS Q1","Biological data for Cephalopoda","C","Y",null,"Y","DATRAS","Y","N","","Length measured only."]
["SWE","International Bottom Trawl Survey","IBTS Q1","Biological data for Nephrops and crabs","C","Y",null,"Y","DATRAS","Y","N",""]
["SWE","International Bottom Trawl Survey","IBTS Q1","CTD by Haul","C","Y",null,"Y","DATRAS","N","Y",""]
["SWE","International Bottom Trawl Survey","IBTS Q1","Litter items in the trawl","C","Y","Descriptor in MSFD","Y","DATRAS","Y","Y","","Data used for MSFD."]
["SWE","International Bottom Trawl Survey","IBTS Q1","Fish larvae","C","Y",null,"Y","DATRAS","Y","N",""]
["SWE","International Bottom Trawl Survey","IBTS Q3","Biological data for Cod","C","Y",null,"Y","DATRAS","Y","N",""]
["SWE","International Bottom Trawl Survey","IBTS Q3","Biological data for Haddock","C","Y",null,"Y","DATRAS","Y","N",""]
["SWE","International Bottom Trawl Survey","IBTS Q3","Biological data for Whiting","C","Y",null,"Y","DATRAS","Y","N",""]
["SWE","International Bottom Trawl Survey","IBTS Q3","Biological data for Norway Pout","C","Y",null,"Y","DATRAS","Y","N",""]
["SWE","International Bottom Trawl Survey","IBTS Q3","Biological data for Saithe","C","Y",null,"Y","DATRAS","Y","N",""]
["SWE","International Bottom Trawl Survey","IBTS Q3","Biological data for Plaice","C","Y",null,"Y","DATRAS","Y","N",""]
["SWE","International Bottom Trawl Survey","IBTS Q3","Biological data for Herring","C","Y",null,"Y","DATRAS","Y","N",""]
["SWE","International Bottom Trawl Survey","IBTS Q3","Biological data for Sprat","C","Y",null,"Y","DATRAS","Y","N",""]
["SWE","International Bottom Trawl Survey","IBTS Q3","Biological data for Sole","A","N",null,"Y","DATRAS","Y","N",""]
["SWE","International Bottom Trawl Survey","IBTS Q3","Biological data for Hake","A","N",null,"Y","DATRAS","Y","N",""]
["SWE","International Bottom Trawl Survey","IBTS Q3","Biological data for Witch flounder","A","Y",null,"Y","DATRAS","Y","N",""]
["SWE","International Bottom Trawl Survey","IBTS Q3","Biological data for Cephalopoda","C","Y",null,"Y","DATRAS","Y","N","","Length measured only."]
["SWE","International Bottom Trawl Survey","IBTS Q3","Biological data for Nephrops and crabs","C","Y",null,"Y","DATRAS","Y","N",""]
["SWE","International Bottom Trawl Survey","IBTS Q3","CTD by Haul","C","Y",null,"Y","DATRAS","N","Y",""]
["SWE","International Bottom Trawl Survey","IBTS Q3","Litter items in the trawl","C","Y","Descriptor in MSFD","Y","DATRAS","Y","Y","","Data used for MSFD."]
["SWE","Nephrops TV survey (FU 3&4) ","NTV3&4","TV track for abundance of Nephrops","C","Y",null,"Y","No database","N","N","","Data stored on Disc and DVD."]
["SWE","International Ecosystem Survey in the Nordic Seas","ASH","Blue whiting acoustic/biological data","C","Y","reported by Denmark",null,null,null,null,"","Reported by DTU Aqua."]
["SWE","International Ecosystem Survey in the Nordic Seas","ASH","Zooplankton","C","Y","reported by Denmark",null,null,null,null,"","Reported by DTU Aqua."]
["SWE","International Ecosystem Survey in the Nordic Seas","ASH","CTD by Haul","C","Y","reported by Denmark",null,null,null,null,"","Reported by DTU Aqua."]
["SWE","Baltic International Trawl Survey ","BITS Q1","Stomach content cod","A","N",null,"Y","No database","N","N","","Data used for MSFD, WGIAB; WGCOMEDA."]
["SWE","Baltic International Trawl Survey ","BITS Q1","Stomach content flounder","A","N",null,"Y","No database","N","N","","Data used for MSFD, WGIAB; WGCOMEDA."]
["SWE","Baltic International Trawl Survey ","BITS Q4","Stomach content cod","A","N",null,"Y","No database","N","N","","Data used for MSFD, WGIAB; WGCOMEDA."]
["SWE","Baltic International Trawl Survey ","BITS Q4","Stomach content flounder","A","N",null,"Y","No database","N","N","","Data used for MSFD, WGIAB; WGCOMEDA."]
["SWE","Baltic International Acoustic Survey","BIAS","Stomach content cod","A","N",null,"Y","No database","N","N","","Data used for MSFD, WGIAB; WGCOMEDA."]

{"sheet":"Table2A Fishing activity variab","index":8,"n_rows":12,"n_cols":20,"rows_kept":12,"cut":false,"hidden":false,"merged":[]}
["Table 2A: Fishing activity variables data collection strategy "]
[null,null,null,null,null,null,null,null,null,null,null,null,null,null,null,null,null,null,"WP  years","2017-2019"]
[null,null,null,null,null,null,null,null,null,null,null,null,null,null,null,null,null,null,"AR year",2017]
["MS","Supra region ","Region","Variable Group ","Variable","Fishing technique ","Length class ","Metiers (level 6)","Data collected  under control regulation appropriate for scientific use (Y/N/I)","Type of data collected under control regulation used to calculate the estimates ","Expected coverage of data collected under control regulation (% of fishing trips)","Additional data collection (Y/N)","Data collection scheme ","Planned coverage of data collected under complementary data collection (% of fishing trips)","Comments","Data collected  under control regulation accessible for scientific use (Y/N/I)","Data source for complementary data collection","Achieved coverage of data collected under complementary data collection ","Response Rate (%)","AR comments"]
["SWE","North Atlantic","all regions","Capacity","Number of vessels, GT, kW, Vessel Age","all fleets","0-< 10 m","all metiers","I","Logbooks, Community fishing fleet register",0.11,"Y","Census",1,"Census based on monthly journals","I","NA","100%","100%","In WP 2017 in table 2A it was stated that there were a complementary data collection. Although, the answer to question 4 in text box 2A was \"No complementary data needed\", which is contradictory information. The census collection scheme filled in in WP 2017 should be considered as a complementary data collection, as its not regulated on EU level."]
["SWE","North Atlantic","all regions","Capacity","Number of vessels, GT, kW, Vessel Age","inactive","0-< 10 m","all metiers","I","Logbooks, Community fishing fleet register","NA","Y","Census","NA","Census based on monthly journals. For inactive fleet segments, it is not clear what to report under expected and planned coverage with regards to % of fishing trips","I","NA","NA","NA","In WP 2017 in table 2A it was stated that there were a complementary data collection. Although, the answer to question 4 in text box 2A was \"No complementary data needed\", which is contradictory information. The census collection scheme filled in in WP 2017 should be considered as a complementary data collection, as its not regulated on EU level."]
["SWE","North Atlantic","all regions","Capacity","Number of vessels, GT, kW, Vessel Age","all fleets","10 m or larger","all metiers","Y","Logbooks, Community fishing fleet register",1,"N","None","NA",null,"Y","NA","NA","NA"]
["SWE","North Atlantic","all regions","Capacity","Number of vessels, GT, kW, Vessel Age","inactive","10 m or larger","all metiers","Y","Logbooks, Community fishing fleet register","NA","N","None","NA","For inactive fleet segments, it is not clear what to report under expected and planned coverage with regards to % of fishing trips","Y","NA","NA","NA"]
["SWE","North Atlantic","all regions","Effort","Days at sea, fishing days, kW*fishing days, GT*fishing days, number of trips, number of fishing operations, number of nets/length, number of hooks, number of lines, number of pots, traps","all fleets","0-< 10 m","all metiers","I","Logbooks",0.11,"Y","Census",1,"Census based on monthly journals. Approximate values for number of trips and number of fishing operations","I","NA","100%","100%","In WP 2017 in table 2A it was stated that there were a complementary data collection. Although, the answer to question 4 in text box 2A was \"No complementary data needed\", which is contradictory information. The census collection scheme filled in in WP 2017 should be considered as a complementary data collection, as its not regulated on EU level."]
["SWE","North Atlantic","all regions","Effort","Days at sea, fishing days, kW*fishing days, GT*fishing days, number of trips, number of fishing operations, number of nets/length, number of hooks, number of lines, number of pots, traps","all fleets","10 m or larger","all metiers","Y","Logbooks",1,"N","None","NA",null,"Y","NA","NA","NA"]
["SWE","North Atlantic","all regions","Landings","Value of landings total and per commercial species, Live Weight of landings total and per species,  Prices by commercial species","all fleets","0-< 10 m","all metiers","I","Sales notes, Logbooks",0.11,"Y","Census",1,"Census based on monthly journals","I","NA","100%","100%","In WP 2017 in table 2A it was stated that there were a complementary data collection. Although, the answer to question 4 in text box 2A was \"No complementary data needed\", which is contradictory information. The census collection scheme filled in in WP 2017 should be considered as a complementary data collection, as its not regulated on EU level."]
["SWE","North Atlantic","all regions","Landings","Value of landings total and per commercial species, Live Weight of landings total and per species,  Prices by commercial species","all fleets","10 m or larger","all metiers","Y","Sales Notes, Logbooks",1,"N","None","NA",null,"Y","NA","NA","NA"]

{"sheet":"Table3A Pop segment fisheries","index":9,"n_rows":51,"n_cols":18,"rows_kept":51,"cut":false,"hidden":false,"merged":[]}
["Table 3A: Population segments for collection of economic and social data for fisheries"]
[null,null,null,null,null,null,null,null,null,null,null,null,null,null,null,null,"WP  years","2017-2019"]
[null,null,null,null,null,null,null,null,null,null,null,null,null,null,null,null,"AR year",2017]
["MS","Supra region ","Fishing technique ","Length class ","Cluster Name","Type of variables (E/S)","Variable","Data Source","Type of data collection scheme ","Frequency","Planned sample rate % ","Comments","Frame population","Achieved sample number","Achieved Sample Rate %","Response Rate %","Achieved Sample no/Planned sample no.","AR Comments"]
["SWE","Baltic Sea, North Sea and Eastern Arctic, and North Atlantic","All active segments","All classes",null,"E","Gross value of landings","Logbooks/Monthly Journals/Landing declarations","A - Census","A",100,null,975,975,{"$f":"N5/M5","v":1},{"$f":"O5","v":1},{"$f":"N5/(M5*K5/100)","v":1}]
["SWE","Baltic Sea, North Sea and Eastern Arctic, and North Atlantic","All active segments","All classes",null,"E","Income from leasing out quota or other fishing rights ","Questionnaires/Tax declarations/Logbooks/Monthly Journals","A - Census","A",100,null,975,688,{"$f":"N6/M6","v":0.7056410256410256},{"$f":"O6","v":0.7056410256410256},{"$f":"N6/(M6*K6/100)","v":0.7056410256410256},"Not applicable. This variable is not presented seperately. Its included in other income."]
["SWE","Baltic Sea, North Sea and Eastern Arctic, and North Atlantic","All active segments","All classes",null,"E","Other income","Questionnaires/Tax declarations/Logbooks/Monthly Journals","A - Census","A",100,null,975,688,0.7056410256410256,0.7056410256410256,0.7056410256410256]
["SWE","Baltic Sea, North Sea and Eastern Arctic, and North Atlantic","All active segments","All classes",null,"E","Personnel costs ","Questionnaires/Tax declarations/Logbooks/Monthly Journals","A - Census","A",100,null,975,688,0.7056410256410256,0.7056410256410256,0.7056410256410256]
["SWE","Baltic Sea, North Sea and Eastern Arctic, and North Atlantic","All active segments","All classes",null,"E","Value of unpaid labour ","Questionnaires/Tax declarations/Logbooks/Monthly Journals","A - Census","A",100,null,975,688,0.7056410256410256,0.7056410256410256,0.7056410256410256]
["SWE","Baltic Sea, North Sea and Eastern Arctic, and North Atlantic","All active segments","All classes",null,"E","Energy costs","Questionnaires/Tax declarations/Logbooks/Monthly Journals","A - Census","A",100,null,975,741,0.76,0.76,0.76]
["SWE","Baltic Sea, North Sea and Eastern Arctic, and North Atlantic","All active segments","All classes",null,"E","Repair and maintenance costs ","Questionnaires/Tax declarations/Logbooks/Monthly Journals","A - Census","A",100,null,975,740,0.75897435897435894,0.75897435897435894,0.75897435897435894]
["SWE","Baltic Sea, North Sea and Eastern Arctic, and North Atlantic","All active segments","All classes",null,"E","Variable costs","Questionnaires/Tax declarations/Logbooks/Monthly Journals","A - Census","A",100,null,975,738,0.75692307692307692,0.75692307692307692,0.75692307692307692]
["SWE","Baltic Sea, North Sea and Eastern Arctic, and North Atlantic","All active segments","All classes",null,"E","Non-variable costs","Questionnaires/Tax declarations/Logbooks/Monthly Journals","A - Census","A",100,null,975,736,0.7548717948717949,0.7548717948717949,0.7548717948717949]
["SWE","Baltic Sea, North Sea and Eastern Arctic, and North Atlantic","All active segments","All classes",null,"E","Lease/rental payments for quota or other fishing rights ","Questionnaires/Tax declarations/Logbooks/Monthly Journals","A - Census","A",100,null,975,738,0.75692307692307692,0.75692307692307692,0.75692307692307692,"Not applicable. This variable is not presented seperately. Its included in variable costs."]
["SWE","Baltic Sea, North Sea and Eastern Arctic, and North Atlantic","All active segments","All classes",null,"E","Operating subsidies ","Questionnaires/Tax declarations/Logbooks/Monthly Journals","A - Census","A",100,null,975,975,1,1,1,"No subsidies."]
["SWE","Baltic Sea, North Sea and Eastern Arctic, and North Atlantic","All active segments","All classes",null,"E","Subsidies on investments  ","Questionnaires/Tax declarations/Logbooks/Monthly Journals","A - Census","A",100,null,975,975,1,1,1,"No subsidies."]
["SWE","Baltic Sea, North Sea and Eastern Arctic, and North Atlantic","All active segments","All classes",null,"E","Consumption of fixed capital ","Questionnaires/Tax declarations/Logbooks/Monthly Journals","A - Census","A",100,null,975,762,0.78153846153846152,0.78153846153846152,0.78153846153846152]
["SWE","Baltic Sea, North Sea and Eastern Arctic, and North Atlantic","All active segments","All classes",null,"E","Value of physical capital ","Questionnaires/Tax declarations/Logbooks/Monthly Journals","A - Census","A",100,null,975,762,0.78153846153846152,0.78153846153846152,0.78153846153846152]
["SWE","Baltic Sea, North Sea and Eastern Arctic, and North Atlantic","All active segments","All classes",null,"E","Value of quota and other fishing rights ","Questionnaires/Tax declarations/Logbooks/Monthly Journals","A - Census","A",100,null,975,null,0,0,0,"NA"]
["SWE","Baltic Sea, North Sea and Eastern Arctic, and North Atlantic","All active segments","All classes",null,"E","Investments in tangible assets, net","Questionnaires/Tax declarations/Logbooks/Monthly Journals","A - Census","A",100,null,975,735,0.75384615384615383,0.75384615384615383,0.75384615384615383]
["SWE","Baltic Sea, North Sea and Eastern Arctic, and North Atlantic","All active segments","All classes",null,"E","Long/short Debt ","Questionnaires/Tax declarations/Logbooks/Monthly Journals","A - Census","A",100,null,975,688,0.7056410256410256,0.7056410256410256,0.7056410256410256]
["SWE","Baltic Sea, North Sea and Eastern Arctic, and North Atlantic","All active segments","All classes",null,"E","Total assets ","Questionnaires/Tax declarations/Logbooks/Monthly Journals","A - Census","A",100,null,975,688,0.7056410256410256,0.7056410256410256,0.7056410256410256]
["SWE","Baltic Sea, North Sea and Eastern Arctic, and North Atlantic","All active segments","All classes",null,"E","Engaged crew ","Questionnaires/Tax declarations/Logbooks/Monthly Journals","A - Census","A",100,null,975,760,0.77948717948717949,0.77948717948717949,0.77948717948717949]
["SWE","Baltic Sea, North Sea and Eastern Arctic, and North Atlantic","All active segments","All classes",null,"E","Unpaid labour ","Questionnaires/Tax declarations/Logbooks/Monthly Journals","A - Census","A",100,null,975,760,0.77948717948717949,0.77948717948717949,0.77948717948717949]
["SWE","Baltic Sea, North Sea and Eastern Arctic, and North Atlantic","All active segments","All classes",null,"E","Total hours worked per year ","Questionnaires/Tax declarations/Logbooks/Monthly Journals","A - Census","A",100,null,975,760,0.77948717948717949,0.77948717948717949,0.77948717948717949]
["SWE","Baltic Sea, North Sea and Eastern Arctic, and North Atlantic","All active segments","All classes",null,"E","Number of vessels","EU Fleet register","A - Census","A",100,null,975,975,1,1,1]
["SWE","Baltic Sea, North Sea and Eastern Arctic, and North Atlantic","All active segments","All classes",null,"E","Mean LOA of vessels ","EU Fleet register","A - Census","A",100,null,975,975,1,1,1]
["SWE","Baltic Sea, North Sea and Eastern Arctic, and North Atlantic","All active segments","All classes",null,"E","Total vessel's tonnage","EU Fleet register","A - Census","A",100,null,975,975,1,1,1]
["SWE","Baltic Sea, North Sea and Eastern Arctic, and North Atlantic","All active segments","All classes",null,"E","Total vessel's power ","EU Fleet register","A - Census","A",100,null,975,975,1,1,1]
["SWE","Baltic Sea, North Sea and Eastern Arctic, and North Atlantic","All active segments","All classes",null,"E","Mean age of vessels ","EU Fleet register","A - Census","A",100,null,975,975,1,1,1]
["SWE","Baltic Sea, North Sea and Eastern Arctic, and North Atlantic","All active segments","All classes",null,"E","Days at sea ","Logbooks/Monthly Journals","A - Census","A",100,null,975,975,1,1,1]
["SWE","Baltic Sea, North Sea and Eastern Arctic, and North Atlantic","All active segments","All classes",null,"E","Energy consumption ","Questionnaires/Tax declarations/Logbooks/Monthly Journals","A - Census","A",100,null,975,726,0.74461538461538457,0.74461538461538457,0.74461538461538457]
["SWE","Baltic Sea, North Sea and Eastern Arctic, and North Atlantic","All active segments","All classes",null,"E","Number of fishing enterprises/units  ","Questionnaires/Tax declarations/Logbooks/Monthly Journals","A - Census","A",100,null,975,975,1,1,1]
["SWE","Baltic Sea, North Sea and Eastern Arctic, and North Atlantic","All active segments","All classes",null,"E","Value of landings per species ","Logbooks/Monthly Journals/Landing declarations","A - Census","A",100,null,975,975,1,1,1]
["SWE","Baltic Sea, North Sea and Eastern Arctic, and North Atlantic","All active segments","All classes",null,"E","Average price per species","Logbooks/Monthly Journals/Landing declarations","A - Census","A",100,null,975,975,1,1,1]
["SWE","Baltic Sea, North Sea and Eastern Arctic, and North Atlantic","All inactive segments","All classes",null,"E","Value of quota and other fishing rights ","Questionnaires/Tax declarations/Logbooks/Monthly Journals","A - Census","A",100,null,280,null,0,0,0,"NA"]
["SWE","Baltic Sea, North Sea and Eastern Arctic, and North Atlantic","All inactive segments","All classes",null,"E","Consumption of fixed capital ","Questionnaires/Tax declarations/Logbooks/Monthly Journals","A - Census","A",100,null,280,{"$f":"M37*O37","v":218.83076923076922},{"$f":"O18","v":0.78153846153846152},0.78153846153846152,{"$f":"N37/(M37*K37/100)","v":0.78153846153846152},"Consumption of fixed capital for inactive vessels are estimated via a proxy, which is active vessels within same length and gear segments. Achieved sample rate refers to achieved sample rate in the active segment."]
["SWE","Baltic Sea, North Sea and Eastern Arctic, and North Atlantic","All inactive segments","All classes",null,"E","Value of physical capital ","Questionnaires/Tax declarations/Logbooks/Monthly Journals","A - Census","A",100,null,280,{"$f":"M38*O38","v":218.83076923076922},{"$f":"O37","v":0.78153846153846152},0.78153846153846152,0.78153846153846152,"Value of physical capital for inactive vessels are estimated via a proxy, which is active vessels within same length and gear segments. Achieved sample rate refers to achieved sample rate in the active segment."]
["SWE","Baltic Sea, North Sea and Eastern Arctic, and North Atlantic","All inactive segments","All classes",null,"E","Number of vessels","EU Fleet register","A - Census","A",100,null,280,280,1,1,1]
["SWE","Baltic Sea, North Sea and Eastern Arctic, and North Atlantic","All inactive segments","All classes",null,"E","Mean LOA of vessels ","EU Fleet register","A - Census","A",100,null,280,280,1,1,1]
["SWE","Baltic Sea, North Sea and Eastern Arctic, and North Atlantic","All inactive segments","All classes",null,"E","Total vessel's tonnage","EU Fleet register","A - Census","A",100,null,280,280,1,1,1]
["SWE","Baltic Sea, North Sea and Eastern Arctic, and North Atlantic","All inactive segments","All classes",null,"E","Total vessel's power ","EU Fleet register","A - Census","A",100,null,280,280,1,1,1]
["SWE","Baltic Sea, North Sea and Eastern Arctic, and North Atlantic","All inactive segments","All classes",null,"E","Mean age of vessels ","EU Fleet register","A - Census","A",100,null,280,280,1,1,1]
["SWE","Baltic Sea, North Sea and Eastern Arctic, and North Atlantic","All inactive segments","All classes",null,"S","Employment by gender","Questionnaire","A - Census","Every 3rd year from 2018",100,null,975,null,0,0,0,"These variables are currently being collected for reference year 2017 and will be included in the 2018-report."]
["SWE","Baltic Sea, North Sea and Eastern Arctic, and North Atlantic","All inactive segments","All classes",null,"S","Full time equivalent by gender","Questionnaire","A - Census","Every 3rd year from 2018",100,null,975,null,0,0,0,"These variables are currently being collected for reference year 2017 and will be included in the 2018-report."]
["SWE","Baltic Sea, North Sea and Eastern Arctic, and North Atlantic","All inactive segments","All classes",null,"S","Unpaid labour by gender","Questionnaire","A - Census","Every 3rd year from 2018",100,null,975,null,0,0,0,"These variables are currently being collected for reference year 2017 and will be included in the 2018-report."]
["SWE","Baltic Sea, North Sea and Eastern Arctic, and North Atlantic","All inactive segments","All classes",null,"S","Employment by age","Questionnaire","A - Census","Every 3rd year from 2018",100,null,975,null,0,0,0,"These variables are currently being collected for reference year 2017 and will be included in the 2018-report."]
["SWE","Baltic Sea, North Sea and Eastern Arctic, and North Atlantic","All inactive segments","All classes",null,"S","Employment by education level","Questionnaire","A - Census","Every 3rd year from 2018",100,null,975,null,0,0,0,"These variables are currently being collected for reference year 2017 and will be included in the 2018-report."]
["SWE","Baltic Sea, North Sea and Eastern Arctic, and North Atlantic","All inactive segments","All classes",null,"S","Full time equivalent by nationality","Questionnaire","A - Census","Every 3rd year from 2018",100,null,975,null,0,0,0,"These variables are currently being collected for reference year 2017 and will be included in the 2018-report."]
["SWE","Baltic Sea, North Sea and Eastern Arctic, and North Atlantic","All inactive segments","All classes",null,"S","Employment by employment status","Questionnaire","A - Census","Every 3rd year from 2018",100,null,975,null,0,0,0,"These variables are currently being collected for reference year 2017 and will be included in the 2018-report."]
["SWE","Baltic Sea, North Sea and Eastern Arctic, and North Atlantic","All inactive segments","All classes",null,"S","Full time equivalent by nationality","Questionnaire","A - Census","Every 3rd year from 2018",100,null,975,null,0,0,0,"These variables are currently being collected for reference year 2017 and will be included in the 2018-report."]

{"sheet":"Table3B Pop segments aquacultur","index":10,"n_rows":38,"n_cols":18,"rows_kept":38,"cut":false,"hidden":false,"merged":[]}
["Table 3B: Population segments for collection of economic and social data for aquaculture"]
[null,null,null,null,null,null,null,null,null,null,null,null,null,null,null,null,"WP  years","2017-2019"]
[null,null,null,null,null,null,null,null,null,null,null,null,null,null,null,null,"AR year"]
["MS","Techniques","Species group","Type of variables (E/S)","Variable","Data source","Type of data collection scheme ","Threshold (Y/N)","Threshold Type","Frequency","Planned sample rate % ","Comments","Frame population","Achieved sample number","Achieved Sample Rate %","Response Rate %","Achieved Sample no/Planned sample no.","AR Comment"]
["SWE","all techniques","all segments","E","Gross sales per species","Financial accounts","A - Census","y",3,"every year",100,null,126,126,{"$f":"N5/M5","v":1},100,{"$f":"N5/(M5*K5/100)","v":1}]
["SWE","all techniques","all segments","E","Other income","Financial accounts","A - Census","y",3,"every year",100,null,126,126,1,100,1]
["SWE","all techniques","all segments","E","Personnel costs","Financial accounts","A - Census","y",3,"every year",100,null,126,126,1,100,1]
["SWE","all techniques","all segments","E","Value of unpaid labour","questionnaires","A - Census","y",3,"every 3 year",100,null,126,76,0.60317460317460314,100,0.60317460317460314,"Questionnaire was sent out to all enterprises but response rate was approximately 60%"]
["SWE","all techniques","all segments","E","Energy costs","questionnaires","A - Census","y",3,"every 3 year",100,null,126,76,0.60317460317460314,100,0.60317460317460314,"Questionnaire was sent out to all enterprises but response rate was approximately 60%"]
["SWE","all techniques","all segments","E","Livestock costs","questionnaires","A - Census","y",3,"every 3 year",100,null,126,76,0.60317460317460314,100,0.60317460317460314,"Questionnaire was sent out to all enterprises but response rate was approximately 60%"]
["SWE","all techniques","all segments","E","Feed costs","questionnaires","A - Census","y",3,"every 3 year",100,null,126,76,0.60317460317460314,100,0.60317460317460314,"Questionnaire was sent out to all enterprises but response rate was approximately 60%"]
["SWE","all techniques","all segments","E","Repair and maintenance","questionnaires","A - Census","y",3,"every 3 year",100,null,126,76,0.60317460317460314,100,0.60317460317460314,"Questionnaire was sent out to all enterprises but response rate was approximately 60%"]
["SWE","all techniques","all segments","E","Other operating costs","questionnaires","A - Census","y",3,"every 3 year",100,null,126,76,0.60317460317460314,100,0.60317460317460314,"Questionnaire was sent out to all enterprises but response rate was approximately 60%"]
["SWE","all techniques","all segments","E","Operating subsidies","Managing authority","A - Census","y",3,"every year",100,null,126,126,1,100,1]
["SWE","all techniques","all segments","E","Subsidies on investment","Managing authority","A - Census","y",3,"every year",100,null,126,126,1,100,1]
["SWE","all techniques","all segments","E","Consumtion of fixed capital","Financial accounts","A - Census","y",3,"every year",100,null,126,126,1,100,1]
["SWE","all techniques","all segments","E","Total value of assets","Financial accounts","A - Census","y",3,"every year",100,null,126,126,{"$f":"N17/M17","v":1},100,{"$f":"N17/(M17*K17/100)","v":1}]
["SWE","all techniques","all segments","E","Financial income","Financial accounts","A - Census","y",3,"every year",100,null,126,126,1,100,1]
["SWE","all techniques","all segments","E","Financial expenditures","Financial accounts","A - Census","y",3,"every year",100,null,126,126,1,100,1]
["SWE","all techniques","all segments","E","Net Investments","Financial accounts","A - Census","y",3,"every year",100,null,126,126,1,100,1]
["SWE","all techniques","all segments","E","Debt","Financial accounts","A - Census","y",3,"every year",100,null,126,126,1,100,1]
["SWE","all techniques","all segments","E","Livestock used","questionnaires","A - Census","y",3,"every 3 year",100,null,126,76,0.60317460317460314,100,0.60317460317460314,"Questionnaire was sent out to all enterprises but response rate was approximately 60%"]
["SWE","all techniques","all segments","E","Fish feed used","questionnaires","A - Census","y",3,"every 3 year",100,null,126,76,0.60317460317460314,100,0.60317460317460314,"Questionnaire was sent out to all enterprises but response rate was approximately 60%"]
["SWE","all techniques","all segments","E","Weight of sales per species","questionnaires","A - Census","y",3,"every 3 year",100,null,126,76,0.60317460317460314,100,0.60317460317460314,"Questionnaire was sent out to all enterprises but response rate was approximately 60%"]
["SWE","all techniques","all segments","E","Persons employed, number","questionnaires","A - Census","y",3,"every 3 year",100,null,126,76,0.60317460317460314,100,0.60317460317460314,"Questionnaire was sent out to all enterprises but response rate was approximately 60%"]
["SWE","all techniques","all segments","E","Persons employed, FTE","questionnaires","A - Census","y",3,"every 3 year",100,null,126,76,{"$f":"N26/M26","v":0.60317460317460314},100,{"$f":"N26/(M26*K26/100)","v":0.60317460317460314},"Questionnaire was sent out to all enterprises but response rate was approximately 60%"]
["SWE","all techniques","all segments","E","Unpaid labour, number","questionnaires","A - Census","y",3,"every 3 year",100,null,126,76,0.60317460317460314,100,0.60317460317460314,"Questionnaire was sent out to all enterprises but response rate was approximately 60%"]
["SWE","all techniques","all segments","E","Unpaid labour, FTE","questionnaires","A - Census","y",3,"every 3 year",100,null,126,76,0.60317460317460314,100,0.60317460317460314,"Questionnaire was sent out to all enterprises but response rate was approximately 60%"]
["SWE","all techniques","all segments","E","Number of hours worked by employees and unpaid workers","questionnaires","A - Census","y",3,"every 3 year",100,null,126,76,{"$f":"N29/M29","v":0.60317460317460314},100,{"$f":"N29/(M29*K29/100)","v":0.60317460317460314},"Questionnaire was sent out to all enterprises but response rate was approximately 60%"]
["SWE","all techniques","all segments","E","Number of enterprises ","financial accounts, managing authority and questionnaires","A - Census","y",3,"every year",100,null,126,126,{"$f":"N30/M30","v":1},100,{"$f":"N30/(M30*K30/100)","v":1}]
["SWE","all techniques","all segments","S","Unpaid labour by gender","questionnaires","A - Census","y",3,"every 3 year",100,null,0,0,{"$error":"#DIV/0!"},100,{"$error":"#DIV/0!"},"These variables are currently being collected for production year 2016 and will be included in the 2018-report"]
["SWE","all techniques","all segments","S","Employment by gender","questionnaires","A - Census","y",3,"every 3 year",100,null,0,0,{"$error":"#DIV/0!"},100,{"$error":"#DIV/0!"},"These variables are currently being collected for production year 2016 and will be included in the 2018-report"]
["SWE","all techniques","all segments","S","FTE by gender","questionnaires","A - Census","y",3,"every 3 year",100,null,0,0,{"$error":"#DIV/0!"},100,{"$error":"#DIV/0!"},"These variables are currently being collected for production year 2016 and will be included in the 2018-report"]
["SWE","all techniques","all segments","S","Employment by age","questionnaires","A - Census","y",3,"every 3 year",100,null,0,0,{"$error":"#DIV/0!"},100,{"$error":"#DIV/0!"},"These variables are currently being collected for production year 2016 and will be included in the 2018-report"]
["SWE","all techniques","all segments","S","Employment by education level","questionnaires","A - Census","y",3,"every 3 year",100,null,0,0,{"$error":"#DIV/0!"},100,{"$error":"#DIV/0!"},"These variables are currently being collected for production year 2016 and will be included in the 2018-report"]
["SWE","all techniques","all segments","S","Employment by nationality","questionnaires","A - Census","y",3,"every 3 year",100,null,0,0,{"$error":"#DIV/0!"},100,{"$error":"#DIV/0!"},"These variables are currently being collected for production year 2016 and will be included in the 2018-report"]
["SWE","all techniques","all segments","S","Employment by employment status","questionnaires","A - Census","y",3,"every 3 year",100,null,0,0,{"$error":"#DIV/0!"},100,{"$error":"#DIV/0!"},"These variables are currently being collected for production year 2016 and will be included in the 2018-report"]
["SWE","all techniques","all segments","S","FTE National","questionnaires","A - Census","y",3,"every 3 year",100,null,0,0,{"$error":"#DIV/0!"},100,{"$error":"#DIV/0!"},"These variables are currently being collected for production year 2016 and will be included in the 2018-report"]

{"sheet":"Table3C Pop segments processin","index":11,"n_rows":31,"n_cols":15,"rows_kept":31,"cut":false,"hidden":false,"merged":[]}
["Table 3C: Population segments for collection of economic and social data for the processing industry"]
[null,null,null,null,null,null,null,null,null,null,null,null,null,"WP  years","2017-2019"]
[null,null,null,null,null,null,null,null,null,null,null,null,null,"AR year",2017]
["MS","Segment","Type of variables (E/S)","Variables ","Data sources","Type of data collection scheme ","Frequency","Planned sample rate % ","Comments","Frame population","Achieved sample number","Achieved Sample Rate %","Response Rate %","Achieved Sample no/Planned sample no.","AR Comments"]
["SWE","all segments. Enterprises with ≥ 250 employees will be clustered with enterprises with 50-249 employees due to confidentiality reasons.","E","Turnover","financial accounts","A - Census","Every year",1,null,224,224,{"$f":"K5/J5","v":1},100,{"$f":"K5/(J5*H5/100)","v":99.999999999999986}]
["SWE","all segments. Enterprises with ≥ 250 employees will be clustered with enterprises with 50-249 employees due to confidentiality reasons.","E","Other income","financial accounts","A - Census","Every year",1,null,224,224,{"$f":"K6/J6","v":1},101,{"$f":"K6/(J6*H6/100)","v":99.999999999999986}]
["SWE","all segments. Enterprises with ≥ 250 employees will be clustered with enterprises with 50-249 employees due to confidentiality reasons.","E","Personnel costs","financial accounts","A - Census","Every year",1,null,224,224,1,102,99.999999999999986]
["SWE","all segments. Enterprises with ≥ 250 employees will be clustered with enterprises with 50-249 employees due to confidentiality reasons.","E","Value of unpaid labour","own calculations, financial accounts",null,"Every year",1,"Maybe its possible for SWE to calculate imputed value of unpaid labour. ",224,224,1,103,99.999999999999986,"We calculated imputed value of unpaid labour."]
["SWE","all segments. Enterprises with ≥ 250 employees will be clustered with enterprises with 50-249 employees due to confidentiality reasons.","E","Value for external agency workers (optional)",null,null,null,null,"It's optional and SWE will not collect the data. ",null,null,null,null,null,"Didnt collect as stated in WP."]
["SWE","all segments. Enterprises with ≥ 250 employees will be clustered with enterprises with 50-249 employees due to confidentiality reasons.","E","energy costs","questionnaires","C - Non-Probability Sample Survey","Every year",1,null,17,16,{"$f":"K10/J10","v":0.94117647058823528},100,{"$f":"K10/(J10*H10/100)","v":94.117647058823522}]
["SWE","all segments. Enterprises with ≥ 250 employees will be clustered with enterprises with 50-249 employees due to confidentiality reasons.","E","Purchase of fish and other raw material for produkction","financial accounts + questionnaires","A - Census","Every year",1,null,224,224,{"$f":"K11/J11","v":1},103,{"$f":"K11/(J11*H11/100)","v":99.999999999999986}]
["SWE","all segments. Enterprises with ≥ 250 employees will be clustered with enterprises with 50-249 employees due to confidentiality reasons.","E","other operational costs","financial accounts","A - Census","Every year",1,null,224,224,1,103,99.999999999999986]
["SWE","all segments. Enterprises with ≥ 250 employees will be clustered with enterprises with 50-249 employees due to confidentiality reasons.","E","operating subsidies","questionnaires","C - Non-Probability Sample Survey","Every year",1,"It's not possible for SWE to seperate subsidies to a reasonable cost. We'll collect data for the variable group.",17,16,{"$f":"K13/J13","v":0.94117647058823528},100,{"$f":"K13/(J13*H13/100)","v":94.117647058823522},"We reported according to WP."]
["SWE","all segments. Enterprises with ≥ 250 employees will be clustered with enterprises with 50-249 employees due to confidentiality reasons.","E","subsidies on investments","questionnaires","C - Non-Probability Sample Survey","Every year",1,"It's not possible for SWE to seperate subsidies to a reasonable cost. We'll collect data for the variable group.",17,16,{"$f":"K14/J14","v":0.94117647058823528},100,{"$f":"K14/(J14*H14/100)","v":94.117647058823522},"We reported according to WP."]
["SWE","all segments. Enterprises with ≥ 250 employees will be clustered with enterprises with 50-249 employees due to confidentiality reasons.","E","consumption of fixed capital","financial accounts","A - Census","Every year",1,null,224,224,{"$f":"K15/J15","v":1},103,{"$f":"K15/(J15*H15/100)","v":99.999999999999986}]
["SWE","all segments. Enterprises with ≥ 250 employees will be clustered with enterprises with 50-249 employees due to confidentiality reasons.","E","total value of assets","financial accounts","A - Census","Every year",1,null,224,224,1,103,99.999999999999986]
["SWE","all segments. Enterprises with ≥ 250 employees will be clustered with enterprises with 50-249 employees due to confidentiality reasons.","E","Financial income","financial accounts","A - Census","Every year",1,null,224,224,1,103,99.999999999999986]
["SWE","all segments. Enterprises with ≥ 250 employees will be clustered with enterprises with 50-249 employees due to confidentiality reasons.","E","Financial expenditure","financial accounts","A - Census","Every year",1,null,224,224,1,103,99.999999999999986]
["SWE","all segments. Enterprises with ≥ 250 employees will be clustered with enterprises with 50-249 employees due to confidentiality reasons.","E","Net investments","financial accounts","A - Census","Every year",1,null,224,224,1,103,99.999999999999986]
["SWE","all segments. Enterprises with ≥ 250 employees will be clustered with enterprises with 50-249 employees due to confidentiality reasons.","E","debt","financial accounts","A - Census","Every year",1,null,224,224,1,103,99.999999999999986]
["SWE","all segments. Enterprises with ≥ 250 employees will be clustered with enterprises with 50-249 employees due to confidentiality reasons.","E","Number of persons employed","Employment Register","A - Census","Every year",1,null,224,224,1,103,99.999999999999986]
["SWE","all segments. Enterprises with ≥ 250 employees will be clustered with enterprises with 50-249 employees due to confidentiality reasons.","E","FTE National","financial accounts","A - Census","Every year",1,null,224,224,1,103,99.999999999999986]
["SWE","all segments. Enterprises with ≥ 250 employees will be clustered with enterprises with 50-249 employees due to confidentiality reasons.","E","Unpaid labour",null,null,null,null,"It's not possible for SWE to collect the data.",224,null,null,null,null,"Not possible for SWE to collect as stated in WP."]
["SWE","all segments. Enterprises with ≥ 250 employees will be clustered with enterprises with 50-249 employees due to confidentiality reasons.","E","Number of hours worked by employees and unpaid workers","C - Non-Probability Sample Survey",null,null,null,"The datacollection in SWE is on a aggregate level. It's not sure SWE can collect disagregated data. ",224,null,null,null,null,"Not possible for SWE to collect as stated in WP."]
["SWE","all segments. Enterprises with ≥ 250 employees will be clustered with enterprises with 50-249 employees due to confidentiality reasons.","E","Number of enterprises","Business Register","A - Census","Every year",1,null,224,224,{"$f":"K25/J25","v":1},103,{"$f":"K25/(J25*H25/100)","v":99.999999999999986}]
["SWE","all segments. Enterprises with ≥ 250 employees will be clustered with enterprises with 50-249 employees due to confidentiality reasons.","E","Weight of raw material per species and origin (optional)",null,null,null,null,"It's optional and SWE will not collect the data. ",null,null,null,null,null,"Didnt collect as stated in WP."]
["SWE","all segments. Enterprises with ≥ 250 employees will be clustered with enterprises with 50-249 employees due to confidentiality reasons.","S","Employment by gender","Employment Register","A - Census","Every 3rd year from 2018",1,null,"N/A",null,null,null,null,"Didnt collect 2017, according to WP. Will start to collect 2018."]
["SWE","all segments. Enterprises with ≥ 250 employees will be clustered with enterprises with 50-249 employees due to confidentiality reasons.","S","Employment by age","Employment Register","A - Census","Every 3rd year from 2018",1,null,"N/A",null,null,null,null,"Didnt collect 2017, according to WP. Will start to collect 2018."]
["SWE","all segments. Enterprises with ≥ 250 employees will be clustered with enterprises with 50-249 employees due to confidentiality reasons.","S","Employment by education level","Employment Register","A - Census","Every 3rd year from 2018",1,null,"N/A",null,null,null,null,"didnt collect 2017, according to WP. Will start to collect 2018."]
["SWE","all segments. Enterprises with ≥ 250 employees will be clustered with enterprises with 50-249 employees due to confidentiality reasons.","S","Employment by nationality","Employment Register","A - Census","Every 3rd year from 2018",1,null,"N/A",null,null,null,null,"Didnt collect 2017, according to WP. Will start to collect 2018."]
["SWE","all segments. Enterprises with ≥ 250 employees will be clustered with enterprises with 50-249 employees due to confidentiality reasons.","S","FTE National","financial accounts","A - Census","Every 3rd year from 2018",1,null,224,224,{"$f":"K31/J31","v":1},103,{"$f":"K31/(J31*H31/100)","v":99.999999999999986},"Calculated on aggregated level, both male and female. "]

{"sheet":"Table4A Sampling plan descripti","index":12,"n_rows":40,"n_cols":25,"rows_kept":40,"cut":false,"hidden":false,"merged":[[3,15,3,17],[3,18,3,24]]}
["Table 4A: Sampling plan description for biological data"]
[null,null,null,null,null,null,null,null,null,null,null,null,null,null,null,null,null,null,null,null,null,null,null,"WP  years","2017-2019"]
[null,null,null,null,null,null,null,null,null,null,null,null,null,null,null,null,null,null,null,null,null,null,null,"AR year",2017]
[null,null,null,null,null,null,null,null,null,null,null,null,null,null,null,"Conformity",null,null,"Informative Data"]
["MS","MS participating in sampling","Region","RFMO/RFO/IO","Sub-area / Fishing ground","Scheme","Stratum ID code","PSU type","Catch fractions covered","Species/ Stocks covered for estimation of volume and length of catch fractions","Seasonality (Temporal strata)","Reference years","Average Number of PSU during the reference years         ","Planned number of PSUs","Comments","Total number of PSU in the sampling year","Achieved number of PSU in the sampling year","% of achievement (100*Q/N)","Number of unique vessels with activity in the stratum","Number of unique vessels sampled ","Number of fishing trips in the stratum","Number of fishing trips sampled ","Number of species with length measurements","Total number of length measurements","AR Comments "]
["SWE","SWE","North sea and Eastern Arctic","ICES","20,21","Skagerrak/Kattegat at-sea","SWE - SkaKat (at-sea) - Act - 20/21 - PanTrawlTun","Vessel","landings+discards","All species and stocks","Quarterly","2013-2015",32.299999999999997,3,"some invertebrates species are not measured",24,6,{"$f":"Q6/N6","v":2},24,6,618,9,61,29182,"There is an error in column N. Value in WP refers to quarter. Planned value by year was 12 (50% achivement) Number of trips exceeds no of PSUs as vessels are selected with replacement. Vessels were reselected more often than we anticipated. Some of the trips changed to trips without tunnel (row below) as the vessel was changing gear when the observers were deployed."]
["SWE","SWE","North sea and Eastern Arctic","ICES","20,21","Skagerrak/Kattegat at-sea","SWE - SkaKat (at-sea) - Act - 20/21 - PanTrawlNoTun","Vessel","landings+discards","All species and stocks","Quarterly","2013-2015",51,3,"some invertebrates species are not measured",49,12,{"$f":"Q7/N7","v":4},49,12,2025,14,53,27882,"There is an error in column N. Value in WP refers to quarter. Planned value by year was 12 (100% achivement). "]
["SWE","SWE","North sea and Eastern Arctic","ICES",20,"Skagerrak/Kattegat at-sea","SWE - SkaKat (at-sea) - Act - 20 - NepTrawlGrid","Vessel","landings+discards","All species and stocks","Quarterly","2013-2015",80,3,"some invertebrates species are not measured",78,10,3.3333333333333335,78,10,3360,13,41,8494,"There is an error in column N. Value in WP refers to quarter. Planned value by year was 12 (83% achivement). No of trips exceeds no of PSUs as vessels are selected with replacement. Vessels were reselected more often than we anticipated. Number of sampled trips are in accordance with plan."]
["SWE","SWE","North sea and Eastern Arctic","ICES",21,"Skagerrak/Kattegat at-sea","SWE - SkaKat (at-sea) - Act - 21 - NepTrawlGrid","Vessel","landings+discards","All species and stocks","Quarterly","2013-2015",41,3,"some invertebrates species are not measured",36,6,2,36,6,1106,11,35,8622,"There is an error in column N. Value in WP refers to quarter. Planned value by year was 12 (50% achivement). No of trips exceeds no of PSUs as vessels are selected with replacement. Vessels were reselected more often than we anticipated. Number of sampled trips are in accordance with plan."]
["SWE","SWE","North sea and Eastern Arctic","ICES",20,"Skagerrak/Kattegat at-sea","SWE - SkaKat (at-sea) - Act - 20 - MixTrawl","Vessel","landings+discards","All species and stocks","Quarterly","2013-2015",68.7,3,"some invertebrates species are not measured",68,10,3.3333333333333335,68,10,1704,11,55,10483,"There is an error in column N. Value in WP refers to quarter. Planned value by year was 12 (83% achivement). No of trips exceeds no of PSUs as vessels are selected with replacement. Vessels were reselected more often than we anticipated. Number of sampled trips are in accordance with plan."]
["SWE","SWE","North sea and Eastern Arctic","ICES",21,"Skagerrak/Kattegat at-sea","SWE - SkaKat (at-sea) - Act - 21 - MixTrawl","Vessel","landings+discards","All species and stocks","Quarterly","2013-2015",43,3,"some invertebrates species are not measured",48,11,{"$f":"Q11/N11","v":3.6666666666666665},48,11,1526,13,47,13504,"There is an error in column N. Value in WP refers to quarter. Planned value by year was 12 (92% achivement). No of trips exceeds no of PSUs as vessels are selected with replacement. Vessels were reselected more often than we anticipated. Number of sampled trips are in accordance with plan."]
["SWE","SWE","North sea and Eastern Arctic","ICES","20,21","Skagerrak/Kattegat at-sea","SWE - SkaKat (at-sea) - Pass - 20/21 - NepPots","Vessel","landings+discards","All species and stocks","Quarterly","2013-2015",105.7,3,"some invertebrates species are not measured",94,11,{"$f":"Q12/N12","v":3.6666666666666665},94,11,6506,12,20,5931,"There is an error in column N. Value in WP refers to quarter. Planned value by year was 12 (92% achivement). No of trips exceeds no of PSUs as vessels are selected with replacement. Vessels were reselected more often than we anticipated. Number of sampled trips are in accordance with plan."]
["SWE","SWE","North sea and Eastern Arctic","ICES","20,21","Skagerrak/Kattegat at-sea","SWE - SkaKat (at-sea) - OutOfFrame","Vessel","None","None","None","2013-2015",339,0,null,312,0,null,312,0,10557,0,0,0]
["SWE","SWE","Baltic Sea","ICES","22-32","Baltic self-sampling","SWE - Balt (self) - Act - 22/32 - DemTrawl","Week","Landings","selected species/stocks","Quarterly","2013-2015",52,{"$f":"8*4","v":32},"Only cod is measured",52,27,{"$f":"Q14/N14","v":0.84375},37,17,751,80,1,18260,"A few of the randomly selected sampling weeks could not be sampled primarely as there were no fishery due to bad weather."]
["SWE","SWE","Baltic Sea","ICES","22-32","Baltic self-sampling","SWE - Balt (self) - OutOfFrame","Vessel","None","None","None","2013-2015",642.70000000000005,0,null,558,0,null,558,0,31812,0,0,0]
["SWE","SWE","Baltic Sea","ICES","24-25","Baltic at-sea","SWE - Balt (at-sea) - Act - 24/25 - DemTrawl","Vessel","landings+discards","All species and stocks","Quarterly","2013-2015",34.700000000000003,6,"some invertebrates species are not measured",36,6,{"$f":"Q16/N16","v":1},36,6,699,8,9,18409,"There is an error in column N. Value in WP refers to quarter. Planned value by year was 24 (25% achivement). Undersampled according to plan due to several reasons 1) large cut in quota (-56%) for the cod in sd 22-24 which in Sweden meant that trawlfishery for cod was forbidden in that area for the most of the year 2) seasonal closure (july-august) for the codfishery in sd 25-26 was reintroduced and 3) only relative few of the vessels on the list are active on routine basis. This makes it really difficult to randomly select vessels and organize trips."]
["SWE","SWE","Baltic Sea","ICES","22-32","Baltic at-sea","SWE - Balt (at-sea) - OutOfFrame","Vessel","None","None","None","2013-2015",658,0,null,571,0,null,571,0,31967,0,0,0]
["SWE","SWE","Baltic Sea","ICES",23,"Baltic at-sea or self-sampling","SWE - Balt (at-sea/self) - Pass - 23 - DemNets","Vessel (at-sea); Week (self-sampling)","landings+discards","All species and stocks","Quarterly","2013-2015","51.0 (at-sea); 52 (self-sampling)",16,"Final decision between at-sea and self-sampling in this scheme depends on yet-unknown logistics, safety and refusals in at-sea sampling; some invertebrates species are not measured",{"$f":"S18&\" (at-sea); 52 (self-sampling)\"","v":"51 (at-sea); 52 (self-sampling)"},10,{"$f":"Q18/N18","v":0.625},51,10,2250,18,21,3534,"No of trips exceeds no of PSUs as vessels are selected with replacement. Vessels were reselected more often than we anticipated as many vessels have a low activity level. Number of sampled trips are in accordance with plan."]
["SWE","SWE","Baltic Sea","ICES",24,"Baltic at-sea or self-sampling","SWE - Balt (at-sea/self) - Pass - 24 - DemNets","Vessel (at-sea); Week (self-sampling)","landings+discards","All species and stocks","Quarterly","2013-2015","42.3 (at-sea); 52 (self-sampling)",16,"Final decision between at-sea and self-sampling in this scheme depends on yet-unknown logistics, safety and refusals in at-sea sampling; some invertebrates species are not measured","36 (at-sea); 52 (self-sampling)",10,0.625,36,10,1069,17,15,2639,"No of trips exceeds no of PSUs as vessels are selected with replacement. Vessels were reselected more often than we anticipated as many vessels have a low activity level. Number of sampled trips are in accordance with plan."]
["SWE","SWE","Baltic Sea","ICES",25,"Baltic at-sea or self-sampling","SWE - Balt (at-sea/self) - Pass - 25 - DemNets","Vessel (at-sea); Week (self-sampling)","landings+discards","All species and stocks","Quarterly","2013-2015","102.3 (at-sea); 52 (self-sampling)",16,"Final decision between at-sea and self-sampling in this scheme depends on yet-unknown logistics, safety and refusals in at-sea sampling; some invertebrates species are not measured","79 (at-sea); 52 (self-sampling)",9,0.5625,79,9,1955,14,9,2028,"No of trips exceeds no of PSUs as vessels are selected with replacement. Vessels were reselected more often than we anticipated as many vessels have a low activity level. Number of sampled trips are in accordance with plan."]
["SWE","SWE","Baltic Sea","ICES","27-29","Baltic at-sea or self-sampling","SWE - Balt (at-sea/self) - Pass - 27/29 - DemNets","Vessel (at-sea); Week (self-sampling)","landings+discards","All species and stocks","Quarterly","2013-2015","89.7 (at-sea); 52 (self-sampling)",16,"Final decision between at-sea and self-sampling in this scheme depends on yet-unknown logistics, safety and refusals in at-sea sampling; some invertebrates species are not measured","66 (at-sea); 52 (self-sampling)",0,0,66,0,1550,0,0,0,"Sampling of gillnetters in these subdivisons are logistically demending as the fishery is small scale and geographically scattered over a large area. The main species of interest for sampling in the fishery is cod. Only app. 10% of the Swedish landings of Eastern Baltic cod origins from the area. In 2017 the sea-sampling in sd 27-29 failed due to logistical constrains. We simply had to focus on the subdivisions with larger cod catches. In 2018 will we have less sea-sampling and more self-sampling in the other areas allowing us to allocate sampling effort to sd 27-29."]
["SWE","SWE","Baltic Sea","ICES",24,"Baltic at-sea or self-sampling","SWE - Balt (at-sea/self) - Pass - 24 - DemLonglines","Vessel (at-sea); Week (self-sampling)","landings+discards","All species and stocks","Quarterly","2013-2015","13.0 (at-sea); 52 (self-sampling)",12,"Final decision between at-sea and self-sampling in this scheme depends on yet-unknown logistics, safety and refusals in at-sea sampling; some invertebrates species are not measured","6 (at-sea); 52 (self-sampling)",0,0,6,0,23,0,0,0,"Not sampled as the fishery was very limited 2017."]
["SWE","SWE","Baltic Sea","ICES",25,"Baltic at-sea or self-sampling","SWE - Balt (at-sea/self) - Pass - 25 - DemLonglines","Vessel (at-sea); Week (self-sampling)","landings+discards","All species and stocks","Quarterly","2013-2015","36.7 (at-sea); 52 (self-sampling)",12,"Final decision between at-sea and self-sampling in this scheme depends on yet-unknown logistics, safety and refusals in at-sea sampling; some invertebrates species are not measured","25 (at-sea); 52 (self-sampling)",3,0.25,25,3,399,6,3,1108,"Undersampled compared to plan due to low activity level in the fishery."]
["SWE","SWE","Baltic Sea","ICES","22-32","Baltic at-sea or self-sampling","SWE - Balt (at-sea/self) - OutOfFrame","Vessel","None","None","None","2013-2015",516,0,null,470,0,null,470,0,25373,0,0,0]
["SWE","SWE","Baltic Sea","ICES","SD30","Baltic onshore sampling","KBN3","Vessel","Landings+Discards","all species and stocks","monthly",2015,16,1,"Seasonality: Monthly throughout the year provided that ice conditions permit fishery.",4,3,{"$f":"Q25/N25","v":3},4,3,88,1,1,4594]
["SWE","SWE","Baltic Sea","ICES","SD30-31","Baltic onshore sampling","KBN4","Vessel","Landings+Discards","all species and stocks","monthly",2015,80,6,"Seasonality: Monthly during fishing season (April-September).",68,6,{"$f":"Q26/N26","v":1},68,6,360,6,1,4041]
["SWE","SWE","Baltic Sea","ICES","SD31","Baltic onshore sampling","KBN5","Local fishing area","Landings+Discards","all species and stocks","monthly",2015,5,5,"Seasonality: Monthly during fishing season (limited to the vendace's spawning period in September-October). PSU: 5 different local fishing areas are identified within the Sub-area/Fishing ground SD31. To ensure that data are collected from all these 5 areas, as required by  the national stock assessment group, \"local fishing area\" is set as the PSU.",5,5,{"$f":"Q27/N27","v":1},35,4,591,4,9,1455]
["SWE","SWE","Baltic Sea","EIFAAC/ICES/GFCM ","SD22-24","Baltic at-sea 2","KBWE2","Vessel","Landings+Discards","all species and stocks","monthly",2015,17,1,"Seasonality: Monthly during fishing season (special individual permit is required where start and stop days are defined).  Besides the metier-sampling, silver eel are collected for biological (stock) sampling and they are selected by length stratification.",7,1,{"$f":"Q28/N28","v":1},7,1,393,1,7,181,"Furthermore, eel for stock sampling was collected from additionally 1 fishing trip."]
["SWE","SWE","Baltic Sea","EIFAAC/ICES/GFCM ","SD25-29,32","Baltic at-sea 2","KBEE2/KBEE3","Vessel","Landings+Discards","all species and stocks","monthly",2015,127,2,"Seasonality: Monthly during fishing season (special individual permit is required where start and stop days are defined).  Besides the metier-sampling, silver eel are collected for biological (stock) sampling and they are selected by length stratification.",66,3,{"$f":"Q29/N29","v":1.5},66,3,3235,6,31,2200,"Planned No of PSUs (column N) were 3, hence % of achievement (column R) was 100%. In short, sampling was conducted in two places, one in SD 25 and one in SD 27. From start it was planned to sample two different vessels in SD 25 and one vessel in SD 27, consequently WP table 4A needs to be updated according to the on-going sampling scheme._Furthermore, eel for stock sampling was collected from additionally 19 fishing trips."]
["SWE","SWE","North sea and Eastern Arctic","ICES",20,"Skagerrak/Kattegat other (market stock specific)","SWE - SkaKat (stock spec) - Act - 20 - HerSpr","Fishing trip x species (HER, SPR)","landings","selected species/stocks","Quarterly","2013-2015",214,"Not defined","PSU number calculated from trip * species combinations",107,47,"NA",14,12,107,47,2,3478]
["SWE","SWE","North sea and Eastern Arctic","ICES",21,"Skagerrak/Kattegat other (market stock specific)","SWE - SkaKat (stock spec) - Act - 21 - HerSpr","Fishing trip x species (HER, SPR)","landings","selected species/stocks","Quarterly","2013-2015",64.7,"Not defined","PSU number calculated from trip * species combinations",100,27,"NA",8,7,100,27,2,2171]
["SWE","SWE","North sea and Eastern Arctic","ICES",20,"Skagerrak/Kattegat other (market stock specific)","SWE - SkaKat (stock spec) - Act - 20 - Cod","Fishing trip x species (COD)","Landings","selected species/stocks","Quarterly","2013-2015",2254.3000000000002,"Not defined","PSU number calculated from trip * species combinations",2330,82,"NA",131,31,2330,82,1,1982]
["SWE","SWE","North sea and Eastern Arctic","ICES",21,"Skagerrak/Kattegat other (market stock specific)","SWE - SkaKat (stock spec) - Act - 21 - Cod","Fishing trip x species (COD)","Landings","selected species/stocks","Quarterly","2013-2015",495.3,"Not defined","PSU number calculated from trip * species combinations",843,64,"NA",61,18,843,64,1,1288]
["SWE","SWE","Baltic Sea","ICES",24,"Baltic other (market, stock specific)","SWE - Balt (stock spec) - Act - 24 - HerSpr","Fishing trip x species (HER, SPR)","landings","selected species/stocks","Quarterly","2013-2015",43,"Not defined","PSU number calculated from trip * species combinations",70,16,"NA",7,3,70,16,2,1663]
["SWE","SWE","Baltic Sea","ICES",25,"Baltic other (market, stock specific)","SWE - Balt (stock spec) - Act - 25 - HerSpr","Fishing trip x species (HER, SPR)","landings","selected species/stocks","Quarterly","2013-2015",705.3,"Not defined","PSU number calculated from trip * species combinations",660,38,"NA",32,7,660,38,2,3863]
["SWE","SWE","Baltic Sea","ICES",26,"Baltic other (market, stock specific)","SWE - Balt (stock spec) - Act - 26 - HerSpr","Fishing trip x species (HER, SPR)","landings","selected species/stocks","Quarterly","2013-2015",19,"Not defined","PSU number calculated from trip * species combinations",44,8,"NA",12,6,44,8,2,484]
["SWE","SWE","Baltic Sea","ICES",27,"Baltic other (market, stock specific)","SWE - Balt (stock spec) - Act - 27 - HerSpr","Fishing trip x species (HER, SPR)","landings","selected species/stocks","Quarterly","2013-2015",592.70000000000005,"Not defined","PSU number calculated from trip * species combinations",490,13,"NA",41,5,490,13,2,1862]
["SWE","SWE","Baltic Sea","ICES",28,"Baltic other (market, stock specific)","SWE - Balt (stock spec) - Act - 28 - HerSpr","Fishing trip x species (HER, SPR)","landings","selected species/stocks","Quarterly","2013-2015",383.3,"Not defined","PSU number calculated from trip * species combinations",485,21,"NA",22,11,485,21,2,2921]
["SWE","SWE","Baltic Sea","ICES",29,"Baltic other (market, stock specific)","SWE - Balt (stock spec) - Act - 29 - HerSpr","Fishing trip x species (HER, SPR)","landings","selected species/stocks","Quarterly","2013-2015",115,"Not defined","PSU number calculated from trip * species combinations",71,4,"NA",19,4,71,4,2,728]
["SWE","SWE","Freshwater","ICES","freshwater","logbooks & journals","EEL-Fresh","Fisherman X lake","landings + discard","Eel","annual ","2015-2017","NA","NA","Fishery statistics required for the assessment. All trips are sampled as all catch is reported. Biological sampling described in textbox 4A and table 1C.",3,3,{"$f":"Q40/3","v":1},3,3,3,3,1,358,"Fishery statistics required for the assessment. All trips are sampled as all catch is reported to. "]

{"sheet":"Table4B Sampling frame descrip","index":13,"n_rows":39,"n_cols":6,"rows_kept":39,"cut":false,"hidden":false,"merged":[]}
["Table 4B: Sampling frame description for biological data"]
[null,null,null,null,"WP  years","2017-2019"]
[null,null,null,null,"AR year",2017]
["MS","Stratum ID number","Stratum","Sampling frame description ","Method of PSU selection ","Comments"]
["SWE","SWE - SkaKat (at-sea) - Act - 20/21 - PanTrawlTun","Shrimp trawlers operating with tunnel in Skagerrak and Kattegat ","List of trawlers active in the Pandalus fishery with tunnel in subdiv 20 or 21 during 2016","random draw from vessel list with unequal probability (probability proportional to number of trips; draw with replacement)"]
["SWE","SWE - SkaKat (at-sea) - Act - 20/21 - PanTrawlNoTun","Shrimp trawlers operating without tunnel in Skagerrak and Kattegat ","List of trawlers active in the Pandalus fishery without tunnel in subdiv 20 or 21 during 2016","random draw from vessel list with unequal probability (probability proportional to number of trips; draw with replacement)"]
["SWE","SWE - SkaKat (at-sea) - Act - 20 - NepTrawlGrid","Nephrops trawlers operating with grid in Skagerrak","List of trawlers active in the Nephrops trawl fishery with grid in subdiv 20 during 2016","random draw from vessel list with unequal probability (probability proportional to number of trips; draw with replacement)"]
["SWE","SWE - SkaKat (at-sea) - Act - 21 - NepTrawlGrid","Nephrops trawlers operating with grid in Kattegat","List of trawlers active in the Nephrops trawl fishery with grid in subdiv 21 during 2016","random draw from vessel list with unequal probability (probability proportional to number of trips; draw with replacement)"]
["SWE","SWE - SkaKat (at-sea) - Act - 20 - MixTrawl","Mix fish and crustacean trawlers operating in Skagerrak","List of trawlers active in the Mix Fish and Crustacean fishery in subdiv 20 during 2016","random draw from vessel list with unequal probability (probability proportional to number of trips; draw with replacement)"]
["SWE","SWE - SkaKat (at-sea) - Act - 21 - MixTrawl","Mix fish and crustacean trawlers operating in Kattegat","List of trawlers active in the Mix Fish and Crustacean fishery in subdiv 21 during 2016","random draw from vessel list with unequal probability (probability proportional to number of trips; draw with replacement)"]
["SWE","SWE - SkaKat (at-sea) - Pass - 20/21 - NepPots","Nephrops potters operating in Skagerrak and Kattegat","List of vessels active in the Nephrops Pot fishery in subdiv 20 or 21 during 2016","random draw from vessel list with unequal probability (probability proportional to number of trips; draw with replacement)"]
["SWE","SWE - SkaKat (at-sea) - OutOfFrame","Vessels in region operating in fisheries not targetted in the sampling scheme Skagerrak/Kattegat at-sea","List of active vessels in 2016 not covered in other strata of the sampling scheme","NA"]
["SWE","SWE - Balt (self) - Act - 22/32 - DemTrawl","Demersal trawlers operating in Subdiv 24 to 32","List of weeks of the year (with some restrictions)","random draw from list without replacement"]
["SWE","SWE - Balt (self) - OutOfFrame","Vessels in region operating in fisheries not targetted in the sampling scheme Baltic self-sampling","List of active vessels in 2016 not covered in other strata of the sampling scheme","NA"]
["SWE","SWE - Balt (at-sea) - Act - 24/25 - DemTrawl","Demersal trawlers operating in Subdiv 24 and 25","List of vessels active in the Demersal trawl fishery in subdiv 24 or 25 during 2016","random draw from vessel list with unequal probability (probability proportional to number of trips; draw with replacement)"]
["SWE","SWE - Balt (at-sea) - OutOfFrame","Vessels in region operating in fisheries not targetted in the sampling scheme Baltic at-sea","List of active vessels in 2016 not covered in other strata of the sampling scheme","NA"]
["SWE","SWE - Balt (at-sea/self) - Pass - 23 - DemNets","Demersal Gillnetters operating in Subdiv 23","List of weeks of the year or List of vessels active in the demersal fishery with nets of subdiv 23 during 2016","random draw from vessel list (if at-sea); random draw from week list without replacement (if self-sampling)","Final decision between at-sea and self-sampling in this stratum depends on yet-unknown logistics, safety and refusals in at-sea sampling;"]
["SWE","SWE - Balt (at-sea/self) - Pass - 24 - DemNets","Demersal Gillnetters operating in Subdiv 24","List of weeks of the year or List of vessels active in the demersal fishery with nets of subdiv 24 during 2016","random draw from vessel list (if at-sea); random draw from week list without replacement (if self-sampling)","Final decision between at-sea and self-sampling in this stratum depends on yet-unknown logistics, safety and refusals in at-sea sampling;"]
["SWE","SWE - Balt (at-sea/self) - Pass - 25 - DemNets","Demersal Gillnetters operating in Subdiv 25","List of weeks of the year or List of vessels active in the demersal fishery with nets of subdiv 25 during 2016","random draw from vessel list (if at-sea); random draw from week list without replacement (if self-sampling)","Final decision between at-sea and self-sampling in this stratum depends on yet-unknown logistics, safety and refusals in at-sea sampling;"]
["SWE","SWE - Balt (at-sea/self) - Pass - 27/29 - DemNets","Demersal Gillnetters operating in Subdiv 27 to 29","List of weeks of the year or List of vessels active in the demersal fishery with nets of subdiv 27 to 29 during 2016","random draw from vessel list (if at-sea); random draw from week list without replacement (if self-sampling)","Final decision between at-sea and self-sampling in this stratum depends on yet-unknown logistics, safety and refusals in at-sea sampling;"]
["SWE","SWE - Balt (at-sea/self) - Pass - 24 - DemLonglines","Demersal Longliners operating in Subdiv 24","List of weeks of the year or List of vessels active in the demersal fishery with longlines of subdiv 24 during 2016","random draw from vessel list (if at-sea); random draw from week list without replacement (if self-sampling)","Final decision between at-sea and self-sampling in this stratum depends on yet-unknown logistics, safety and refusals in at-sea sampling;"]
["SWE","SWE - Balt (at-sea/self) - Pass - 25 - DemLonglines","Demersal Longliners operating in Subdiv 25","List of weeks of the year or List of vessels active in the demersal fishery with longlines of subdiv 25 during 2016","random draw from vessel list (if at-sea); random draw from week list without replacement (if self-sampling)","Final decision between at-sea and self-sampling in this stratum depends on yet-unknown logistics, safety and refusals in at-sea sampling;"]
["SWE","SWE - Balt (at-sea/self) - Pass - OutOfFrame","Vessels in region operating in fisheries not targetted in the sampling scheme \"Baltic at-sea or self-sampling\"","List of active vessels in 2016 not covered in other strata of sampling scheme","NA"]
["SWE","KBN3","Trawlers targeting herring","Commercial trawlers targeting herring in the Bothnian Sea","preselected vessels contracted on a yearly basis"]
["SWE","KBN4","Gillnetters targeting herring","Licensed fishermen targeting herring by gill nets in the Gulf of Bothnia","preselected fishermen contracted on a yearly basis"]
["SWE","KBN5","Trawlers targeting vendace","Commercial vessels with permit to conduct vendace pair-trawling","predefined local fishing areas"]
["SWE","KBWE2","Pound nets","Licensed pound net fishermen with permit to target silver eel","preselected fishermen contracted on a yearly basis"]
["SWE","KBEE2/KBEE3","Pound nets","Licensed pound net fishermen with permit to target silver eel","preselected fishermen contracted on a yearly basis"]
["SWE","SWE - SkaKat (stock spec)- Act - 20 - HerSpr","Landings of Herring and Sprat from vessels operating in Skagerrak","Hypothetical list of fishing trips with landings of herring or sprat from subdiv 20 during 2017","ad-hoc selection by first hand buyer until sampling quota is attained"]
["SWE","SWE - SkaKat (stock spec)- Act - 21 - HerSpr","Landings of Herring and Sprat from vessels operating in Kattegat","Hypothetical list of fishing trips with landings of herring or sprat from subdiv 21 during 2017","ad-hoc selection by first hand buyer until sampling quota is attained"]
["SWE","SWE - SkaKat (stock spec)- Act - 20 - Cod","Landings of Cod from vessels operating in Skagerrak","Hypothetical list of fishing trips with landings of cod from subdiv 20 during 2017","ad-hoc selection by first hand buyer until sampling targets are attained"]
["SWE","SWE - SkaKat (stock spec)- Act - 21 - Cod","Landings of Cod from vessels operating in Kattegat","Hypothetical list of fishing trips with landings of cod from subdiv 21 during 2017","ad-hoc selection by first hand buyer until sampling targets are attained"]
["SWE","SWE - Balt (stock spec) - Act - 24 - HerSpr","Landings of Herring and Sprat from Subdivision 24","Hypothetical list of fishing trips with landings of herring or sprat from subdiv 24 during 2017","ad-hoc selection by first hand buyer until sampling targets are attained"]
["SWE","SWE - Balt (stock spec) - Act - 25 - HerSpr","Landings of Herring and Sprat from Subdivision 25","Hypothetical list of fishing trips with landings of herring or sprat from subdiv 25 during 2017","ad-hoc selection by first hand buyer until sampling targets are attained"]
["SWE","SWE - Balt (stock spec)- Act - 26 - HerSpr","Landings of Herring and Sprat from Subdivision 26","Hypothetical list of fishing trips with landings of herring or sprat from subdiv 26 during 2017","ad-hoc selection by first hand buyer until sampling targets are attained"]
["SWE","SWE - Balt (stock spec)- Act - 27 - HerSpr","Landings of Herring and Sprat from Subdivision 27","Hypothetical list of fishing trips with landings of herring or sprat from subdiv 27 during 2017","ad-hoc selection by first hand buyer until sampling targets are attained"]
["SWE","SWE - Balt (stock spec)- Act - 28 - HerSpr","Landings of Herring and Sprat from Subdivision 28","Hypothetical list of fishing trips with landings of herring or sprat from subdiv 28 during 2017","ad-hoc selection by first hand buyer until sampling targets are attained"]
["SWE","SWE - Balt (stock spec)- Act - 29 - HerSpr","Landings of Herring and Sprat from Subdivision 29","Hypothetical list of fishing trips with landings of herring or sprat from subdiv 29 during 2017","ad-hoc selection by first hand buyer until sampling targets are attained"]
["SWE","EEL-Fresh","Freshwater","Commercial eel fishers","Representaive eelfisherman in three lakes","All catch reported to SwAM for numbers and total weight. Biological sampling described in textbox 4A and table 1C."]

{"sheet":"Table4C Data on the fisheries","index":14,"n_rows":123,"n_cols":22,"rows_kept":123,"cut":false,"hidden":false,"merged":[]}
["Table 4C: Data on the fisheries by member state"]
[null,null,null,null,null,null,null,null,null,null,null,null,null,null,null,null,null,null,null,null,"WP  years","2017-2019"]
[null,null,null,null,null,null,null,null,null,null,null,null,null,null,null,null,null,null,null,null,"AR year",2017]
["MS","Region","RFMO/RFO/IO","Sub-area / Fishing ground","Reference years","Fleet segment / Metier","Targeted species / species assemblage","Average number of vessels","Average number of fishing trips ","Average number of fishing days ","Average landings (tons) ","Average landings (tons) in national ports","Average landings (tons) in foreign ports","Comments","Number of vessels","Number of fishing trips","Number of fishing days","Is the fleet segment/ metier covered by any stratum (Y/N)","Landings (tons)","Landings (tons) in national ports","Landings (tons) in foreign ports","AR  Comments"]
["SWE","North Sea and Eastern Arctic","ICES","ICES area II","2013-2015","OTM_SPF_32-69_0_0","Small pelagic fish",1,1,1,238,0,238,"Vessels can be involved in more than one metier; number of trips is metier specific and cannot be summed across metiers. For vessels <10m, reporting by monthly journals, number of trips is assumed to be equal to number of fishing days. (Comment applicable to the entire table)",2,3,5,"N",757.65,0,757.65]
["SWE","North Sea and Eastern Arctic","ICES","ICES area II","2013-2015","PS_SPF_32-69_0_0","Small pelagic fish",1,3,3,1100,0,1100,null,2,6,6,"N",2120,0,2120]
["SWE","North Sea and Eastern Arctic","ICES","ICES area II","2013-2015","PTM_SPF_32-69_0_0","Small pelagic fish",1,2,2,295,0,295,null,0,0,0,"Not Applicable",0,0,0]
["SWE","Baltic Sea","ICES","ICES areas III b-d","2013-2015","FPN_ANA_>0_0_0","Anadromous species",1,77,77,2,2,0,null,0,0,0,"Not Applicable",0,0,0]
["SWE","Baltic Sea","ICES","ICES areas III b-d","2013-2015","FPN_CAT_>0_0_0","Catadromous species",79,4390,4390,153,153,0,null,75,3610,3610,"Y",91.344300000000004,91.344300000000004,0]
["SWE","Baltic Sea","ICES","ICES areas III b-d","2013-2015","FPN_DEF_>0_0_0","Demersal species",2,26,26,1,1,0,null,3,81,81,"N",1.4730000000000001,1.4730000000000001,0]
["SWE","Baltic Sea","ICES","ICES areas III b-d","2013-2015","FPN_FWS_>0_0_0","Freshwater species",6,180,180,5,5,0,null,5,75,75,"N",1.6950000000000001,1.6950000000000001,0]
["SWE","Baltic Sea","ICES","ICES areas III b-d","2013-2015","FPN_SPF_>0_0_0","Small pelagic fish",1,38,38,1,1,0,null,2,21,21,"Y",0.39200000000000002,0.39200000000000002,0]
["SWE","Baltic Sea","ICES","ICES areas III b-d","2013-2015","FPO_ANA_>0_0_0","Anadromous species",112,2981,2981,224,224,0,null,103,2467,2467,"Y",186.77119999999999,186.77119999999999,0]
["SWE","Baltic Sea","ICES","ICES areas III b-d","2013-2015","FPO_CAT_>0_0_0","Catadromous species",26,872,872,15,15,0,null,27,817,817,"Y",8.8466000000000005,8.8466000000000005,0]
["SWE","Baltic Sea","ICES","ICES areas III b-d","2013-2015","FPO_DEF_>0_0_0","Demersal species",9,111,111,4,4,0,null,10,286,289,"N",12.2941,12.2791,1.4999999999999999E-2]
["SWE","Baltic Sea","ICES","ICES areas III b-d","2013-2015","FPO_FWS_>0_0_0","Freshwater species",31,910,910,20,20,0,null,33,894,894,"N",32.985999999999997,32.985999999999997,0]
["SWE","Baltic Sea","ICES","ICES areas III b-d","2013-2015","FPO_SPF_>0_0_0","Small pelagic fish",1,7,7,0.14000000000000001,0.14000000000000001,0,null,0,0,0,"Not Applicable",0,0,0]
["SWE","Baltic Sea","ICES","ICES areas III b-d","2013-2015","FYK_ANA_>0_0_0","Anadromous species",10,237,237,8,8,0,null,13,150,150,"Y",12.2578,12.2578,0]
["SWE","Baltic Sea","ICES","ICES areas III b-d","2013-2015","FYK_CAT_>0_0_0","Catadromous species",87,3312,3312,67,67,0,null,87,3120,3120,"Y",55.3626,55.3626,0]
["SWE","Baltic Sea","ICES","ICES areas III b-d","2013-2015","FYK_FWS_>0_0_0","Freshwater species",10,166,166,2,2,0,null,13,272,272,"N",2.9380000000000002,2.9380000000000002,0]
["SWE","Baltic Sea","ICES","ICES areas III b-d","2013-2015","FYK_SPF_>0_0_0","Small pelagic fish",18,504,504,35,35,0,null,18,526,526,"Y",18.902999999999999,18.902999999999999,0]
["SWE","Baltic Sea","ICES","ICES areas III b-d","2013-2015","GNS_ANA_>=157_0_0","Anadromous species",1,16,16,0.5,0.5,0,null,2,64,64,"N",1.7565,1.7565,0]
["SWE","Baltic Sea","ICES","ICES areas III b-d","2013-2015","GNS_ANA_110-156_0_0","Anadromous species",8,82,82,1,1,0,null,9,140,140,"N",3.4826000000000001,3.4826000000000001,0]
["SWE","Baltic Sea","ICES","ICES areas III b-d","2013-2015","GNS_DEF_>=157_0_0","Demersal species",76,1141,1143,242,224,18,null,66,956,954,"Y",151.9442,134.69980000000001,17.244399999999999]
["SWE","Baltic Sea","ICES","ICES areas III b-d","2013-2015","GNS_DEF_110-156_0_0","Demersal species",229,7645,7721,1254,1231,23,null,170,5277,5318,"Y",784.58079999999995,732.38980000000004,52.191000000000003]
["SWE","Baltic Sea","ICES","ICES areas III b-d","2013-2015","GNS_DEF_90-109_0_0","Demersal species",2,13,13,0.7,0.4,0.3,null,0,0,0,"Not Applicable",0,0,0]
["SWE","Baltic Sea","ICES","ICES areas III b-d","2013-2015","GNS_FWS_>0_0_0","Freshwater species",201,9021,9056,296,296,0,null,175,7182,7186,"N",220.42160000000001,220.42160000000001,0]
["SWE","Baltic Sea","ICES","ICES areas III b-d","2013-2015","GNS_SPF_16-109_0_0","Small pelagic fish",92,2098,2087,668,668,0,null,80,1754,1745,"Y",649.25340000000006,649.25340000000006,0]
["SWE","Baltic Sea","ICES","ICES areas III b-d","2013-2015","GNS_SPF_32-109_0_0","Small pelagic fish",46,949,945,413,119,294,null,35,735,733,"Y",370.19900000000001,89.259,280.94]
["SWE","Baltic Sea","ICES","ICES areas III b-d","2013-2015","GTR_DEF_>=157_0_0","Demersal species",12,313,313,48,48,0,null,10,166,166,"Y",12.9831,12.9831,0]
["SWE","Baltic Sea","ICES","ICES areas III b-d","2013-2015","GTR_DEF_110-156_0_0","Demersal species",21,606,607,88,83,5,null,16,457,457,"Y",99.716700000000003,98.265699999999995,1.4510000000000001]
["SWE","Baltic Sea","ICES","ICES areas III b-d","2013-2015","GTR_DEF_90-109_0_0","Demersal species",1,1,1,0.01,0.01,0,null,0,0,0,"Not Applicable",0,0,0]
["SWE","Baltic Sea","ICES","ICES areas III b-d","2013-2015","LHP_FIF_0_0_0","Finfish",11,97,97,21,21,0,null,10,91,91,"N",16.534400000000002,16.534400000000002,0]
["SWE","Baltic Sea","ICES","ICES areas III b-d","2013-2015","LLS_CAT_0_0_0","Catadromous species",2,23,23,0.2,0.2,0,null,2,18,18,"N",9.0999999999999998E-2,9.0999999999999998E-2,0]
["SWE","Baltic Sea","ICES","ICES areas III b-d","2013-2015","LLS_DEF_0_0_0","Demersal species",45,908,931,299,288,11,null,29,422,422,"Y",94.842299999999994,94.842299999999994,0]
["SWE","Baltic Sea","ICES","ICES areas III b-d","2013-2015","MIS_MIS_0_0_0","Miscellaneous",4,42,42,0.4,0.4,0,null,0,0,0,"Not Applicable",0,0,0]
["SWE","Baltic Sea","ICES","ICES areas III b-d","2013-2015","OTB_DEF_>=105_1_120","Demersal species",26,621,1065,2395,2278,117,null,21,274,506,"Y",1293.9831999999999,1283.2298000000001,10.753399999999999]
["SWE","Baltic Sea","ICES","ICES areas III b-d","2013-2015","OTB_DEF_>=120_0_0","Demersal species",16,300,564,1303,1183,120,null,14,321,696,"Y",2052.5295999999998,1795.8906999999999,256.63889999999998]
["SWE","Baltic Sea","ICES","ICES areas III b-d","2013-2015","OTB_SPF_16-104_0_0","Small pelagic fish",15,334,408,5078,5078,0,null,13,261,342,"Y",5236.9898000000003,4841.9898000000003,395]
["SWE","Baltic Sea","ICES","ICES areas III b-d","2013-2015","OTB_SPF_16-31_0_0","Small pelagic fish",12,474,476,4369,4297,72,null,10,360,360,"Y",2369.0484000000001,2334.0484000000001,35]
["SWE","Baltic Sea","ICES","ICES areas III b-d","2013-2015","OTB_SPF_32-104_0_0","Small pelagic fish",6,164,165,979,979,0,null,3,18,18,"Y",53.17,53.17,0]
["SWE","Baltic Sea","ICES","ICES areas III b-d","2013-2015","OTM_DEF_>=105_1_120","Demersal species",4,10,11,2,2,0,null,0,0,0,"Not Applicable",0,0,0]
["SWE","Baltic Sea","ICES","ICES areas III b-d","2013-2015","OTM_DEF_>=120_0_0","Demersal species",1,7,7,2,2,0,null,0,0,0,"Not Applicable",0,0,0]
["SWE","Baltic Sea","ICES","ICES areas III b-d","2013-2015","OTM_SPF_16-104_0_0","Small pelagic fish",19,302,646,24562,12277,12285,null,16,369,685,"Y",35981.874000000003,19909.169999999998,16072.704]
["SWE","Baltic Sea","ICES","ICES areas III b-d","2013-2015","OTM_SPF_16-31_0_0","Small pelagic fish",10,121,191,11336,3935,7401,null,14,278,464,"Y",30139.363000000001,18224.587,11914.776]
["SWE","Baltic Sea","ICES","ICES areas III b-d","2013-2015","OTM_SPF_32-104_0_0","Small pelagic fish",5,113,111,1730,1707,23,null,7,168,193,"Y",2841.08,2493.94,347.14]
["SWE","Baltic Sea","ICES","ICES areas III b-d","2013-2015","OTT_CRU_>0_0_0","Crustaceans",1,1,1,3.0000000000000001E-3,3.0000000000000001E-3,0,null,0,0,0,"Not Applicable",0,0,0]
["SWE","Baltic Sea","ICES","ICES areas III b-d","2013-2015","OTT_DEF_>=105_1_120","Demersal species",7,365,514,1281,1259,22,null,5,174,249,"Y",642.31190000000004,642.31190000000004,0]
["SWE","Baltic Sea","ICES","ICES areas III b-d","2013-2015","OTT_DEF_>=120_0_0","Demersal species",3,31,83,224,207,17,null,2,12,37,"Y",151.1635,151.1635,0]
["SWE","Baltic Sea","ICES","ICES areas III b-d","2013-2015","PS_SPF_16-31_0_0","Small pelagic fish",2,99,91,585,585,0,null,1,65,60,"Y",378.67700000000002,378.67700000000002,0]
["SWE","Baltic Sea","ICES","ICES areas III b-d","2013-2015","PS_SPF_32-104_0_0","Small pelagic fish",2,2,2,3,3,0,null,1,49,48,"Y",159.17699999999999,159.17699999999999,0]
["SWE","Baltic Sea","ICES","ICES areas III b-d","2013-2015","PTB_FWS_>0_0_0","Freshwater species",30,553,547,1724,1724,0,null,27,592,590,"Y",1080.22,1080.22,0]
["SWE","Baltic Sea","ICES","ICES areas III b-d","2013-2015","PTB_SPF_16-104_0_0","Small pelagic fish",2,17,17,75,75,0,null,2,25,26,"Y",82.2,82.2,0]
["SWE","Baltic Sea","ICES","ICES areas III b-d","2013-2015","PTB_SPF_32-104_0_0","Small pelagic fish",2,20,20,2,2,0,null,0,0,0,"Not Applicable",0,0,0]
["SWE","Baltic Sea","ICES","ICES areas III b-d","2013-2015","PTM_SPF_16-104_0_0","Small pelagic fish",9,64,165,25715,11115,14600,null,5,23,75,"Y",10900.76,4228.3500000000004,6672.41]
["SWE","Baltic Sea","ICES","ICES areas III b-d","2013-2015","PTM_SPF_16-31_0_0","Small pelagic fish",12,91,152,20299,10967,9332,null,6,71,161,"Y",18912.967000000001,7660.357,11252.61]
["SWE","Baltic Sea","ICES","ICES areas III b-d","2013-2015","PTM_SPF_32-104_0_0","Small pelagic fish",4,75,77,3661,3608,53,null,3,80,85,"Y",4917.2280000000001,4917.2280000000001,0]
["SWE","Baltic Sea","ICES","ICES areas III b-d","2013-2015","SB_FIF_>0_0_0","Finfish",2,8,8,28,28,0,null,1,7,7,"N",1.06,1.06,0]
["SWE","North Sea and Eastern Arctic","ICES","ICES area IIIa","2013-2015","DRB_MOL_>=0_0_0","Molluscs",2,36,36,4,4,0,null,0,0,0,"Not Applicable",0,0,0]
["SWE","North Sea and Eastern Arctic","ICES","ICES area IIIa","2013-2015","FPO_CRU_>0_0_0","Crustaceans",274,13760,13752,566,561,5,null,244,12034,12002,"Y",548.18320000000006,548.18320000000006,0]
["SWE","North Sea and Eastern Arctic","ICES","ICES area IIIa","2013-2015","FPO_FIF_>0_0_0","Finfish",9,136,136,4,4,0,null,10,235,235,"N",6.4500999999999999,6.4500999999999999,0]
["SWE","North Sea and Eastern Arctic","ICES","ICES area IIIa","2013-2015","FPO_MOL_>0_0_0","Molluscs",1,14,14,0.2,0.2,0,null,1,9,9,"N",0.12,0.12,0]
["SWE","North Sea and Eastern Arctic","ICES","ICES area IIIa","2013-2015","FYK_CAT_>0_0_0","Catadromous species",17,849,849,29,29,0,null,17,753,753,"N",21.1677,21.1677,0]
["SWE","North Sea and Eastern Arctic","ICES","ICES area IIIa","2013-2015","GNS_CRU_>0_0_0","Crustaceans",6,71,71,13,13,0,null,6,91,91,"N",9.1519999999999992,9.1519999999999992,0]
["SWE","North Sea and Eastern Arctic","ICES","ICES area IIIa","2013-2015","GNS_DEF_>=220_0_0","Demersal species",14,175,175,45,45,0,null,13,229,229,"Y",20.734400000000001,20.734400000000001,0]
["SWE","North Sea and Eastern Arctic","ICES","ICES area IIIa","2013-2015","GNS_DEF_100-119_0_0","Demersal species",5,102,102,8,8,0,null,4,55,55,"Y",2.3102,2.3102,0]
["SWE","North Sea and Eastern Arctic","ICES","ICES area IIIa","2013-2015","GNS_DEF_120-219_0_0","Demersal species",40,687,689,91,71,20,null,44,725,727,"Y",106.7574,86.215400000000002,20.542000000000002]
["SWE","North Sea and Eastern Arctic","ICES","ICES area IIIa","2013-2015","GNS_DEF_90-99_0_0","Demersal species",2,11,11,0.02,0.02,0,null,2,6,6,"Y",2.9000000000000001E-2,2.9000000000000001E-2,0]
["SWE","North Sea and Eastern Arctic","ICES","ICES area IIIa","2013-2015","GNS_SPF_10-30_0_0","Small pelagic fish",32,246,245,55,55,0,null,13,73,73,"Y",21.8065,21.8065,0]
["SWE","North Sea and Eastern Arctic","ICES","ICES area IIIa","2013-2015","GNS_SPF_50-70_0_0","Small pelagic fish",75,879,876,190,189,1,null,74,743,737,"Y",174.09639999999999,170.09639999999999,4]
["SWE","North Sea and Eastern Arctic","ICES","ICES area IIIa","2013-2015","GTR_DEF_>=220_0_0","Demersal species",1,9,9,1,1,0,null,1,9,10,"Y",3.1764999999999999,0,3.1764999999999999]
["SWE","North Sea and Eastern Arctic","ICES","ICES area IIIa","2013-2015","GTR_DEF_100-119_0_0","Demersal species",1,13,13,0.42000000000000004,0.4,0.02,null,0,0,0,"Not Applicable",0,0,0]
["SWE","North Sea and Eastern Arctic","ICES","ICES area IIIa","2013-2015","GTR_DEF_120-219_0_0","Demersal species",23,616,617,118,100,18,null,26,564,563,"Y",87.577100000000002,84.482200000000006,3.0949]
["SWE","North Sea and Eastern Arctic","ICES","ICES area IIIa","2013-2015","GTR_DEF_90-99_0_0","Demersal species",2,18,18,2,2,0,null,1,1,1,"Y",0.41399999999999998,0.41399999999999998,0]
["SWE","North Sea and Eastern Arctic","ICES","ICES area IIIa","2013-2015","LHP_FIF_0_0_0","Finfish",109,1275,1285,193,150,43,null,95,978,983,"N",156.85329999999999,133.47329999999999,23.38]
["SWE","North Sea and Eastern Arctic","ICES","ICES area IIIa","2013-2015","LLS_DEF_0_0_0","Demersal species",2,4,4,1,1,0,null,0,0,0,"Not Applicable",0,0,0]
["SWE","North Sea and Eastern Arctic","ICES","ICES area IIIa","2013-2015","MIS_MIS_0_0_0","Miscellaneous",6,251,251,64,64,0,null,7,166,166,"N",8.9628999999999994,8.7951999999999995,0.16769999999999999]
["SWE","North Sea and Eastern Arctic","ICES","ICES area IIIa","2013-2015","OTB_CRU_>=120_0_0","Crustaceans",1,1,2,0.03,0.03,0,null,1,1,1,"Y",0.06,0.06,0]
["SWE","North Sea and Eastern Arctic","ICES","ICES area IIIa","2013-2015","OTB_CRU_32-69_0_0","Crustaceans",5,10,18,5,4,1,null,0,0,0,"Not Applicable",0,0,0]
["SWE","North Sea and Eastern Arctic","ICES","ICES area IIIa","2013-2015","OTB_CRU_32-69_2_22","Crustaceans",51,2135,2689,693,658,35,null,44,1983,2208,"Y",595.56569999999999,595.41570000000002,0.15]
["SWE","North Sea and Eastern Arctic","ICES","ICES area IIIa","2013-2015","OTB_CRU_70-89_2_35","Crustaceans",60,2260,2258,175,174,1,null,64,2557,2534,"Y",228.8321,227.70009999999999,1.1319999999999999]
["SWE","North Sea and Eastern Arctic","ICES","ICES area IIIa","2013-2015","OTB_CRU_90-119_0_0","Crustaceans",9,146,161,11,11,0,null,1,2,2,"Y",0.14499999999999999,0.14499999999999999,0]
["SWE","North Sea and Eastern Arctic","ICES","ICES area IIIa","2013-2015","OTB_CRU_90-119_1_120","Crustaceans",13,151,164,10,10,0,null,29,390,405,"Y",33.633499999999998,33.294499999999999,0.33900000000000002]
["SWE","North Sea and Eastern Arctic","ICES","ICES area IIIa","2013-2015","OTB_DEF_<16_0_0","Demersal species",1,1,1,25,25,0,null,1,1,1,"N",100,0,100]
["SWE","North Sea and Eastern Arctic","ICES","ICES area IIIa","2013-2015","OTB_DEF_>=120_0_0","Demersal species",12,98,117,97,16,81,null,8,124,134,"Y",83.638000000000005,31.3246,52.313400000000001]
["SWE","North Sea and Eastern Arctic","ICES","ICES area IIIa","2013-2015","OTB_DEF_90-119_0_0","Demersal species",10,48,63,594,77,517,null,0,0,0,"Not Applicable",0,0,0]
["SWE","North Sea and Eastern Arctic","ICES","ICES area IIIa","2013-2015","OTB_DEF_90-119_1_120","Demersal species",22,186,192,68,63,5,null,21,88,97,"Y",88.726299999999995,45.1999,43.526400000000002]
["SWE","North Sea and Eastern Arctic","ICES","ICES area IIIa","2013-2015","OTB_MCD_>=120_0_0","Mixed crustaceans and demersal",2,2,2,0.3,0.3,0,null,1,1,1,"Y",0.161,0.161,0]
["SWE","North Sea and Eastern Arctic","ICES","ICES area IIIa","2013-2015","OTB_MCD_90-119_0_0","Mixed crustaceans and demersal",11,96,103,15,15,0,null,0,0,0,"Not Applicable",0,0,0]
["SWE","North Sea and Eastern Arctic","ICES","ICES area IIIa","2013-2015","OTB_MCD_90-119_1_120","Mixed crustaceans and demersal",17,210,227,28,28,0,null,25,253,256,"Y",29.186,28.165400000000002,1.0206]
["SWE","North Sea and Eastern Arctic","ICES","ICES area IIIa","2013-2015","OTM_SPF_16-31_0_0","Small pelagic fish",2,29,32,724,31,693,null,1,8,8,"Y",389.5,0,389.5]
["SWE","North Sea and Eastern Arctic","ICES","ICES area IIIa","2013-2015","OTM_SPF_32-69_0_0","Small pelagic fish",6,36,45,3672,3034,638,null,8,86,108,"Y",11621.683999999999,8496.8009999999995,3124.8829999999998]
["SWE","North Sea and Eastern Arctic","ICES","ICES area IIIa","2013-2015","OTT_CRU_32-69_0_0","Crustaceans",5,16,25,4,3,1,null,1,2,4,"Y",1.8402000000000001,1.8402000000000001,0]
["SWE","North Sea and Eastern Arctic","ICES","ICES area IIIa","2013-2015","OTT_CRU_32-69_2_22","Crustaceans",21,537,1246,868,813,55,null,20,619,1356,"Y",1214.3498999999999,1143.7933,70.556600000000003]
["SWE","North Sea and Eastern Arctic","ICES","ICES area IIIa","2013-2015","OTT_CRU_70-89_2_35","Crustaceans",55,3133,3144,475,467,8,null,44,1834,1846,"Y",404.10840000000002,399.77859999999998,4.3297999999999996]
["SWE","North Sea and Eastern Arctic","ICES","ICES area IIIa","2013-2015","OTT_CRU_90-119_0_0","Crustaceans",14,113,114,12,12,0,null,3,16,16,"Y",3.4216000000000002,3.4216000000000002,0]
["SWE","North Sea and Eastern Arctic","ICES","ICES area IIIa","2013-2015","OTT_CRU_90-119_1_120","Crustaceans",29,202,212,28,27,1,null,43,933,975,"Y",189.441,183.3,6.141]
["SWE","North Sea and Eastern Arctic","ICES","ICES area IIIa","2013-2015","OTT_DEF_>=120_0_0","Demersal species",13,156,256,362,307,55,null,10,228,338,"Y",477.9332,467.13900000000001,10.7942]
["SWE","North Sea and Eastern Arctic","ICES","ICES area IIIa","2013-2015","OTT_DEF_90-119_0_0","Demersal species",20,81,95,63,59,4,null,1,1,2,"Y",0.20069999999999999,0.20069999999999999,0]
["SWE","North Sea and Eastern Arctic","ICES","ICES area IIIa","2013-2015","OTT_DEF_90-119_1_120","Demersal species",34,453,533,446,418,28,null,39,399,458,"Y",370.32900000000001,336.86790000000002,33.461100000000002]
["SWE","North Sea and Eastern Arctic","ICES","ICES area IIIa","2013-2015","OTT_MCD_>=120_0_0","Mixed crustaceans and demersal",5,8,10,4,4,0,null,5,5,5,"Y",2.1459999999999999,0.6825,1.4635]
["SWE","North Sea and Eastern Arctic","ICES","ICES area IIIa","2013-2015","OTT_MCD_90-119_0_0","Mixed crustaceans and demersal",25,305,318,73,72,1,null,3,12,12,"Y",3.0306000000000002,3.0306000000000002,0]
["SWE","North Sea and Eastern Arctic","ICES","ICES area IIIa","2013-2015","OTT_MCD_90-119_1_120","Mixed crustaceans and demersal",34,534,599,203,188,15,null,47,1368,1479,"Y",475.29629999999997,445.28309999999999,30.013200000000001]
["SWE","North Sea and Eastern Arctic","ICES","ICES area IIIa","2013-2015","PS_SPF_16-31_0_0","Small pelagic fish",7,106,107,6240,6183,57,null,2,13,13,"Y",687.67,687.67,0]
["SWE","North Sea and Eastern Arctic","ICES","ICES area IIIa","2013-2015","PS_SPF_32-69_0_0","Small pelagic fish",2,15,15,103,103,0,null,1,4,4,"Y",16.239999999999998,16.239999999999998,0]
["SWE","North Sea and Eastern Arctic","ICES","ICES area IIIa","2013-2015","PTM_SPF_16-31_0_0","Small pelagic fish",2,5,5,224,43,181,null,1,1,1,"Y",41,0,41]
["SWE","North Sea and Eastern Arctic","ICES","ICES area IIIa","2013-2015","PTM_SPF_32-69_0_0","Small pelagic fish",11,86,93,7401,4502,2899,null,7,81,94,"Y",6315.6722,5167.1621999999998,1148.51]
["SWE","North Sea and Eastern Arctic","ICES","ICES area IIIa","2013-2015","SB_FIF_>0_0_0","Finfish",11,154,154,28,28,0,null,4,90,81,"N",19.178000000000001,19.178000000000001,0]
["SWE","North Sea and Eastern Arctic","ICES","ICES area IIIa","2013-2015","SDN_DEF_>=120_0_0","Demersal species",1,21,33,138,29,109,null,1,26,32,"Y",154.7801,32.977200000000003,121.80289999999999]
["SWE","North Sea and Eastern Arctic","ICES","ICES area IV","2013-2015","LHP_FIF_0_0_0","Finfish",2,9,9,2,0,2,null,0,0,0,"Not Applicable",0,0,0]
["SWE","North Sea and Eastern Arctic","ICES","ICES area IV","2013-2015","OTB_CRU_32-69_0_0","Crustaceans",7,11,26,52,28,24,null,0,0,0,"Not Applicable",0,0,0]
["SWE","North Sea and Eastern Arctic","ICES","ICES area IV","2013-2015","OTB_CRU_32-69_2_22","Crustaceans",2,2,5,1,1,0,null,0,0,0,"Not Applicable",0,0,0]
["SWE","North Sea and Eastern Arctic","ICES","ICES area IV","2013-2015","OTB_CRU_70-89_2_35","Crustaceans",1,1,1,0.01,0.01,0,null,0,0,0,"Not Applicable",0,0,0]
["SWE","North Sea and Eastern Arctic","ICES","ICES area IV","2013-2015","OTB_DEF_<16_0_0","Demersal species",11,45,292,26287,0,26287,null,10,58,227,"N",41043.836000000003,815.13,40228.705999999998]
["SWE","North Sea and Eastern Arctic","ICES","ICES area IV","2013-2015","OTB_DEF_>=120_0_0","Demersal species",5,83,215,1202,0,1202,null,5,104,269,"N",1340.0306,0,1340.0306]
["SWE","North Sea and Eastern Arctic","ICES","ICES area IV","2013-2015","OTM_SPF_16-31_0_0","Small pelagic fish",3,9,39,4178,0,4178,null,3,15,64,"N",8113.6549999999997,0,8113.6549999999997]
["SWE","North Sea and Eastern Arctic","ICES","ICES area IV","2013-2015","OTM_SPF_32-69_0_0","Small pelagic fish",5,15,20,3854,1552,2302,null,7,42,67,"N",15654.913,6086.058,9568.8549999999996]
["SWE","North Sea and Eastern Arctic","ICES","ICES area IV","2013-2015","OTT_CRU_32-69_0_0","Crustaceans",7,42,134,56,31,25,null,0,0,0,"Not Applicable",0,0,0]
["SWE","North Sea and Eastern Arctic","ICES","ICES area IV","2013-2015","OTT_CRU_32-69_2_22","Crustaceans",11,63,193,63,42,21,null,12,65,165,"Y",159.59819999999999,103.602,55.996200000000002]
["SWE","North Sea and Eastern Arctic","ICES","ICES area IV","2013-2015","OTT_DEF_>=120_0_0","Demersal species",3,15,33,212,2,210,null,1,5,11,"N",42.070599999999999,0.64480000000000004,41.425800000000002]
["SWE","North Sea and Eastern Arctic","ICES","ICES area IV","2013-2015","PS_SPF_32-69_0_0","Small pelagic fish",3,22,26,6342,87,6255,null,3,11,13,"N",3348,235.35,3112.65]
["SWE","North Sea and Eastern Arctic","ICES","ICES area IV","2013-2015","PTM_SPF_32-69_0_0","Small pelagic fish",6,24,32,6619,1699,4920,null,2,4,4,"N",1137.28,260.08,877.2]
["SWE","North Sea and Eastern Arctic","ICES","ICES area IV","2013-2015","SDN_DEF_>=120_0_0","Demersal species",1,10,19,82,6,76,null,1,7,15,"N",80.537700000000001,0,80.537700000000001]

{"sheet":"Table4D Landing locations","index":15,"n_rows":5,"n_cols":11,"rows_kept":5,"cut":false,"hidden":false,"merged":[]}
["Table 4D: Landing locations"]
[null,null,null,null,null,null,null,null,null,"WP  years","2017-2019"]
[null,null,null,null,null,null,null,null,null,"AR year",2017]
["MS","Region","Sub-area / Fishing ground","Reference years","Landing locations(s)","Average number of locations","Average number of registered landings ","Average landed tonnage ","Average landed tonnage of national fleet","Average landed tonnage of foreign fleet","Comments"]
["SWE","All regions","All areas","2013-2015","ports",338,26445,{"$f":"I5+J5","v":230222},183952,46270,"Average number of registred landings derived from logbooks."]

{"sheet":"Table5A Quality assurance frame","index":16,"n_rows":43,"n_cols":20,"rows_kept":43,"cut":false,"hidden":false,"merged":[[3,0,3,6],[3,7,3,8],[3,10,3,11],[3,12,3,13],[3,14,3,17]]}
["Table 5A: Quality assurance framework for biological data"]
[null,null,null,null,null,null,null,null,null,null,null,null,null,null,null,null,null,null,"WP  years","2017-2019"]
[null,null,null,null,null,null,null,null,null,null,null,null,null,null,null,null,null,null,"AR year",2017]
[null,null,null,null,null,null,null,"Sampling design",null,"Sampling implementation","Data capture",null,"Data Storage",null,"Data processing"]
["MS","MS participating in sampling","Sampling year/ period ","Region","RFMO/RFO/IO","Name of sampling scheme","Sampling frame ","Is the sampling design documented?","Where can documentation on sampling design be found? ","Are non-responses and refusals recorded?","Are quality checks to validate detailed data documented?","Where can documentation on quality checks for data capture be found?","In which national database are data stored?","In which international database(s) are data stored?","Are processes to evaluate data accuracy (bias and precision) documented?","Where can documentation on processes to evaluate accuracy be found? ","Are the editing and imputation methods documented?","Where can documentation on editing and imputation be found? ","Comments ","AR Comments"]
["SWE","SWE",2017,"North Sea and Eastern Arctic","ICES","Skagerrak/Kattegat at-sea","demersal trawlers","Partly","Some documentation in former NPs and on internal server","Y","Y","National quality checks in Fiskdata2; https://fd2.slu.se/Documents- User manual and System documentation    #1 ","FiskData2","RDB-FishFrame, InterCatch","N","NA","N","NA","The aim is to have the different aspects of the sampling scheme properly documented and accessible through a public website. We will during 2017-2018 work to document designs and processes to validate detailed data. During 2018-2019, when more guidance are available from expert groups, will we work to document estimation methods and other aspects of data processing.","No changes made compared to WP. Note: The link to Fiskdata2 can only be opened by authotized login."]
["SWE","SWE",2017,"North Sea and Eastern Arctic","ICES","Skagerrak/Kattegat other (market stock specific)","fishing trips * cod SD 20","Partly","Some documentation in former NPs and on internal server","N","Y","National quality checks in Fiskdata2; https://fd2.slu.se/Documents- User manual and System documentation    #1 ","FiskData2","RDB-FishFrame, InterCatch","N","NA","N","NA","The aim is to have the different aspects of the sampling scheme properly documented and accessible through a public website. We will during 2017-2018 work to document designs and processes to validate detailed data. During 2018-2019, when more guidance are available from expert groups, will we work to document estimation methods and other aspects of data processing.","No changes made compared to WP. Note: The link to Fiskdata2 can only be opened by authotized login."]
["SWE","SWE",2017,"North Sea and Eastern Arctic","ICES","Skagerrak/Kattegat other (market stock specific)","fishing trips * cod SD 21","Partly","Some documentation in former NPs and on internal server","N","Y","National quality checks in Fiskdata2; https://fd2.slu.se/Documents- User manual and System documentation    #1 ","FiskData2","RDB-FishFrame, InterCatch","N","NA","N","NA","The aim is to have the different aspects of the sampling scheme properly documented and accessible through a public website. We will during 2017-2018 work to document designs and processes to validate detailed data. During 2018-2019, when more guidance are available from expert groups, will we work to document estimation methods and other aspects of data processing.","No changes made compared to WP."]
["SWE","SWE",2017,"North Sea and Eastern Arctic","ICES","Skagerrak/Kattegat other (market stock specific)","fishing trips* herring and sprat SD 20","Partly","Some documentation in former NPs and on internal server","N","Y","National quality checks in Fiskdata2; https://fd2.slu.se/Documents- User manual and System documentation    #1 ","FiskData2","RDB-FishFrame, InterCatch","N","NA","N","NA","The aim is to have the different aspects of the sampling scheme properly documented and accessible through a public website. We will during 2017-2018 work to document designs and processes to validate detailed data. During 2018-2019, when more guidance are available from expert groups, will we work to document estimation methods and other aspects of data processing.","No changes made compared to WP."]
["SWE","SWE",2017,"North Sea and Eastern Arctic","ICES","Skagerrak/Kattegat other (market stock specific)","fishing trips* herring and sprat SD 21","Partly","Some documentation in former NPs and on internal server","N","Y","National quality checks in Fiskdata2; https://fd2.slu.se/Documents- User manual and System documentation    #1 ","FiskData2","RDB-FishFrame, InterCatch","N","NA","N","NA","The aim is to have the different aspects of the sampling scheme properly documented and accessible through a public website. We will during 2017-2018 work to document designs and processes to validate detailed data. During 2018-2019, when more guidance are available from expert groups, will we work to document estimation methods and other aspects of data processing.","No changes made compared to WP. Note: The link to Fiskdata2 can only be opened by authotized login."]
["SWE","SWE",2017,"Baltic Sea","ICES","Baltic at-sea","demersal trawlers","Partly","Some documentation in former NPs and on internal server","Y","Y","National quality checks in Fiskdata2; https://fd2.slu.se/Documents- User manual and System documentation    #1 ","FiskData2","RDB-FishFrame, InterCatch","N","NA","N","NA","The aim is to have the different aspects of the sampling scheme properly documented and accessible through a public website. We will during 2017-2018 work to document designs and processes to validate detailed data. During 2018-2019, when more guidance are available from expert groups, will we work to document estimation methods and other aspects of data processing.","No changes made compared to WP. Note: The link to Fiskdata2 can only be opened by authotized login."]
["SWE","SWE",2017,"Baltic Sea","ICES","Baltic self-sampling (market stock specific)","weeks","Partly","Some documentation in former NPs and on internal server","Y","Y","National quality checks in Fiskdata2; https://fd2.slu.se/Documents- User manual and System documentation    #1 ","FiskData2","RDB-FishFrame, InterCatch","N","NA","N","NA","The aim is to have the different aspects of the sampling scheme properly documented and accessible through a public website. We will during 2017-2018 work to document designs and processes to validate detailed data. During 2018-2019, when more guidance are available from expert groups, will we work to document estimation methods and other aspects of data processing.","No changes made compared to WP. Note: The link to Fiskdata2 can only be opened by authotized login."]
["SWE","SWE",2017,"Baltic Sea","ICES","Baltic at-sea or self-sampling","gillnetters (vessels if sea sampling, weeks if self-sampling)","Partly","Some documentation in former NPs and on internal server","Y","Y","National quality checks in Fiskdata2; https://fd2.slu.se/Documents- User manual and System documentation    #1 ","FiskData2","RDB-FishFrame, InterCatch","N","NA","N","NA","The aim is to have the different aspects of the sampling scheme properly documented and accessible through a public website. We will during 2017-2018 work to document designs and processes to validate detailed data. During 2018-2019, when more guidance are available from expert groups, will we work to document estimation methods and other aspects of data processing.","No changes made compared to WP. Note: The link to Fiskdata2 can only be opened by authotized login."]
["SWE","SWE",2017,"Baltic Sea","ICES","Baltic at-sea or self-sampling","longliners (vessels if sea sampling, weeks if self-sampling)","Partly","Some documentation in former NPs and on internal server","Y","Y","National quality checks in Fiskdata2; https://fd2.slu.se/Documents- User manual and System documentation    #1 ","FiskData2","RDB-FishFrame, InterCatch","N","NA","N","NA","The aim is to have the different aspects of the sampling scheme properly documented and accessible through a public website. We will during 2017-2018 work to document designs and processes to validate detailed data. During 2018-2019, when more guidance are available from expert groups, will we work to document estimation methods and other aspects of data processing.","No changes made compared to WP. Note: The link to Fiskdata2 can only be opened by authotized login."]
["SWE","SWE",2017,"Baltic Sea","ICES","Baltic other (market, stock specific)","fishing trips* herring and sprat SD 24","Partly","Some documentation in former NPs and on internal server","N","Y","National quality checks in Fiskdata2; https://fd2.slu.se/Documents- User manual and System documentation    #1 ","FiskData2","RDB-FishFrame, InterCatch","N","NA","N","NA","The aim is to have the different aspects of the sampling scheme properly documented and accessible through a public website. We will during 2017-2018 work to document designs and processes to validate detailed data. During 2018-2019, when more guidance are available from expert groups, will we work to document estimation methods and other aspects of data processing.","No changes made compared to WP. Note: The link to Fiskdata2 can only be opened by authotized login."]
["SWE","SWE",2017,"Baltic Sea","ICES","Baltic other (market, stock specific)","fishing trips* herring and sprat SD 25","Partly","Some documentation in former NPs and on internal server","N","Y","National quality checks in Fiskdata2; https://fd2.slu.se/Documents- User manual and System documentation    #1 ","FiskData2","RDB-FishFrame, InterCatch","N","NA","N","NA","The aim is to have the different aspects of the sampling scheme properly documented and accessible through a public website. We will during 2017-2018 work to document designs and processes to validate detailed data. During 2018-2019, when more guidance are available from expert groups, will we work to document estimation methods and other aspects of data processing.","No changes made compared to WP. Note: The link to Fiskdata2 can only be opened by authotized login."]
["SWE","SWE",2017,"Baltic Sea","ICES","Baltic other (market, stock specific)","fishing trips* herring and sprat SD 26","Partly","Some documentation in former NPs and on internal server","N","Y","National quality checks in Fiskdata2; https://fd2.slu.se/Documents- User manual and System documentation    #1 ","FiskData2","RDB-FishFrame, InterCatch","N","NA","N","NA","The aim is to have the different aspects of the sampling scheme properly documented and accessible through a public website. We will during 2017-2018 work to document designs and processes to validate detailed data. During 2018-2019, when more guidance are available from expert groups, will we work to document estimation methods and other aspects of data processing.","No changes made compared to WP. Note: The link to Fiskdata2 can only be opened by authotized login."]
["SWE","SWE",2017,"Baltic Sea","ICES","Baltic other (market, stock specific)","fishing trips* herring and sprat SD 27","Partly","Some documentation in former NPs and on internal server","N","Y","National quality checks in Fiskdata2; https://fd2.slu.se/Documents- User manual and System documentation    #1 ","FiskData2","RDB-FishFrame, InterCatch","N","NA","N","NA","The aim is to have the different aspects of the sampling scheme properly documented and accessible through a public website. We will during 2017-2018 work to document designs and processes to validate detailed data. During 2018-2019, when more guidance are available from expert groups, will we work to document estimation methods and other aspects of data processing.","No changes made compared to WP. Note: The link to Fiskdata2 can only be opened by authotized login."]
["SWE","SWE",2017,"Baltic Sea","ICES","Baltic other (market, stock specific)","fishing trips* herring and sprat SD 28","Partly","Some documentation in former NPs and on internal server","N","Y","National quality checks in Fiskdata2; https://fd2.slu.se/Documents- User manual and System documentation    #1 ","FiskData2","RDB-FishFrame, InterCatch","N","NA","N","NA","The aim is to have the different aspects of the sampling scheme properly documented and accessible through a public website. We will during 2017-2018 work to document designs and processes to validate detailed data. During 2018-2019, when more guidance are available from expert groups, will we work to document estimation methods and other aspects of data processing.","No changes made compared to WP. Note: The link to Fiskdata2 can only be opened by authotized login"]
["SWE","SWE",2017,"Baltic Sea","ICES","Baltic other (market, stock specific)","fishing trips* herring and sprat SD 29","Partly","Some documentation in former NPs and on internal server","N","Y","National quality checks in Fiskdata2; https://fd2.slu.se/Documents- User manual and System documentation    #1 ","FiskData2","RDB-FishFrame, InterCatch","N","NA","N","NA","The aim is to have the different aspects of the sampling scheme properly documented and accessible through a public website. We will during 2017-2018 work to document designs and processes to validate detailed data. During 2018-2019, when more guidance are available from expert groups, will we work to document estimation methods and other aspects of data processing.","No changes made compared to WP. Note: The link to Fiskdata2 can only be opened by authotized login."]
["SWE","SWE,DNK, DEU, POL, LTU,LVA",2017,"Baltic Sea","ICES","BITS Q1 \nBITS Q4","NA","Y","http://datras.ices.dk/Documents/Manuals/Manuals.aspx","NA","Y","National quality checks in Fiskdata2; https://fd2.slu.se/Documents- User manual and System documentation    #1  \nInternational quality checks DATRAS: http://www.ices.dk/marine-data/data-portals/Pages/DATRAS-Docs.aspx   #2","FiskData2","DATRAS","Partly","http://www.ices.dk/community/groups/Pages/WGBIFS.aspx","Partly","http://www.ices.dk/community/groups/Pages/WGBIFS.aspx","#1 Access through user name and password\n#2 The quality assurance work on the international level are addressed to the planning group for the survey (design issues, no otoliths etc)","No changes made compared to WP. The link to Fiskdata2 can only be opened by authotized login"]
["SWE","SWE, DNK, DEU, POL ,LTU, LVA",2017,"Baltic Sea","ICES","BIAS","NA","Y","http://www.ices.dk/community/groups/Pages/WGBIFS.aspx","NA","Y","National quality checks in Fiskdata2; https://fd2.slu.se/Documents- User manual and System documentation    #1  \nInternational quality checks DATRAS: http://www.ices.dk/marine-data/data-portals/Pages/DATRAS-Docs.aspx   #2","Biological data: FiskData2, Acoustic data: server, IMR, Lysekil","IBAS","Partly","http://www.ices.dk/community/groups/Pages/WGBIFS.aspx","Partly","http://www.ices.dk/community/groups/Pages/WGBIFS.aspx","#1 Access through user name and password\n#2 The quality assurance work on the international level are addressed to the planning group for the survey (design issues, no otoliths etc)","No changes made compared to WP."]
["SWE","SWE,DEU, POL,LTU, LVA,POL,  EST",2017,"North Sea & Eastern Arctic","ICES","IBTS Q1\nIBTS Q3","NA","Y","http://datras.ices.dk/Documents/Manuals/Manuals.aspx","NA","Y","National quality checks in Fiskdata2; https://fd2.slu.se/Documents- User manual and System documentation    #1  \nInternational quality checks DATRAS: http://www.ices.dk/marine-data/data-portals/Pages/DATRAS-Docs.aspx   #2","FiskData2","DATRAS","Partly","http://www.ices.dk/community/groups/Pages/IBTSWG.aspx","Partly","http://www.ices.dk/community/groups/Pages/IBTSWG.aspx","#1 Access through user name and password\n#2 The quality assurance work on the international level are addressed to the planning group for the survey (design issues, gear, no otoliths etc)","No changes made compared to WP. Note: The link to Fiskdata2 can only be opened by authotized login."]
["SWE","SWE,DNK",2017,"North Sea & Eastern Arctic","ICES","NTV3&4","NA","Y","http://www.ices.dk/community/groups/Pages/WGNEPS.aspx","NA","Y","R script \"Lin's CCC\" measure quality of burrow counter","On back-up DVD at Institute of Marine Research","No international database","R script \"Lin's CCC\" measure quality of burrow counter","See comments","See comments","See comments","A Benchmark Workshop on Nephrops Stocks (WKNEP 2016) will be held 24-28 October 2016 where data processing will be described.","No changes made compared to WP."]
["SWE","SWE",2017,"Baltic Sea","ICES","fishermen logbooks, coastal (diadromous)","list of  licensed fishermen and sampling strata ","Y","Local server","Census","Y","see comments","Swedish Agency for Marine and Water Management","RDB-FishFrame","Y","NA","N","NA","This is part of the Swedish official catch statistics and is collected and documented accordingly","No changes made compared to WP."]
["SWE","SWE",2017,"Baltic Sea","ICES","fishermen catch reports, rivers (diadromous)","list of  licensed fishermen and sampling strata ","Y","Local server","Census","Y","see comments","Swedish Agency for Marine and Water Management","RDB-FishFrame","Y","NA","N","NA","This is part of the Swedish official catch statistics and is collected and documented accordingly","No changes made compared to WP."]
["SWE","SWE",2017,"Baltic Sea","ICES","Recreational river catches survey ","salmon recreational fishermen","Partly","No,  but see \"Översyn av fångststatistiken inom fritidsfisket efter lax i Östersjön\" (Björkvik m.fl. 2014)","N","N","NA","No, work in progress","No, data deliverd to WGBAST","N","NA","N","NA","Work to document data processing routines are in progress. The aim is to have the different aspects of the sampling scheme properly documented and accessible through a public website. We aim to document designs and processes for data validation in 2017-2018. In 2018-2019, when more guidance are available from expert groups, we aim to document estimation methods and other aspects of data processing. No single survey for all rivers exists. Most rivers report catches estimated from volontary reports. Torneälven have a special survey made by lst BD, documented in the report they deliver.","No changes made compared to WP. The current sampling schemes have been documented and potential weaknesses in data managment and documentation has been identified. Workshops for sampling design and estimates have been held during 2017. This work continues in 2018.  National database in progress."]
["SWE","SWE",2017,"Baltic Sea","ICES","river sampling, salmon parr counts","designated rivers","Y","http://www.slu.se/elfiskeregistret","NA","Y","\\\\storage-ob.slu.se\\common$\\Berit\\Elfiskeregistret_arbetsgång_uttagslogg","Swedish Electrofishing RegiSter (SERS) #1","None","N","NA","N","NA","#1 A national database held by SLU (http://aquarapport.slu.se/default.aspx?ID=6)","No changes made compared to WP."]
["SWE","SWE",2017,"Baltic Sea","ICES","river sampling, counts of ascending individuals salmon","designated rivers","N","No,  but see \"Översyn av fångststatistiken inom fritidsfisket efter lax i Östersjön\" (Björkvik m.fl. 2014)","NA","N","nowhere, work in progress","No","No","N","NA","N","NA","The aim is to have the different aspects of the sampling scheme properly documented and accessible through a public website. We aim to document designs and processes for data validation in 2017-2018. In 2018-2019, when more guidance are available from expert groups, we aim to document estimation methods and other aspects of data processing.","No changes made compared to WP. The current sampling schemes has been documented and potential weaknesses in data managment and documentation has been identified. Workshops for sampling design and estimates has been held during 2017. This work continues in 2018."]
["SWE","SWE",2017,"Baltic Sea","ICES","river sampling, salmon smolt counts","designated rivers","Y","local server","NA","Y","NA","No","No","N","NA","N","NA","The aim is to have the different aspects of the sampling scheme properly documented and accessible through a public website. We aim to document designs and processes for data validation in 2017-2018. In 2018-2019, when more guidance are available from expert groups, we aim to document estimation methods and other aspects of data processing.","No changes made compared to WP. The current sampling schemes has been documented and potential weaknesses in data managment and documentation has been identified. Workshops for sampling design and estimates has been held during 2017. This work continues in 2018."]
["SWE","SWE",2017,"Freshwater","ICES","Logbooks & journals","Commercial eel fishers","Y","Local server","Census","Y","see comments","Swedish Agency for Marine and Water Management","RDB-FishFrame","Y","NA","N","NA","This is part of the Swedish official catch statistics and is collected and documented accordingly","No changes made compared to WP."]
["SWE","SWE",2017,"Freshwater","ICES","yellow eel recruitment","electofishing & traps","Y","http://www.slu.se/elfiskeregistret","NA","Y","\\\\storage-ob.slu.se\\common$\\Berit\\Elfiskeregistret_arbetsgång_uttagslogg","Swedish Electrofishing RegiSter (SERS)","None","N","NA","N","NA","A national database held by SLU","No changes made compared to WP."]
["SWE","SWE",2017,"Freshwater","ICES","Mark-recapure","silver eel escapement","N","NA","NA","N","NA","Sötebasen (starting in 2017)","No","N","NA","N","NA","A new database (Sötebasen) is under construction. The aim is to have the different aspects of the sampling scheme properly documented and accessible through a public website. We aim to document designs and processes for data validation in 2017-2018. In 2018-2019, when more guidance are available from expert groups, we aim to document estimation methods and other aspects of data processing.","No changes made compared to WP."]
["SWE","SWE",2017,"baltic/freshwater","ICES","recruitment and production survey","designated rivers","N","No ","N","N","NA","No","No","N","NA","N","NA","Not yet implemented, starts in 2017 with a preliminary study","No changes made compared to WP."]
["SWE","SWE",2017,"Freshwater","ICES","Monitoring of introduced populations","Fyke netting & traps","Y","NA","NA","Y","No ","Sötebasen (starting in 2017)","NA","N","NA","N","NA","A new database (Sötebasen) is under construction. The aim is to have the different aspects of the sampling scheme properly documented and accessible through a public website. We aim to document designs and processes for data validation in 2017-2018. In 2018-2019, when more guidance are available from expert groups, we aim to document estimation methods and other aspects of data processing.","No changes made compared to WP."]
["SWE","SWE",2018,"Freshwater & marine","ICES","data collection of stocked amounts and sites","data collection of stocked amounts and sites","Y","NA","NA","Y","NA","Sötebasen (starting in 2017)","NA","N","NA","N","NA","A new database (Sötebasen) is under construction. The aim is to have the different aspects of the sampling scheme properly documented and accessible through a public website. We aim to document designs and processes for data validation in 2017-2018. In 2018-2019, when more guidance are available from expert groups, we aim to document estimation methods and other aspects of data processing.","No changes made compared to WP. The current sampling schemes has been documented and potential weaknesses in data managment has been identified. Workshops for sampling design and estimates has been held during 2017. This work continues in 2018."]
["SWE","SWE",2017,"Baltic Sea","ICES","sampling on shore","Commercial trawlers targeting herring in the Bothnian Sea","Y","Some documentation in former NPs and on internal server","Y","Y","National quality checks in Fiskdata2; https://fd2.slu.se/Documents- User manual and System documentation    #1 ","FiskData2","RDB-FishFrame, InterCatch","N","NA","N","NA","The aim is to have the different aspects of the sampling scheme properly documented and accessible through a public website. We will during 2017-2018 work to document designs and processes to validate detailed data. During 2018-2019, when more guidance are available from expert groups, will we work to document estimation methods and other aspects of data processing.","No changes made compared to WP."]
["SWE","SWE",2017,"Baltic Sea","ICES","sampling on shore","Licensed fishermen targeting herring by gill nets in the Gulf of Bothnia","Y","Some documentation in former NPs and on internal server","Y","Y","National quality checks in Fiskdata2; https://fd2.slu.se/Documents- User manual and System documentation    #1 ","FiskData2","RDB-FishFrame, InterCatch","N","NA","N","NA","The aim is to have the different aspects of the sampling scheme properly documented and accessible through a public website. We will during 2017-2018 work to document designs and processes to validate detailed data. During 2018-2019, when more guidance are available from expert groups, will we work to document estimation methods and other aspects of data processing.","No changes made compared to WP. Note: The link to Fiskdata2 can only be opened by authotized login."]
["SWE","SWE",2017,"Baltic Sea","ICES","sampling on shore","Commercial vessels with permit to conduct vendace pair-trawling","Y","See Comments","N1","Y","See Comments","KUL","See Comments","N","NA","N","NA","Documentation on sampling design, sampling implementation and data capture is stored on a locked internal share-point. This documentation will be improved, at the same time as documentation on data processing will be produced. Latest 2019, everything will be made available on an open web page. Data storage: Upload to RDB-FishFrame is underway. 1Sampling implementation/Non-responses-refusals: None has turned up so far and therefore a routine for this has not yet been established (the sampling is performed by a sub-contractor). For future work, a routine will be developed.","No changes made compared to WP."]
["SWE","SWE",2017,"Baltic Sea","EIFAAC/ICES/GFCM ","sampling at sea","Licensed pound net fishermen with permit to target silver eel","Y","See Comments","Y","Y","See Comments","KUL","RDB-FishFrame","N","NA","N","NA","Documentation on sampling design, sampling implementation and data capture is stored on a locked internal share-point. This documentation will be improved, at the same time as documentation on data processing will be produced. Latest 2019, everything will be made available on an open web page.","No changes made compared to WP."]
["SWE","SWE",2017,"Baltic Sea","EIFAAC/ICES/GFCM ","catadromous survey","Survey aiming to collect eel with fyke nets, same gear/fishing method formely used  in the commercial fisheries","Y","See Comments","NA","Y","See Comments","KUL","NA","N","NA","N","NA","Documentation on sampling design, sampling implementation and data capture is stored on a locked internal share-point. This documentation will be improved, at the same time as documentation on data processing will be produced. Latest 2019, everything will be made available on an open web page.","No changes made compared to WP."]
["SWE","SWE",2017,"Baltic Sea","ICES","recreational fisheries- postal questionnaire","Approximately 10,000 randomly selected permanent residents in Sweden, age 18-80 year.","Y","Statistical Technical Report","Y","Y","Statistical Technical Report","Data warehouse at The Swedish Agency for Marine and Water Management","N","Y","Statistical Technical Report","Y","Statistical Technical Report",null,"No changes made compared to WP."]
["SWE","SWE",2017,"North Sea and Eastern Arctic","ICES","recreational fisheries- postal questionnaire","Approximately 10,000 randomly selected permanent residents in Sweden, age 18-80 year.","Y","Statistical Technical Report","Y","Y","Statistical Technical Report","Data warehouse at The Swedish Agency for Marine and Water Management","N","Y","Statistical Technical Report","Y","Statistical Technical Report",null,"No changes made compared to WP."]

{"sheet":"Table5B Quality assurance frame","index":17,"n_rows":13,"n_cols":33,"rows_kept":13,"cut":false,"hidden":false,"merged":[[4,28,4,30],[4,31,5,31],[4,32,5,32],[3,0,4,6],[3,7,3,11],[3,12,3,21],[3,22,3,30],[4,7,4,8],[4,9,4,11],[4,12,4,14],[4,15,4,19],[4,23,4,24],[4,26,4,27]]}
["Table 5B: Quality assurance framework for socio-economic data"]
[null,null,null,null,null,null,null,null,null,null,null,null,null,null,null,null,null,null,null,null,null,null,null,null,null,null,null,null,null,null,null,"WP  years","2017-2019"]
[null,null,null,null,null,null,null,null,null,null,null,null,null,null,null,null,null,null,null,null,null,null,null,null,null,null,null,null,null,null,null,"AR year",2017]
[null,null,null,null,null,null,null,"Institutional environment",null,null,null,null,"Statistical processes",null,null,null,null,null,null,null,null,null,"Statistical Outputs"]
[null,null,null,null,null,null,null,"P3 Impartiality and objectiveness",null,"P4 Confidentiality",null,null,"P5 Sound methodology",null,null,"P6 Appropriate statistical procedures",null,null,null,null,"P7 Non-excessive burden on respondents","P8 Cost effectiveness","P9 Relevance","P10 Accuracy and reliability",null,"P11 Timeliness and punctuality","P12 coherence and comparability",null,"P13 Accessibility and Clarity",null,null,"Comments","AR Comments"]
["MS","Sector Name","Sampling year/ period","Region","RFMO/RFO/IO/NSB","Type of data collection scheme","Data Sources","Statistically sound sources and methods","Error checking","Are procedures for confidential data handling in place and documented?","Are protocols to enforce confidentiality between DCF partners in place and documented?","Are protocols to enforce confidentiality with external users in place and documented?","Is sound methodology documented ?","Does it follow international standards, guidelines and best practices?","Are methodologies consistent at MS, regional and EU level?","Is there consistency between administrative and other statistical data?","Are there agreements for access and quality of administrative data between partners?","Are data collection, entry and coding checked?","Are editing and imputation methods used and checked?","Are revisions documented and available?","Is duplication of data collection avoided?","Do automatic techniques for data capture, data coding and validation exist?","Are end-users listed and updated?","Are sources, intermediate results and outputs regularly assessed and validated?","Are errors measured and documented? ","Are procedures in place to ensure timely execution?","Are procedures in place to monitor internal coherence?","Are statistics comparable over time?","Are methodological documents publicly available?","Are data stored in databases?","Where can documentation be found? "]
["SWE","Fishing",2016,"All regions","NA","A - Census","Questionnaries - Revenue/cost","Y","Y","Y","Y","Y","Y","Y","Y","Y","Y","Y","Y","Y","Y","Y","Y","Y","Y","Y","Y","Y","Y","Y","https://www.havochvatten.se/",null,"Data collection is the same as previous year."]
["SWE","Fishing",2016,"All regions","NA","A - Census","Questionnaries - Social data","Y","Y","Y","Y","Y","Y","Y","Y","Y","Y","Y","Y","Y","Y","Y","Y","Y","Y","Y","Y","Y","Y","Y","https://www.havochvatten.se/",null,"The planned pilot survey was not completed during 2017. During 2017 main focus was set on setting up the sampling design and statistical procedures to maximize efficiency when collection the data in 2018. P3-P13 is the same as the economic survey."]
["SWE","Fishing",2016,"All regions","NA","A - Census","Tax declarations - Revenue/cost","Y","Y","Y","Y","Y","Y","Y","Y","Y","Y","Y","Y","Y","Y","Y","Y","Y","Y","Y","Y","Y","Y","Y","https://www.havochvatten.se/",null,"Data collection is the same as previous year."]
["SWE","Fishing",2016,"All regions","NA","A - Census","Logbooks - Revenue","Y","Y","Y","Y","Y","Y","Y","Y","Y","Y","Y","Y","Y","Y","Y","Y","Y","Y","Y","Y","Y","Y","Y","https://www.havochvatten.se/",null,"Data collection is the same as previous year."]
["SWE","Fishing",2016,"All regions","NA","A - Census","Monthly journals - Revenue","Y","Y","Y","Y","Y","Y","Y","Y","Y","Y","Y","Y","Y","Y","Y","Y","Y","Y","Y","Y","Y","Y","Y","https://www.havochvatten.se/",null,"Data collection is the same as previous year."]
["SWE","Aquaculture",2015,"All regions",null,"A-census","Statistics","Y","Y","Y","Y","Y","Y","Y","Y","Y","Y","Y","Y","Y","Y","Y","Y","Y","Y","Y","Y","Y","Y","Y","www.scb.se",null,"The sector was not listed in WP 2017, by mistake and therefore added here."]
["SWE","processing",2015,"all regions","NA","C - Non-Probability Sample Survey, A - census","Official statistics","Y","Y","Y","Y","Y","Y","Y","Y","Y","Y","Y","Y","Y","Y","Y","Y","Y","Y","Y","Y","Y","Y","Y","www.scb.se",null,"The sector was not listed in WP 2017, by mistake, and therefore added here."]

{"sheet":"Table6A_Data_availability","index":18,"n_rows":21,"n_cols":10,"rows_kept":21,"cut":false,"hidden":false,"merged":[]}
["Table 6A: Data availability"]
[null,null,null,null,null,null,null,null,"WP  years","2017-2019"]
[null,null,null,null,null,null,null,null,"AR year",2017]
["MS","Data set","Section","Variable group","Year(s) of WP implementation","Reference year ","Final data available after","Comments","Date when data was available","AR Comments"]
["SWE","Fleet economic","3A","Revenue/costs","N","N-1","N+1, March 1",null,"1st of march 2018"]
["SWE","Aquaculture economic","3B","all","N","N-2","N+1, March 1","Due to financial accounting there is a two year delay","April 30 2017","March 1 was an error, data is available after April 30."]
["SWE","Fish processing economic","3C","all except 2 variables; number of hours worked  and unpaid labour. It is not possible to seperate subsidies, so we will report it for the whole variable group. ","N","N-2","N+1, November 1","Subsidies, it is not possible to seperate  so we will report it for the whole variable group. ","November 6th, 2017","Availability according to Work Plan. "]
["SWE","Biological variables","1B/1C/1H","Age, length, weight, sex ratio, sexual maturity  ","N","N"," N+1 March 31","Stocks as listed in 1B/1C ","wgbfas 20180322\nwgdeep 20180323\nwgnssk 20180329\nwgbie 20180405\nwgcse 20180411","The variable not listed in WP 2017 by mistake, added here."]
["SWE","Recreational fisheries","1D","River catches; Salmo salar Baltic Sea + North sea and Eastern Arctic and Salmo trutta Baltic Sea","N","N","N+1, February 28",null,20180228,"The majority of data was available before deadline. Delays due to unexpected logistic reasons."]
["SWE","Recreational fisheries","1D","Trolling catches; Salmo salar Baltic Sea","N","N","N+1, February 28","This survey is done every second year","NA","Not performed this year. The variable not listed in WP 2017 by mistake, added here. "]
["SWE","Recreational fisheries","1D","Trap net catches; Salmo salar Baltic Sea","N","N","N+1, February 28","This survey is done every 4th year","NA","Not performed this year. The variable not listed in WP 2017 by mistake, added here. "]
["SWE","Recreational fish","1D","Recreational fish -  cod, salmon, sea trout ","N","N"," N+1 March 31","Annual estimate of catch, data from the  pilot studies",20180331,"No pilot study on salmon and sea trout, only cod."]
["SWE","Anadromous and catadromous species data collection in fresh water ","1E","Electrofishing, smolt traps adult counters, fishery statistics; Salmo salar Baltic Sea + North Sea and Eastern Arctic","N","N","N+1, February 28",null,20180228]
["SWE","Anadromous and catadromous species data collection in fresh and brackish water ","1E","Age, length, weight, sex ratio, sexual maturity; Anguilla anguilla; Inland, Baltic Sea + North Sea and Eastern Arctic","N","N","N+1, June 15",null,20180615,"The variable not listed in WP 2017 by mistake, added here."]
["SWE","Anadromous and catadromous species data collection in fresh and brackish water ","1E","Electrofishing, silver eel traps, yellow eel monitoring, young eel recruitment, fishery statistics; Anguilla anguilla; Inland, Baltic Sea + North Sea and Eastern Arctic","N","N","N+1, June 15",null,20180615,"The variable not listed in WP 2017 by mistake, added here."]
["SWE","Incidental Bycatch  ","1F","Incidental Bycatch  ","N","N"," N+1 March 31",null,20180331,"The variable not listed in WP 2017 by mistake, added here."]
["SWE","Research surveys at sea","1G",null,"N","N","N+1 March 31",null,"IBTS q3 2017; 20170911\nBITS q4 2017; 201802\nBIAS 2017; 201804\nIBTS q1 2018; 20180409\nBITS q1 2018; 20180323","The variable not listed in WP 2017 by mistake, added here."]
["SWE","Capacity","2A","Capacity ","N","N","N+1 March 31","Variable collected for all areas",20180331,"The variable not listed in WP 2017 by mistake, added here."]
["SWE","Effort","2A","Effort","N","N","N+1 March 31","Variable collected for all areas",20180331,"The variable not listed in WP 2017 by mistake, added here."]
["SWE","Landings ","2A","Landings ","N","N","N+1 March 31",null,20180331,"The variable not listed in WP 2017 by mistake, added here."]
["SWE","Social data fleet (pilot 2017)","3A","Social data","N","N-1","N+1, March 1","This survey is done every third year, starting 2018.","NA","The pilot study was not conducted during 2017. Time and effort was instead spent on the design of the final study, which was conducted during 2018."]

{"sheet":"Table7A_Planned Regional_coord","index":19,"n_rows":43,"n_cols":8,"rows_kept":43,"cut":false,"hidden":false,"merged":[[8,0,8,5],[15,0,15,5],[21,0,21,5],[29,0,29,5]]}
["Table 7A: Planned regional and international coordination"]
[null,null,null,null,null,null,"WP  years","2017-2019"]
[null,null,null,null,null,null,"AR year",2017]
["MS","Acronym","Name of meeting","RFMO/RFO/IO","Planned MS participation","Comments","Number of participants","AR Comments"]
["(1) Data collection: National and EU coordination"]
["SWE","NC meeting","Expert Group on Fisheries Data Collection meeting","NA","X",null,1]
["SWE","National Coordination","National coordination meeting","NA","X","Commission will be invited",11]
["SWE","WGIMM","Working Group on Integration of Economics, Stock Assessment and Fisheries Management (web-ex)","ICES",1,"By correspondence",0,"No participation, will participate 2018 "]
["(2) Data collection: Regional coordination"]
["SWE","RCM Baltic ","Regional Coordination Meeting for the Baltic","ICES","X","including NC part time",9,"Subgroup of diadroma species was included in this RCG. 2 persons for eel and 2 persons for salmon /seatrout part time participation"]
["SWE","RCM NS & EA","Regional Coordination Meeting for the North Sea and Eastern Arctic","ICES","X","including NC part time",3]
["SWE","13th Liason Meeting","13th Liason Meeting ","ICES","NA",null,2,"Outgoing chair from RCG NS & EA and incoming chair for RCG Baltic were participating"]
["SWE","RDB-SC-1","Meeting of the Steering Committee of the Regional Database - Baltic, North Sea & North Atlantic ","ICES","X",null,2]
["SWE","PGECON","Planning Group for Economic Issues","COM","X",null,1]
["SWE","SUBGROUPS in RCG","Subgroups established in RCMs to work intersessionaly","NA","X",null,0,"No subgroupwork was executed during 2017- therefore no participants."]
["(3) ICES & other Planning Groups or Workshops related to the DCF"]
["SWE","WGCATCH","The Working Group on Commercial Catches","ICES","X",null,2]
["SWE","PGDATA","Planning Group on Data Needs for Assessment and Advice","ICES","X",null,1]
["SWE","WGBIOP","Working Group on Biological Parameters","ICES","X",null,2]
["SWE","WKRDB","ICES Workshop to develop the RDB data format for design based sampling and estimation with particular emphasis on population data","ICES","X","participation if meeting will be hold",0,"No workshop was performed."]
["SWE","WGRFS","Working Group on Recreational Fisheries Surveys","ICES","X",null,2]
["(5) Planning Groups on surveys at sea "]
["SWE","IBTSWG","International Bottom Trawl Survey Working Group","ICES","X",null,1]
["SWE","WGBIFS","Baltic International Fish Survey Working Group","ICES","X",null,3]
["SWE","WGNEPS","Working Group on Nephrops surveys","ICES","X",null,1]
["SWE","WGISUR","Working Group on Integrating Surveys for the Ecosystem Approach","ICES","X",null,0,"Due to overlap with other duties, the meeting could not be prioritized."]
["SWE","WGFTFB","ICES-FAO Working group of Fishing Technology and Fish Behaviour","ICES","X",null,1]
["SWE","WGFAST","Working Group on Fisheries Acoustics, Science and Technology","ICES","X",null,1]
["SWE","WGISDAA","Working Group on Improving use of Survey Data for Assessment and Advice","ICES","X",null,0,"Due to overlap with other duties, the meeting could not be prioritized."]
["(6) Support to Scientific Advice - ICES"]
["SWE","WGCHAIRS","Annual Meeting of Advisory Working Group Chairs","ICES","X",null,4]
["SWE","NIPAG","NAFO/ICES Pandalus Assessment Meeting","ICES/NAFO","X",null,3]
["SWE","HAWG","Herring Assessment Working Group for the Area South of 62⁰N","ICES","X",null,1]
["SWE","WGBAST","Baltic Salmon and Trout Assessment Working Group","ICES","X",null,6,"4 persons were attending part of the meeting or partly by skype."]
["SWE","WGBFAS","Baltic Fisheries Assessment Working Group","ICES","X",null,9,"4 persons were attending part of the meeting."]
["SWE","WGNSSK","Working Group on the Assessment of Demersal Stocks in the North Sea and Skagerrak","ICES","X",null,3,"2 persons attending by correspondance."]
["SWE","WGEEL","Joint EIFAC/ICES Working Group on Eels","ICES/EIFAC","X",null,1]
["SWE","WGECO","Working Group on the Ecosystem Effects of Fishing Activities","ICES","X",null,1]
["SWE","WGSFD","Working Group on Spatial Fisheries Data","ICES","X",null,1]
["SWE","WGSAM","Working Group on Multispecies Assessment Method","ICES","X",null,3]
["SWE","WGBYC","Working Group on Bycatch of Protected Species Fishing Behaviour ","ICES","X",null,1]
["SWE","WGBIODIV","Working Group on Biodiversity Science","ICES","X",null,1]
["SWE",null,"Benchmark on Nephrops","ICES","X",null,1]

{"sheet":"Table7B_Follow up of Recommenda","index":20,"n_rows":22,"n_cols":11,"rows_kept":22,"cut":false,"hidden":false,"merged":[]}
["Table 7B: Follow-up of recommendations and agreements"]
[null,null,null,null,null,null,null,null,null,"WP  years","2017-2019"]
[null,null,null,null,null,null,null,null,null,"AR year",2017]
["MS","Region","RFMO/RFO/IO","Source","Section ","Topic","Recommendation number","Recommendation/ Agreement","Follow-up action","Comments","MS action taken "]
["SWE","North Sea & Eastern Arctic","ICES","LM 2016",null,"Cost sharing of surveys","5. Agreements","Cost-sharing agreement for the conducting of the International Ecosystem Survey in the Nordic Seas (ASH) and the Blue Whiting Survey in 2016 and 2017","Approval by National Correspondents from  Denmark, Germany, the Netherlands, Sweden and the UK. \nDenmark, Germany, the Netherlands, Sweden and the UK agreed at the 2016 RCM NS&EA. ","As stated, Sweden has already agreed on the cost sharing.","As stated, Sweden has already agreed on the cost sharing."]
["SWE","North Sea & Eastern Arctic","ICES","LM 2015","VI","Upload in the RDB","LM.11","RCM NS&EA urges all countries to upload their data in time for the RCM.","All MS to upload their datasets in time. A small group of experts (2‑3 persons) to be named to prepare tables and figures summarising the information contained in the RDB in advance of the RCM meeting.","Sweden follow the recommendation and upload the data according to the deadline in the datacall. ","Sweden follow the recommendation and upload the data according to the deadline in the datacall. "]
["SWE","North Sea & Eastern Arctic","ICES","LM 2015","VI","Use of the RDB","LM.12","RCM NS&EA recommends that once the code list is finalized, all countries should repopulate the whole time series of landings, effort and samples to the RDB.","RCM NS&EA to agree on code lists for all fields of the RDB. All MS to implement the agreed code lists in their national data center for exporting purposes and upload their data in the RDB.","Sweden has uploaded the data according to the instructions in the datacall.","Sweden has uploaded the data according to the instructions in the datacall."]
["SWE","North Sea & Eastern Arctic","ICES","LM 2015","VI","Implication on landing obligation in data storage","LM. 15","RCM NS&EA repeats the recommendation from last year that scientific institutions and ICES need to ensure that data recording systems, IT systems and estimation routines are able to appropriately deal with the new BMS (fish landed below MCRS) fraction of the catch that origins from the landing obligation. National and international databases (including InterCatch and FishFrame) need to accommodate this new fraction in order to make catch estimates transparent.","MS and EU authorities to, where feasible, improve control data capture methods to assure the quality of the data used for scientific advice. Authorities should consider: \n1. BMS fraction in the logbooks not just on the landing declaration. Assure and maintain accurate species composition data. \n2. Sales notes or equivalent to need to account for the non‑sold BMS fraction. \n3. Validation of the control data for the BMS fraction.\n4. Assured solutions for the under 10 meter vessels presently only","Sweden has taken the comments into account to assure the data quality. ","Sweden has taken the comments into account to assure the data quality. "]
["SWE","North Sea & Eastern Arctic","ICES","LM 2014","III.C","Metier related variables","LM.2","Implications of the landing obligation ‑ Scientific data collection and at sea sampling","Scientific institutions to prepare sampling protocols appropriate for at‑sea sampling of the retained fraction and extra fraction (landing part for industrial purpose of fish under the minimum reference size) due to the landings obligations and modify their sampling protocol. MS & ICES to consider if modifications are needed for recording, storage and estimation processes (data exchange format, IT systems, ...)","Sweden has introduced protocols and recording systems / databases to accomodate the new needs raising from the landing oblligations","Sweden has introduced protocols and recording systems / databases to accomodate the new needs raising from the landing obligations."]
["SWE","North Sea & Eastern Arctic","ICES","LM 2014","III.C","Metier related variables","LM.3","Implications of the landing obligation ‑ Scientific data storage, IT systems and estimation","ICES and Scientific institutions ensure that data recording systems, IT systems and estimation routines are able to appropriately deal with the retained discard fraction. Also, authorities should adjust logbooks and IT systems to accommodate the accurate recordings of all catch components, including the part that can be released under the de minimis exemptions.","Sweden is discussing and considering that new data sets will be accommodated in the scientific databases","Ongoing"]
["SWE","North Sea & Eastern Arctic","ICES","LM 2014","III.F","Transversal variables","LM.4","Implications of the landing obligation ‑ Monitoring catch data collection","Monitoring catch data collected by control agencies should be maintained and enhanced to account for the additional need to assess the impact of the landing obligation. Specifically the logbook system should be able to record continuing discards and the retained discard fraction as well as the landed fraction.Selective gear measures adopted by vessels should be recorded in logbooks.","Sweden plans on implementing changes in the logbook system in accordance with the landing obligation as determined by the omnibus and revised implementing regulation (404/2011), respectively","The Swedish electronic and paper loggbook (and national coastal journal for vessels below 10 m) have been adopted to meet the EU requirements of the LO by adding the following codes in 2016: LSC (Legally Sized Catches of fish), BMS (Fish Below Minimum Size), DIS (Discarded fish), DIM (Discarded fish exempted from the LO). Furthermore, Sweden has introduced the national code ROV in the logbook and coastal journal referring to fish which shows damage caused by predators."]
["SWE","North Sea & Eastern Arctic","ICES","LM 2014","III.C","Metier related variables","LM.5","Quality assurance – Agreed metiers and updated list","RCM NS&EA to update the list of metiers including\ndetailed description of each. These lists should be\nimplemented in the RDB. It should not be possible to\nupload data for metiers outside the list without permission\nfrom the RCM chair. The updated table of metiers should\ntake all metiers standardized and accepted by RCMs over\nthe last years into account.","Sweden has updated the metier lists in accordance with agreed national reference lists","Sweden has updated the metier lists in accordance with agreed national reference lists."]
["SWE","Baltic Sea","ICES","LM 2014","III.C","Metier and stock related variables","LM. A1","Quality assurance – Upload of historical data to RDB FishFrame","The RCM agrees on a data call demanding all MS to ensure that all historical data (including data in salmon and eel) for the period 2009-‑2013 are uploaded to RDB FishFrame.","Sweden has uploaded all data including eel and salmon in the RDB. This has been done during 2015/2016.","Sweden has uploaded all data including eel and salmon in the RDB. This has been done during 2015/2016."]
["SWE","North Sea & Eastern Arctic","ICES","LM 2014","III.C","Metier and stock related variables","LM. A2","Quality control documentation","It is agreed that all MS attending the RCM NS&EA will document their data checks and quality control procedures in reference to the data capture and data processing stages of their national sampling programmes.","Sweden is taking part in the FishPi project were datachecks are developed. Also, documented routines are under development on a national level.","Sweden is taking part in the FishPi project were datachecks are developed. Also, documented routines are under development on a national level."]
["SWE","North Sea & Eastern Arctic","ICES","LM 2014","III.G","Surveys","LM. A3","Regional Coordination ‑ Cost sharing of International Ecosystem Survey in Nordic Waters and Blue Whiting joint research surveys","RCM NS&EA 2014 agreed that the cost sharing model where those MS having a EU‑TAC share >= 5% is sharing the survey cost according to their EU‑TAC shares for the main species concerned: i) the International Ecosystem Survey in the Nordic (Atlanto‑Scandian herring), ii) the Blue Whiting Survey (blue whiting). This model will be used for the International Ecosystem Survey in the Nordic Seas (IESNS) carried out by the Danish R/V Dana and the Blue Whiting Survey carried out by the Irish R/V Celtic Explorer and the Dutch R/V Tridens for years 2014 and 2015 or until a new data regulation is in place.","Approved by NC in Sweden","Approved by NC in Sweden"]
["SWE","Baltic Sea","ICES","WGBIFS 2015","III.G","BITS survey",null,"In order to improve the coverage of the BITS survey area, a number of new haul positions covering the “white spot” areas where no tracks are available (despite the fact that significant commercial fishing activity is registered) should be included in the Tow Database. This is particularly essential to the ICES SDs 22 and 23","In due time before the 4th quarter 2015 survey","Not introduced, in progress. ","Not introduced, in progress. "]
["SWE","Baltic Sea","ICES","WGBIFS 2015","III.G","BITS survey",null,"The WGBIFS recommends collecting Baltic cod stomachs for food spectrum and feeding intensity analyses, accordingly to the format agreed during the WGBIFS-2015 meeting and described in the BITS Manual 2015. This action is recommended also by WGSAM.","2015 BITS-4q and 2016 BITS-1q","Sweden is collecting stomach samples according to this recommendation","Sweden is collecting stomach samples according to this recommendation."]
["SWE","Baltic Sea","ICES","WGBIFS 2015","III.G","BITS survey",null,"The WGBIFS recommends to perform the TV-3L and TV-3S trawl technical parameters measurement by professional experts in fishinggear technology or experienced crew members.Each country measurement results should be made available to the WGBIFS using the standard protocols.","2015 BITS-4q and 2016 BITS-1q","Ray's VOD og Trawl Bindery in Denmark are measuring our trawls in cooperation with trawl responsible and/or the cruiseleader, and the data is made available to the wgbifs working group according to recommendation","Ray's VOD og Trawl Bindery in Denmark are measuring our trawls in cooperation with trawl responsible and/or the cruiseleader, and the data is made available to the wgbifs working group according to recommendation."]
["SWE","Baltic Sea","ICES","WGBIFS 2015","III.G","BITS survey",null,"The WGBIFS recommends collecting and reporting the marine litter appeared in the ground trawl fish control-catches according to the proposed format, described in the BITS Manual 2015 (Addendum 1).","2015 BITS-4q and 2016 BITS-1q","Sweden is collecting marine litter according to this recommendation","Sweden is collecting marine litter according to this recommendation."]
["SWE","North Sea & Eastern Arctic","ICES","IBTSWG 2015","III.G","IBTS survey","Action 9","Each institute to draft their own GOV user manual detailing all trawl components and rigging.","To be filled in by gear expers in national institutes","This work has not done much progress yet but the plan for this work in Sweden is to  finalize it's own user manual by the end of 2016","Not finalized."]
["SWE","North Sea & Eastern Arctic","ICES","IBTSWG 2015","III.G","IBTS survey","Action 11","Collate data from research vessels on additional clear tows, and enter in a clear tows database on Share-Point.","To be filled in asap","No action so far","Haul coordinates for clear tows in IIIa are available in Datras."]
["SWE","North Sea & Eastern Arctic","ICES","WGNEPS 2015","III.G","UWTV","Rec 2","A dedicated research project on Nephrops UWTV surveys has been proposed by WGNEPS; “Further developing UWTV Nephrops survey methodologies (DevNepS)”. WGNEPS recommends that this project be funded in the near future through funding mechanisms such as EMFF. ","DC-MAP coordinators in Member states","This proposal will be further discussed in WGNEPS in November 2016. ","No major progress.  "]

{"sheet":"Table7C_Bi- and multilateral ","index":21,"n_rows":12,"n_cols":10,"rows_kept":12,"cut":false,"hidden":false,"merged":[]}
["Table7C: Bi- and multilateral agreements"]
[]
[null,null,null,null,null,null,null,null,"WP  years","2017-2019"]
[null,null,null,null,null,null,null,null,"AR year",2017]
["MSs","Contact persons","Content","Coordination","Description of sampling / sampling protocol / sampling intensity","Data transmission  ","Access to vessels ","Validity ","Comments","AR Comments"]
["SWE - BEL","SWE: Anna Hasslow, anna.hasslow@havochvatten.se; BEL: els Torreele, Els.Torreele@ilvo.vlaanderen.be","To optimize and exchange the age reading expertise on sole collected in the IBTS survey. ","described in next column","SWE sends the otoliths collected during the IBTS q1 and q3 survey to BEL for age reading. App 50 -100 individuals per year. Belgium sends the results of the age readings together with the otoliths at the latest in December each year.","SWE is responsible for submitting the data to the relevant ICES Expert Groups, and to the EC under the requirements of its Data Collection Framework.","no need",2017,null,"Ongoing"]
["SWE - DNK","SWE: Anna Hasslow, anna.hasslow@havochvatten.se; DNK: Jørgen Dalskov, jd@aqua.dtu.dk","a) Sampling of the following species has been discussed and agreed: plaice in Skagerrak and Kattegat, cod in the Baltic, haddock in div.IIIa, saithe in div.IIIa, sole in div.IIIa, whiting in div.IIIa, norway lobster in Kattegat and Skagerrak, hake in div.IIIa, salmon in Baltic Sea.\nb) Special agreements for: herring in div.IIIa and div.IIIb-d, and sprat div.IIIb-d, witch flounder in div.IIIa.","described in next column","a) plaice: only DNK to sample, age reading calibration between DNK and SWE to be carried out on routine basis. cod: only DNK to sample. haddock: only DNK to sample. saithe: only DNK to sample. sole: only DNK to sample. whiting: discard rates will continue to be obtained. norway lobster: DNK & SWE to sample. hake: DNK to sample. \nb) \nherring IIIa: DNK to sample from trawl fisheries targeting small pelagic fish, si: 5 samples, 50 age readings/sample, 50 length measurements/sample, 50 individual weight/sample.\nherring IIIb-d: DNK to sample from trawl fisheries targeting small pelagic fish, si: 14 samples, 50 age readings/sample, 50 length measurements/sample, 50 individual weight/sample.\nsprat IIIb-d: DNK to sample from trawl fisheries targeting small pelagic fish, si: 28 samples, 50 age readings/sample, 50 length measurements/sample, 50 individual weight/sample.\nwitch flounder IIIa: app 600 individuals will be collected in DNK and sent to SWE for age reading."," \nherring IIIa: DNK obtains samples by market sampling from unsorted catches stratified by fishery. Samples to be delivered to SWE regularly on a quartely basis during the year of sampling. SWE responsible for submitting data to the respective end-users.\n\nherring IIIb-d: DNK obtains samples by market sampling from unsorted catches stratified by fishery.  Samples to be delivered to SWE regularly on a quartely basis during the year of sampling. SWE responsible for submitting data to the respective end-users.\n\nsprat IIIb-d: DNK obtains samples by market sampling from unsorted catches stratified by fishery. DNK to send frozen samples to SWE every quarter. SWE to measure length and weight, age reading. SWE responsible for submitting data to the respective end-users.\n\nwitch flounder IIIa: DNK collect data from market sampling and sea sampling, and sends otoliths to SWE for age reading, otoliths delivered to SWE regularly at latest 1 of February the year after sampling and SWE to return with age reading latest 1st of March the year after. DNK responsible for submitting data to the respective end-users.",null,2017,"Bilateral agreement for 2017 is under preparation","Ongoing"]
["SWE - DNK","SWE: Anna Hasslow, anna.hasslow@havochvatten.se; DNK: Jørgen Dalskov, jd@aqua.dtu.dk","To optimize and exchange the age reading expertise for species collected in the IBTS survey. Both SWE and DNK are involved in the survey which is conducted in IIIa twice a year. A list of species are collected during the survey according to the Manual for the International Bottom Trawl Surveys ICES CM 2000/D:07, but for some species only a small amount are caught and there is a need for collaboration and task sharing. ","described in next column","Norway pout (Trisopterus esmarki) – SWE sends the collected otoliths to DNK for age reading. App 200-300 individuals per year.  \nWhiting (Merlangius merlangius) – SWE sends the collected otoliths to DNK for age reading. App 800-1 000 individuals per year.","SWE is responsible for submitting the data to the relevant ICES Expert Groups, and to the EC under the requirements of its Data Collection Framework.",null,2017,"Bilateral agreement for 2017 is under preparation","Ongoing"]
["SWE - FIN","SWE: Anna Hasslow, anna.hasslow@havochvatten.se; FIN: Riitta Rahkonen, riitta.rahkonen@luke.fi","1) Herring in SD30 from OTM_SPF_16-104_0_0: SWE will sample FIN landings of herring to SWE. SWE performs length sampling. 2) BIAS SD 29N + 30:  SWE sends staff to the FIN part of the BIAS survey conducted in SD30. Age reading of 50 % of the otoliths sampled during BIAS SD 30 will be conducted in SWE. ","described in next column","1) In accordance with FIN and SWE WP. 2)  In accordance with BIAS manual. ","1) SWE submits length-distribution to FIN. FIN is responsible for incorporating the data in the FIN data set and deliver the data to relevant end-users. 2) FIN is responsible for submitting all data to relevant end-user  ","na",2017,"Bilateral agreement for 2017 is under preparation","Ongoing"]
["SWE - POL","SWE: Anna Hasslow, anna.hasslow@havochvatten.se; POL: Ireneusz Wójcik, iwojcik@mir.gdynia.pl","While sprat in the Baltic is managed as one single stock is well covered concerning biological samples, POL vessels landing for first sale in SWE to be covered under POL WP.","described in next column","Length and age of discards and landings, in  accordance with POL WP.","SWE responsible for submitting data from SWE vessels, and POL from POL vessels, to the respective end-users.","no need",2017,null,"Ongoing"]
["SWE - GBR","SWE: Anna Hasslow, anna.hasslow@havochvatten.se; GBR: Margaret Bell, M.Bell@MARLAB.AC.UK","While mackerel is managed as one stock (II, IIIa, IV, V, VI, VII, VIII, IX) it has been agreed that the stock is well covered concerning biological samples, by the United Kingdom Marine Scotland National Programme.","described in next column","In accordance with the GBR (Scotland) WP.","GBR (Scotland) submits all data to the respective end-users.","no need",2017,"Bilateral agreement for 2017 is under preparation","Ongoing"]
["SWE-GER",null,"No bilateral agreement, see comments.",null,null,null,null,null,"An agreement was signed with Germany in 2010 covering the program period 2011-2013. When the NP was rolled-over for a new three year period 2014-2016 all bilateral agreements were revised and updated according to the analysis made by RCM Baltic 2014. No landings above the threshold were presented in the overview regarding Swedish landings in Germany or German landings in Sweden and therefore no update of the previous bilateral agreement has been done. A new analysis regarding landings needs to be done during RCM 2017.","NA"]